Workbook

Sheet Front Page
X1: Choose your school
X2: Akiva | Y2: 3520
X3: All Saints' CE School (N20) | Y3: 3317
X4: All Saints' CE School (NW2) | Y4: 3300
X5: Annunciation RC Infant School | Y5: 3500
X6: Annunciation RC Junior School | Y6: 3514
D7: 2016-17 FINAL OUTTURN STATEMENTS | X7: Barnfield School | Y7: 2002
X8: Beis Yaakov | Y8: 2079
D9: Choose your school | F9: =VLOOKUP(D9,X:Y,2,0) -> 0 | X9: Beit Shvidler | Y9: 3524
X10: Bell Lane School | Y10: 2003
X11: Bishop Douglass RC High | Y11: 5408
X12: Blessed Dominic RC School | Y12: 3511
X13: Brookhill Nursery | Y13: 1000
X14: Brookland Infant School | Y14: 2008
X15: Brookland Junior School | Y15: 2007
X16: Brunswick Park School | Y16: 2009
X17: Chalgrove School | Y17: 2067
X18: Childs Hill School | Y18: 2010
X19: Christ Church CE School | Y19: 3302
X20: Church Hill School | Y20: 2011
X21: Colindale School | Y21: 2014
X22: Coppetts Wood School | Y22: 2015
X23: Courtland School | Y23: 2016
X24: Cromer Road School | Y24: 2017
X25: Danegrove School | Y25: 2073
X26: Deansbrook Infant School | Y26: 2019
X27: Dollis Infant School | Y27: 2021
X28: Dollis Junior School | Y28: 5200
D29: Contacts: | X29: Edgware Primary | Y29: 2023
D30: Claudette James 0208 359 7132 | X30: Fairway School | Y30: 2024
D31: Nicole Gibson 0208 359 7223 Tues/Weds/Thurs | X31: Finchley Catholic High School | Y31: 5405
D32: Gary Topp 0208 359 7227 | X32: Foulds School | Y32: 2025
X33: Friern Barnet School | Y33: 4003
X34: Frith Manor School | Y34: 2026
X35: Garden Suburb Infant School | Y35: 2028
X36: Garden Suburb Junior School | Y36: 2027
X37: Goldbeaters School | Y37: 2029
X38: Hampden Way Nursery | Y38: 1001
X39: Hasmonean Primary School | Y39: 3516
X40: Hollickwood School | Y40: 2031
X41: Holly Park School | Y41: 2032
X42: Holy Trinity CE School | Y42: 3304
X43: JCoSS | Y43: 5427
X44: Livingstone School | Y44: 2036
X45: Manorside School | Y45: 2037
X46: Mapledown School | Y46: 7010
X47: Martin Primary | Y47: 3523
X48: Mathilda Marks Kennedy School | Y48: 5948
X49: Menorah Foundation School | Y49: 5949
X50: Menorah High School | Y50: 4004
X51: Menorah Primary School | Y51: 3513
X52: Monken Hadley CE School | Y52: 3305
X53: Monkfrith School | Y53: 2042
X54: Moss Hall Infant School | Y54: 2044
X55: Moss Hall Junior School | Y55: 2043
X56: Moss Hall Nursery | Y56: 1002
X57: Northgate | Y57: 1102
X58: Northside School | Y58: 2045
X59: Northway School | Y59: 7005
X60: Oak Lodge School | Y60: 7000
X61: Oakleigh School | Y61: 7009
X62: Orion School | Y62: 2077
X63: Osidge School | Y63: 5201
X64: Our Lady of Lourdes RC School | Y64: 3501
X65: Pardes House School | Y65: 2078
X66: Queenswell Infant School | Y66: 2071
X67: Queenswell Junior School | Y67: 2072
X68: Rosh Pinah School | Y68: 3512
X69: Sacks Morasha | Y69: 2041
X70: Sacred Heart RC School | Y70: 3510
X71: St Agnes' RC School | Y71: 3502
X72: St Andrew's CE School | Y72: 3315
X73: St Catherine's RC School | Y73: 3504
X74: St James' Catholic High School | Y74: 5407
X75: St John's CE School (N11) | Y75: 3307
X76: St John's CE School (N20) | Y76: 3309
X77: St Joseph's RC Primary School | Y77: 3509
X78: St Margaret's Nursery | Y78: 1003
X79: St Mary's & St Johns Primary | Y79: 3521
X80: St Mary's CE High School | Y80: 5403
X81: St Mary's CE School (EN4) | Y81: 3312
X82: St Mary's CE School (N3) | Y82: 3311
X83: St Michael's Catholic Grammar School | Y83: 5404
X84: St Paul's CE School (N11) | Y84: 3313
X85: St Paul's CE School (NW7) | Y85: 3314
X86: St Theresa's RC School | Y86: 3507
X87: St Vincent's RC School | Y87: 3506
X88: Summerside School | Y88: 2052
X89: Sunnyfields School | Y89: 2070
X90: The Pavilion | Y90: 1100
X91: Trent CE School | Y91: 3316
X92: Tudor School | Y92: 2055
X93: Underhill School | Y93: 2057
X94: Wessex Gardens School | Y94: 2076
X95: Whitings Hill School | Y95: 2060
X96: Woodcroft Primary | Y96: 3518
X97: Woodridge School | Y97: 2054
X101: =COUNTA(X2:X97) -> 96

Sheet OUTTURN STATEMENT
A1: 120
E3: ='Front Page'!$F$9 -> 0
B5: London Borough of Barnet
B6: Summary of Final Outturn Position &
B7: Statement of Central / Salary Account FY 2016-17
D8: Option | E8: =VLOOKUP($E$9,'FUNDING ALLOCATION'!B:E,4,0) -> 
B9: =VLOOKUP(E10,A63:B170,2,0) ->  | D9: Cost Centre | E9: =VLOOKUP(E10,A:C,3,0) -> 
D10: DfE No | E10: ='Front Page'!$F$9 -> 0
B12: Summary | C12: £ | D12: £ | E12: £
B14: In year Income | C14: =VLOOKUP($E$9,'[56]check INTEGRA'!$B$6:$AB$101,14,0) -> 
B15: In year Expenditure | C15: =VLOOKUP($E$9,'[56]check INTEGRA'!$B$6:$AB$101,19,0) -> 
B16: =IF(D16<0,"Net in-Year Underspend","Net in-Year Overspend") ->  | D16: =SUM(C14:C15) -> 
B18: =IF(D18>0,"Underspend b/fwd from 2015-16","Overspend b/fwd from 2015-16") ->  | D18: =VLOOKUP($E$9,'[56]Indschs 16-17'!B3:O116,13,FALSE) -> 
B20: =IF(E20>0,"Cumulative Surplus c/fwd as at 31.03.17","Cumulative Deficit c/fwd as at 31.03.17") ->  | E20: =D18-D16 -> 
B22: =IF(E20>0,"The cumulative surplus is made up of: -","The cumulative deficit is made up of: -") -> 
B23: =IF(E23>0,"Revenue Surplus","Revenue Deficit") ->  | E23: =VLOOKUP($E$9,'[56]Indschs 16-17'!$B$3:$O$116,3,FALSE) -> 
B24: =IF(E24>0,"Capital Surplus","Capital Deficit") ->  | E24: =VLOOKUP($E$9,'[56]Indschs 16-17'!$B$3:$O$116,8,FALSE) -> 
B27: Central / Salary Account | C27: £ | D27: £ | E27: £
B29: 2016-17 Funding I01 to I03 | C29: =VLOOKUP($E$9,'FUNDING I01 I02 I03'!$C$6:$H$101,5,FALSE) -> 
B31: Less: Amount of Funding paid into local bank account | C31: =VLOOKUP($E$9,'FUNDING I01 I02 I03'!$C$6:$H$101,6,FALSE) -> 
B32: Amount of Funding Deposited in Central / Salary Account (Option A and C schools only) | D32: =C29-C31 -> 
B33: Expenditure via Central/Salary Account (i.e. E01 to E07 + redundancy) Option A and C schools only | D33: =IF(OR($E$8="A",$E$8="C"),VLOOKUP($E$9,'CFR VAL'!$B$3:$BM$99,63,0),0) -> 
B35: =IF(D35>0,"Surplus Cash held in Central/Salary Account re 16-17 Salaries","Shortfall of Cash held in Central/Salary Account re 16-17 Salaries") ->  | D35: =D32-D33 -> 
B37: Add: Spring term LTS & Maternity claim including clawback/rebate | D37: =IF(ISERROR(VLOOKUP($E$9,'Allocation of spring claim'!C4:J56,8,0)),0,VLOOKUP($E$9,'Allocation of spring claim'!C4:J56,8,0)) -> 0
B39: Central/Salary Account Balance as at 31.03.17 | E39: =D35+D37 -> 
B42: =IF(E42>0,"A transfer will be made into your Local Bank Account - If the balance is zero please ignore.","Please raise a cheque made payable to 'The London Borough of Barnet' and forward to The Schools Accountancy Section by Friday 9th June - If the balance is zero please ignore. ") ->  | E42: =E39 -> 
A63: 1000 | B63: Brookhill Nursery | C63: 10130 | D63: 1000
A64: 1001 | B64: Hampden Way Nursery | C64: 10131 | D64: 1001
A65: 1002 | B65: Moss Hall Nursery | C65: 10132 | D65: 1002
A66: 1003 | B66: St Margaret's Nursery | C66: 10133 | D66: 1003
A67: 2000 | B67: Parkfield School | C67: 10120 | D67: 2000
A68: 2002 | B68: Barnfield School | C68: 10044 | D68: 2002
A69: 2003 | B69: Bell Lane School | C69: 10045 | D69: 2003
A70: 2007 | B70: Brookland Junior School | C70: 10046 | D70: 2007
A71: 2008 | B71: Brookland Infant School | C71: 10047 | D71: 2008
A72: 2009 | B72: Brunswick Park School | C72: 10048 | D72: 2009
A73: 2010 | B73: Childs Hill School | C73: 10049 | D73: 2010
A74: 2011 | B74: Church Hill School | C74: 10051 | D74: 2011
A75: 2014 | B75: Colindale School | C75: 10054 | D75: 2014
A76: 2015 | B76: Coppetts Wood School | C76: 10055 | D76: 2015
A77: 2016 | B77: Courtland School | C77: 10056 | D77: 2016
A78: 2017 | B78: Cromer Road School | C78: 10057 | D78: 2017
A79: 2018 | B79: Deansbrook Junior School | C79: 10058 | D79: 2018
A80: 2019 | B80: Deansbrook Infant School | C80: 10059 | D80: 2019
A81: 2021 | B81: Dollis Infant School | C81: 10061 | D81: 2021
A82: 2022 | B82: Edgware Junior School | C82: 10062 | D82: 2022
A83: 2023 | B83: Edgware Infant School | C83: 10063 | D83: 2023
A84: 2024 | B84: Fairway School | C84: 10064 | D84: 2024
A85: 2025 | B85: Foulds School | C85: 10065 | D85: 2025
A86: 2026 | B86: Frith Manor School | C86: 10066 | D86: 2026
A87: 2027 | B87: Garden Suburb Junior School | C87: 10067 | D87: 2027
A88: 2028 | B88: Garden Suburb Infant School | C88: 10068 | D88: 2028
A89: 2029 | B89: Goldbeaters School | C89: 10069 | D89: 2029
A90: 2031 | B90: Hollickwood School | C90: 10071 | D90: 2031
A91: 2032 | B91: Holly Park School | C91: 10072 | D91: 2032
A92: 2036 | B92: Livingstone School | C92: 10074 | D92: 2036
A93: 2037 | B93: Manorside School | C93: 10075 | D93: 2037
A94: 2041 | B94: Sacks Morasha | C94: 11381 | D94: 2041
A95: 2042 | B95: Monkfrith School | C95: 10079 | D95: 2042
A96: 2043 | B96: Moss Hall Junior School | C96: 10080 | D96: 2043
A97: 2044 | B97: Moss Hall Infant School | C97: 10081 | D97: 2044
A98: 2045 | B98: Northside School | C98: 10082 | D98: 2045
A99: 2052 | B99: Summerside School | C99: 10098 | D99: 2052
A100: 2054 | B100: Woodridge School | C100: 10109 | D100: 2054
A101: 2055 | B101: Tudor School | C101: 10101 | D101: 2055
A102: 2056 | B102: Underhill Junior School | C102: 10102 | D102: 2056
A103: 2057 | B103: Underhill Infant School | C103: 10103 | D103: 2057
A104: 2060 | B104: Whitings Hill School | C104: 10105 | D104: 2060
A105: 2067 | B105: Chalgrove School | C105: 10118 | D105: 2067
A106: 2070 | B106: Sunnyfields School | C106: 10097 | D106: 2070
A107: 2071 | B107: Queenswell Infant School | C107: 10119 | D107: 2071
A108: 2072 | B108: Queenswell Junior School | C108: 10086 | D108: 2072
A109: 2073 | B109: Danegrove School | C109: 10083 | D109: 2073
A110: 2074 | B110: Hyde School | C110: 10122 | D110: 2074
A111: 2076 | B111: Wessex Gardens School | C111: 10124 | D111: 2076
A112: 2077 | B112: Orion School | C112: 10127 | D112: 2077
A113: 2078 | B113: Pardes House School | C113: 10129 | D113: 2078
A114: 2079 | B114: Beis Yaakov | C114: 10128 | D114: 2079
A115: 3300 | B115: All Saints' CE School (NW2) | C115: 10040 | D115: 3300
A116: 3302 | B116: Christ Church CE School | C116: 10050 | D116: 3302
A117: 3304 | B117: Holy Trinity CE School | C117: 10073 | D117: 3304
A118: 3305 | B118: Monken Hadley CE School | C118: 10078 | D118: 3305
A119: 3307 | B119: St. John's CE School (N11) | C119: 10089 | D119: 3307
A120: 3309 | B120: St. John's CE School (N20) | C120: 10116 | D120: 3309
A121: 3311 | B121: St. Mary's CE School (N3) | C121: 10092 | D121: 3311
A122: 3312 | B122: St. Mary's CE School (EN4) | C122: 10093 | D122: 3312
A123: 3313 | B123: St. Paul's CE School (N11) | C123: 10094 | D123: 3313
A124: 3314 | B124: St. Paul's CE School (NW7) | C124: 10095 | D124: 3314
A125: 3315 | B125: St. Andrew's CE School | C125: 10099 | D125: 3315
A126: 3316 | B126: Trent CE School | C126: 10100 | D126: 3316
A127: 3317 | B127: All Saints' CE School (N20) | C127: 10042 | D127: 3317
A128: 3500 | B128: Annunciation RC Infant School | C128: 10043 | D128: 3500
A129: 3501 | B129: Our Lady of Lourdes RC School | C129: 10085 | D129: 3501
A130: 3502 | B130: St. Agnes' RC School | C130: 10087 | D130: 3502
A131: 3504 | B131: St. Catherine's RC School | C131: 10088 | D131: 3504
A132: 3506 | B132: St. Vincent's RC School | C132: 10096 | D132: 3506
A133: 3507 | B133: St. Theresa's RC School | C133: 10108 | D133: 3507
A134: 3508 | B134: St. Joseph's RC Infant School | C134: 10111 | D134: 3508
A135: 3509 | B135: St. Joseph's RC Junior School | C135: 10107 | D135: 3509
A136: 3510 | B136: Sacred Heart RC School | C136: 10110 | D136: 3510
A137: 3511 | B137: Blessed Dominic RC School | C137: 10115 | D137: 3511
A138: 3512 | B138: Rosh Pinah School | C138: 10112 | D138: 3512
A139: 3513 | B139: Menorah Primary School | C139: 10114 | D139: 3513
A140: 3514 | B140: Annunciation RC Junior School | C140: 10117 | D140: 3514
A141: 3516 | B141: Hasmonean Primary School | C141: 10121 | D141: 3516
A142: 3518 | B142: Woodcroft Primary | C142: 10123 | D142: 3518
A143: 3519 | B143: Broadfields Primary | C143: 10134 | D143: 3519
A144: 3520 | B144: Akiva | C144: 11094 | D144: 3520
A145: 3521 | B145: St. Mary's & St. Johns Primary | C145: 10698 | D145: 3521
A146: 3522 | B146: Claremont Primary | C146: 10953 | D146: 3522
A147: 3523 | B147: Martin Primary | C147: 11093 | D147: 3523
A148: 3524 | B148: Beit Shvidler | C148: 11278 | D148: 3524
A149: 4003 | B149: Friern Barnet School | C149: 10139 | D149: 4003
A150: 4004 | B150: Menorah High School | C150: 11513 | D150: 4004
A151: 5200 | B151: Dollis Junior School | C151: 10060 | D151: 5200
A152: 5201 | B152: Osidge School | C152: 10084 | D152: 5201
A153: 5403 | B153: St Mary's CE High School | C153: 10143 | D153: 5403
A154: 5404 | B154: St. Michael's Catholic Grammar School | C154: 10148 | D154: 5404
A155: 5405 | B155: Finchley Catholic High School | C155: 10145 | D155: 5405
A156: 5407 | B156: St James' Catholic High School | C156: 10142 | D156: 5407
A157: 5408 | B157: Bishop Douglass RC High | C157: 10137 | D157: 5408
A158: 5427 | B158: JCoSS | C158: 11174 | D158: 5427
A159: 5948 | B159: Mathilda Marks Kennedy School | C159: 10125 | D159: 5948
A160: 5949 | B160: Menorah Foundation School | C160: 10126 | D160: 5949
A161: 7000 | B161: Oak Lodge School | C161: 10156 | D161: 7000
A162: 7005 | B162: Northway School | C162: 10157 | D162: 7005
A163: 7009 | B163: Oakleigh School | C163: 10158 | D163: 7009
A164: 7010 | B164: Mapledown School | C164: 10159 | D164: 7010
A165: 1102 | B165: Northgate | C165: 10185 | D165: 1102
A166: 1100 | B166: The Pavilion | C166: 10188 | D166: 1100

Sheet Indschs 16-17
C1: Final Individual School Outturn Balances 2016-17
D2: Revenue | I2: Capital | M2: Total Balance
B3: 1 | C3: 2 | D3: 3 | E3: 4 | F3: 5 | G3: 6 | H3: 7 | I3: 8 | J3: 9 | K3: 10 | L3: 11 | M3: 12 | N3: 13 | O3: 14
B4: Cost Centre | C4: School | D4: As at 31.03.17 | E4: Balance as % Final Budget Share 14-15 | F4: As at 31.03.16 | G4: Increase / (decrease) | I4: =D4 -> As at 31.03.17 | J4: =F4 -> As at 31.03.16 | K4: Increase / (decrease) | M4: =D4 -> As at 31.03.17 | N4: =F4 -> As at 31.03.16 | O4: Increase / (decrease)
A5: 1000 | B5: 10130 | C5: Brookhill | D5: 158461.67 | E5: 0 | F5: 145359 | G5: 13102.67 | I5: 1.25 | J5: 1 | K5: 0.25 | M5: 158462.92 | N5: 145360 | O5: 13102.92
A6: 1001 | B6: 10131 | C6: Hampden Way | D6: 125592.15 | E6: 0 | F6: 192316 | G6: -66723.85 | I6: 8014.7 | J6: 11251 | K6: -3236.3 | M6: 133606.85 | N6: 203567 | O6: -69960.15
A7: 1002 | B7: 10132 | C7: Moss Hall | D7: 302766.64 | E7: 0 | F7: 275577 | G7: 27189.64 | I7: 10046 | J7: 9914 | K7: 132 | M7: 312812.64 | N7: 285491 | O7: 27321.64
A8: 1003 | B8: 10133 | C8: St Margarets | D8: 29080.69 | E8: 0 | F8: 131617 | G8: -102536.31 | I8: 1054.85 | J8: 6125 | K8: -5070.15 | M8: 30135.54 | N8: 137742 | O8: -107606.46
C10: Sub Total - Nursery Sector | D10: =SUM(D5:D8) -> 615901.15 | E10: =SUM(E5:E8) -> 0 | F10: =SUM(F5:F8) -> 744869 | G10: =SUM(G5:G8) -> -128967.85 | I10: =SUM(I5:I8) -> 19116.8 | J10: 27291 | K10: -8174.2 | L10: 0 | M10: 635017.95 | N10: 772160 | O10: -137142.05
A12: 3520 | B12: 11094 | C12: Akiva | D12: -34411.53 | E12: 0 | F12: 9539 | G12: -43950.53 | I12: 9.313225746e-12 | J12: -43244 | K12: 43244 | M12: -34411.53 | N12: -33705 | O12: -706.53
A13: 3317 | B13: 10042 | C13: All Saints' CE School (N20) | D13: 151873.35 | E13: 0 | F13: 135381 | G13: 16492.35 | I13: 0 | J13: 0 | K13: 0 | M13: 151873.35 | N13: 135381 | O13: 16492.35
A14: 3300 | B14: 10040 | C14: All Saints' CE School (NW2) | D14: 205150.3 | E14: 0 | F14: 152778 | G14: 52372.3 | I14: 0 | J14: 0 | K14: 0 | M14: 205150.3 | N14: 152778 | O14: 52372.3
A15: 3500 | B15: 10043 | C15: Annunciation RC Infant School | D15: 122676.4 | E15: 0 | F15: 126014 | G15: -3337.6 | I15: 0 | J15: 0 | K15: 0 | M15: 122676.4 | N15: 126014 | O15: -3337.6
A16: 3514 | B16: 10117 | C16: Annunciation RC Junior School | D16: 60712.28 | E16: 0 | F16: 29980 | G16: 30732.28 | I16: 0 | J16: 0 | K16: 0 | M16: 60712.28 | N16: 29980 | O16: 30732.28
A17: 2002 | B17: 10044 | C17: Barnfield School | D17: 375651.24 | E17: 0 | F17: 387326 | G17: -11674.76 | I17: -1.07 | J17: -1 | K17: -0.07 | M17: 375650.17 | N17: 387325 | O17: -11674.83
A18: 2079 | B18: 10128 | C18: Beis Yaakov | D18: 15010.96 | E18: 0 | F18: -84532 | G18: 99542.96 | I18: 0 | J18: 0 | K18: 0 | M18: 15010.96 | N18: -84532 | O18: 99542.96
A19: 3524 | B19: 11278 | C19: Beit Shvidler Jewish Primary | D19: 58611.57 | E19: 0 | F19: 100592 | G19: -41980.43 | I19: 0 | J19: 0 | K19: 0 | M19: 58611.57 | N19: 100592 | O19: -41980.43
A20: 2003 | B20: 10045 | C20: Bell Lane School | D20: 80741.78 | E20: 0 | F20: 73706 | G20: 7035.78 | I20: 8826.48 | J20: 0 | K20: 8826.48 | M20: 89568.26 | N20: 73706 | O20: 15862.26
A21: 3511 | B21: 10115 | C21: Blessed Dominic RC School | D21: 74706.87 | E21: 0 | F21: 106981 | G21: -32274.13 | I21: 1 | J21: 1 | K21: 0 | M21: 74707.87 | N21: 106982 | O21: -32274.13
A22: 2008 | B22: 10047 | C22: Brookland Infant School | D22: 49818.02 | E22: 0 | F22: 26946 | G22: 22872.02 | I22: 1423.94 | J22: 14434 | K22: -13010.06 | M22: 51241.96 | N22: 41380 | O22: 9861.96
A23: 2007 | B23: 10046 | C23: Brookland Junior School | D23: 181476.19 | E23: 0 | F23: 133651 | G23: 47825.19 | I23: 912 | J23: 0 | K23: 912 | M23: 182388.19 | N23: 133651 | O23: 48737.19
A24: 2009 | B24: 10048 | C24: Brunswick Park School | D24: 119745.33 | E24: 0 | F24: 144529 | G24: -24783.67 | I24: 0 | J24: 2455 | K24: -2455 | M24: 119745.33 | N24: 146984 | O24: -27238.67
A25: 2067 | B25: 10118 | C25: Chalgrove School | D25: 126744.1 | E25: 0 | F25: 84969 | G25: 41775.1 | I25: -1.5 | J25: 3855 | K25: -3856.5 | M25: 126742.6 | N25: 88824 | O25: 37918.6
A26: 2010 | B26: 10049 | C26: Childs Hill School | D26: 39642.4 | E26: 0 | F26: 117316 | G26: -77673.6 | I26: 0 | J26: -299 | K26: 299 | M26: 39642.4 | N26: 117017 | O26: -77374.6
A27: 3302 | B27: 10050 | C27: Christ Church CE School | D27: 175744.1 | E27: 0 | F27: 71319 | G27: 104425.1 | I27: 0 | J27: 0 | K27: 0 | M27: 175744.1 | N27: 71319 | O27: 104425.1
A28: 2011 | B28: 10051 | C28: Church Hill School | D28: 89142.43 | E28: 0 | F28: 34425 | G28: 54717.43 | I28: 161.5 | J28: 4604 | K28: -4442.5 | M28: 89303.93 | N28: 39029 | O28: 50274.93
A29: 3522 | B29: 10953 | C29: Claremont Primary | D29: 0 | E29: 0 | F29: 250778 | G29: -250778 | I29: 0 | J29: -69013 | K29: 69013 | M29: 0 | N29: 181765 | O29: -181765
A30: 2014 | B30: 10054 | C30: Colindale School | D30: 691029.48 | E30: 0 | F30: 666977 | G30: 24052.48 | I30: 0 | J30: 0 | K30: 0 | M30: 691029.48 | N30: 666977 | O30: 24052.48
A31: 2015 | B31: 10055 | C31: Coppetts Wood School | D31: 416463.8 | E31: 0 | F31: 349579 | G31: 66884.8 | I31: 7066.75 | J31: 0 | K31: 7066.75 | M31: 423530.55 | N31: 349579 | O31: 73951.55
A32: 2016 | B32: 10056 | C32: Courtland School | D32: 12493.33 | E32: 0 | F32: 17215 | G32: -4721.67 | I32: 11092.19 | J32: 8226 | K32: 2866.19 | M32: 23585.52 | N32: 25441 | O32: -1855.48
A33: 2017 | B33: 10057 | C33: Cromer Road School | D33: 137978.37 | E33: 0 | F33: 193508 | G33: -55529.63 | I33: 14715.2 | J33: 9203 | K33: 5512.2 | M33: 152693.57 | N33: 202711 | O33: -50017.43
A34: 2073 | B34: 10083 | C34: Danegrove School | D34: 461078.79 | E34: 0 | F34: 437563 | G34: 23515.79 | I34: -0.25 | J34: 6619 | K34: -6619.25 | M34: 461078.54 | N34: 444182 | O34: 16896.54
A35: 2019 | B35: 10059 | C35: Deansbrook Infant School | D35: 36222.56 | E35: 0 | F35: 76196 | G35: -39973.44 | I35: 15618.25 | J35: 7836 | K35: 7782.25 | M35: 51840.81 | N35: 84032 | O35: -32191.19
A36: 2021 | B36: 10061 | C36: Dollis Infant School | D36: 84238.55 | E36: 0 | F36: 40780 | G36: 43458.55 | I36: 16523.97 | J36: 1 | K36: 16522.97 | M36: 100762.52 | N36: 40781 | O36: 59981.52
A37: 5200 | B37: 10060 | C37: Dollis Junior School | D37: 32911.35 | E37: 0 | F37: 43160 | G37: -10248.65 | I37: 5264 | J37: -1 | K37: 5265 | M37: 38175.35 | N37: 43159 | O37: -4983.65
A38: 2023 | B38: 10063 | C38: Edgware Primary | D38: 16604.28 | E38: 0 | F38: 64214 | G38: -47609.72 | I38: 641.6 | J38: 2173 | K38: -1531.4 | M38: 17245.88 | N38: 66387 | O38: -49141.12
A39: 2024 | B39: 10064 | C39: Fairway School | D39: 170460.72 | E39: 0 | F39: 127647 | G39: 42813.72 | I39: 39959.07 | J39: 37670 | K39: 2289.07 | M39: 210419.79 | N39: 165317 | O39: 45102.79
A40: 2025 | B40: 10065 | C40: Foulds School | D40: 96651.58 | E40: 0 | F40: 61881 | G40: 34770.58 | I40: 9042.85 | J40: 9350 | K40: -307.15 | M40: 105694.43 | N40: 71231 | O40: 34463.43
A41: 2026 | B41: 10066 | C41: Frith Manor School | D41: 1968.95 | E41: 0 | F41: 53961 | G41: -51992.05 | I41: 10303.18 | J41: 14262 | K41: -3958.82 | M41: 12272.13 | N41: 68223 | O41: -55950.87
A42: 2028 | B42: 10068 | C42: Garden Suburb Infant School | D42: 54373.43 | E42: 0 | F42: 71415 | G42: -17041.57 | I42: 11223 | J42: 4298 | K42: 6925 | M42: 65596.43 | N42: 75713 | O42: -10116.57
A43: 2027 | B43: 10067 | C43: Garden Suburb Junior School | D43: 105199.21 | E43: 0 | F43: 80447 | G43: 24752.21 | I43: 3259.23 | J43: 2055 | K43: 1204.23 | M43: 108458.44 | N43: 82502 | O43: 25956.44
A44: 2029 | B44: 10069 | C44: Goldbeaters School | D44: -10195.16 | E44: 0 | F44: 44470 | G44: -54665.16 | I44: 8969.25 | J44: -1 | K44: 8970.25 | M44: -1225.91 | N44: 44469 | O44: -45694.91
A45: 3516 | B45: 10121 | C45: Hasmonean Primary School | D45: -1986.03 | E45: 0 | F45: -63009 | G45: 61022.97 | I45: 0 | J45: 0 | K45: 0 | M45: -1986.03 | N45: -63009 | O45: 61022.97
A46: 2031 | B46: 10071 | C46: Hollickwood School | D46: 156272.67 | E46: 0 | F46: 72869 | G46: 83403.67 | I46: 7817.05 | J46: 1203 | K46: 6614.05 | M46: 164089.72 | N46: 74072 | O46: 90017.72
A47: 2032 | B47: 10072 | C47: Holly Park School | D47: 74560.37 | E47: 0 | F47: 20887 | G47: 53673.37 | I47: -0.5 | J47: 9 | K47: -9.5 | M47: 74559.87 | N47: 20896 | O47: 53663.87
A48: 3304 | B48: 10073 | C48: Holy Trinity CE School | D48: 126491.16 | E48: 0 | F48: 34290 | G48: 92201.16 | I48: -1 | J48: -1 | K48: 0 | M48: 126490.16 | N48: 34289 | O48: 92201.16
A49: 2036 | B49: 10074 | C49: Livingstone School | D49: 452448.91 | E49: 0 | F49: 393161 | G49: 59287.91 | I49: 0 | J49: 32 | K49: -32 | M49: 452448.91 | N49: 393193 | O49: 59255.91
A50: 2037 | B50: 10075 | C50: Manorside School | D50: 13575.99 | E50: 0 | F50: -16299 | G50: 29874.99 | I50: 7717 | J50: 333 | K50: 7384 | M50: 21292.99 | N50: -15966 | O50: 37258.99
A51: 3523 | B51: 11093 | C51: Martin Primary | D51: 178533.05 | E51: 0 | F51: 134766 | G51: 43767.05 | I51: 4214.38 | J51: 0 | K51: 4214.38 | M51: 182747.43 | N51: 134766 | O51: 47981.43
A52: 5948 | B52: 10125 | C52: Mathilda Marks Kennedy School | D52: 24291.07 | E52: 0 | F52: 16469 | G52: 7822.07 | I52: 0 | J52: 0 | K52: 0 | M52: 24291.07 | N52: 16469 | O52: 7822.07
A53: 5949 | B53: 10126 | C53: Menorah Foundation School | D53: 64642.85 | E53: 0 | F53: 23476 | G53: 41166.85 | I53: 0 | J53: 0 | K53: 0 | M53: 64642.85 | N53: 23476 | O53: 41166.85
A54: 3513 | B54: 10114 | C54: Menorah Primary School | D54: -1759.57 | E54: 0 | F54: -25388 | G54: 23628.43 | I54: 0.4 | J54: 0 | K54: 0.4 | M54: -1759.17 | N54: -25388 | O54: 23628.83
A55: 3305 | B55: 10078 | C55: Monken Hadley CE School | D55: 163465.47 | E55: 0 | F55: 63203 | G55: 100262.47 | I55: 0 | J55: 0 | K55: 0 | M55: 163465.47 | N55: 63203 | O55: 100262.47
A56: 2042 | B56: 10079 | C56: Monkfrith School | D56: 122305.27 | E56: 0 | F56: 111743 | G56: 10562.27 | I56: 0.44 | J56: 6779 | K56: -6778.56 | M56: 122305.71 | N56: 118522 | O56: 3783.71
A57: 2044 | B57: 10081 | C57: Moss Hall Infant School | D57: 72560.58 | E57: 0 | F57: 105846 | G57: -33285.42 | I57: 0.25 | J57: 0 | K57: 0.25 | M57: 72560.83 | N57: 105846 | O57: -33285.17
A58: 2043 | B58: 10080 | C58: Moss Hall Junior School | D58: 208724.8 | E58: 0 | F58: 191665 | G58: 17059.8 | I58: 8331.25 | J58: 0 | K58: 8331.25 | M58: 217056.05 | N58: 191665 | O58: 25391.05
A59: 2045 | B59: 10082 | C59: Northside School | D59: 399998.71 | E59: 0 | F59: 442174 | G59: -42175.29 | I59: 13508.96 | J59: 19142 | K59: -5633.04 | M59: 413507.67 | N59: 461316 | O59: -47808.33
A60: 2077 | B60: 10127 | C60: Orion School | D60: 120926.72 | E60: 0 | F60: 143585 | G60: -22658.28 | I60: -14020.25 | J60: -20292 | K60: 6271.75 | M60: 106906.47 | N60: 123293 | O60: -16386.53
A61: 5201 | B61: 10084 | C61: Osidge School | D61: 188193.18 | E61: 0 | F61: 180845 | G61: 7348.18 | I61: 0.25 | J61: 0 | K61: 0.25 | M61: 188193.43 | N61: 180845 | O61: 7348.43
A62: 3501 | B62: 10085 | C62: Our Lady of Lourdes RC School | D62: 61777.65 | E62: 0 | F62: 72948 | G62: -11170.35 | I62: 1 | J62: 1 | K62: 0 | M62: 61778.65 | N62: 72949 | O62: -11170.35
A63: 2078 | B63: 10129 | C63: Pardes House School | D63: 51517.46 | E63: 0 | F63: -51622 | G63: 103139.46 | I63: 0 | J63: 0 | K63: 0 | M63: 51517.46 | N63: -51622 | O63: 103139.46
A64: 2071 | B64: 10119 | C64: Queenswell Infant School | D64: 18395.93 | E64: 0 | F64: 92195 | G64: -73799.07 | I64: 7691 | J64: 0 | K64: 7691 | M64: 26086.93 | N64: 92195 | O64: -66108.07
A65: 2072 | B65: 10086 | C65: Queenswell Junior School | D65: 66539 | E65: 0 | F65: 73146 | G65: -6607 | I65: 1872.28 | J65: -1 | K65: 1873.28 | M65: 68411.28 | N65: 73145 | O65: -4733.72
A66: 3512 | B66: 10112 | C66: Rosh Pinah School | D66: 32369.78 | E66: 0 | F66: -8597 | G66: 40966.78 | I66: 0 | J66: 0 | K66: 0 | M66: 32369.78 | N66: -8597 | O66: 40966.78
A67: 3510 | B67: 10110 | C67: Sacred Heart RC School | D67: 144436.76 | E67: 0 | F67: 143552 | G67: 884.76 | I67: 0 | J67: 0 | K67: 0 | M67: 144436.76 | N67: 143552 | O67: 884.76
A68: 2041 | B68: 11381 | C68: Sacks Morasha | D68: 64165.84 | E68: 0 | F68: 79532 | G68: -15366.16 | I68: 1 | J68: 1 | K68: 0 | M68: 64166.84 | N68: 79533 | O68: -15366.16
A69: 3502 | B69: 10087 | C69: St. Agnes' RC School | D69: 300440.3 | E69: 0 | F69: 265780 | G69: 34660.3 | I69: 1 | J69: 1 | K69: 0 | M69: 300441.3 | N69: 265781 | O69: 34660.3
A70: 3315 | B70: 10099 | C70: St. Andrew's CE School | D70: 172133.77 | E70: 0 | F70: 171915 | G70: 218.77 | I70: 0 | J70: 0 | K70: 0 | M70: 172133.77 | N70: 171915 | O70: 218.77
A71: 3504 | B71: 10088 | C71: St. Catherine's RC School | D71: 231122.71 | E71: 0 | F71: 158282 | G71: 72840.71 | I71: 0 | J71: 0 | K71: 0 | M71: 231122.71 | N71: 158282 | O71: 72840.71
A72: 3307 | B72: 10089 | C72: St. John's CE School (N11) | D72: 49400.71 | E72: 0 | F72: 108062 | G72: -58661.29 | I72: 0 | J72: 0 | K72: 0 | M72: 49400.71 | N72: 108062 | O72: -58661.29
A73: 3309 | B73: 10116 | C73: St. John's CE School (N20) | D73: 27280.65 | E73: 0 | F73: 29886 | G73: -2605.35 | I73: 0 | J73: 0 | K73: 0 | M73: 27280.65 | N73: 29886 | O73: -2605.35
A74: 3509 | B74: 10107 | C74: St. Joseph's RC Primary | D74: -101168.42 | E74: 0 | F74: 16860 | G74: -118028.42 | I74: 0 | J74: 0 | K74: 0 | M74: -101168.42 | N74: 16860 | O74: -118028.42
A75: 3521 | B75: 10698 | C75: St. Mary's & St. Johns Primary | D75: 370562.22 | E75: 0 | F75: 177419 | G75: 193143.22 | I75: 2371.77 | J75: 20238 | K75: -17866.23 | M75: 372933.99 | N75: 197657 | O75: 175276.99
A76: 3312 | B76: 10093 | C76: St. Mary's CE School (EN4) | D76: 62592.8 | E76: 0 | F76: 33828 | G76: 28764.8 | I76: 0 | J76: 0 | K76: 0 | M76: 62592.8 | N76: 33828 | O76: 28764.8
A77: 3311 | B77: 10092 | C77: St. Mary's CE School (N3) | D77: 78078.32 | E77: 0 | F77: 100768 | G77: -22689.68 | I77: 0 | J77: 0 | K77: 0 | M77: 78078.32 | N77: 100768 | O77: -22689.68
A78: 3313 | B78: 10094 | C78: St. Paul's CE School (N11) | D78: 253746.14 | E78: 0 | F78: 253157 | G78: 589.14 | I78: 0 | J78: 0 | K78: 0 | M78: 253746.14 | N78: 253157 | O78: 589.14
A79: 3314 | B79: 10095 | C79: St. Paul's CE School (NW7) | D79: 23741.94 | E79: 0 | F79: 46511 | G79: -22769.06 | I79: 0 | J79: 0 | K79: 0 | M79: 23741.94 | N79: 46511 | O79: -22769.06
A80: 3507 | B80: 10108 | C80: St. Theresa's RC School | D80: 23559.1 | E80: 0 | F80: 19330 | G80: 4229.1 | I80: 0 | J80: 0 | K80: 0 | M80: 23559.1 | N80: 19330 | O80: 4229.1
A81: 3506 | B81: 10096 | C81: St. Vincent's RC School | D81: 115609.13 | E81: 0 | F81: 132717 | G81: -17107.87 | I81: -1 | J81: -1 | K81: -2.328359727e-12 | M81: 115608.13 | N81: 132716 | O81: -17107.87
A82: 2052 | B82: 10098 | C82: Summerside School | D82: 100079.32 | E82: 0 | F82: 45582 | G82: 54497.32 | I82: 2374.24 | J82: 0 | K82: 2374.24 | M82: 102453.56 | N82: 45582 | O82: 56871.56
A83: 2070 | B83: 10097 | C83: Sunnyfields School | D83: 143408.13 | E83: 0 | F83: 95344 | G83: 48064.13 | I83: 6674 | J83: 1 | K83: 6673 | M83: 150082.13 | N83: 95345 | O83: 54737.13
A84: 3316 | B84: 10100 | C84: Trent CE School | D84: 13208.27 | E84: 0 | F84: 16258 | G84: -3049.73 | I84: 0 | J84: 0 | K84: 0 | M84: 13208.27 | N84: 16258 | O84: -3049.73
A85: 2055 | B85: 10101 | C85: Tudor School | D85: -48708.08 | E85: 0 | F85: 20564 | G85: -69272.08 | I85: 1483.29 | J85: 6544 | K85: -5060.71 | M85: -47224.79 | N85: 27108 | O85: -74332.79
A86: 2057 | B86: 10103 | C86: Underhill School | D86: 184595.15 | E86: 0 | F86: 157517 | G86: 27078.15 | I86: 0.34 | J86: 0 | K86: 0.34 | M86: 184595.49 | N86: 157517 | O86: 27078.49
A87: 2076 | B87: 10124 | C87: Wessex Gardens School | D87: 192232.31 | E87: 0 | F87: 365842 | G87: -173609.69 | I87: 16066 | J87: 45921 | K87: -29855 | M87: 208298.31 | N87: 411763 | O87: -203464.69
A88: 2060 | B88: 10105 | C88: Whitings Hill School | D88: 141636.05 | E88: 0 | F88: 233083 | G88: -91446.95 | I88: -1669.75 | J88: -15094 | K88: 13424.25 | M88: 139966.3 | N88: 217989 | O88: -78022.7
A89: 3518 | B89: 10123 | C89: Woodcroft Primary | D89: 97408.86 | E89: 0 | F89: 129979 | G89: -32570.14 | I89: 2919.21 | J89: 9110 | K89: -6190.79 | M89: 100328.07 | N89: 139089 | O89: -38760.93
A90: 2054 | B90: 10109 | C90: Woodridge School | D90: 70041.06 | E90: 0 | F90: 119899 | G90: -49857.94 | I90: 4757.5 | J90: 13390 | K90: -8632.5 | M90: 74798.56 | N90: 133289 | O90: -58490.44
C92: Sub Total - Primary Sector | D92: =SUM(D12:D90) -> 9503963.09 | E92: =SUM(E12:E90) -> 0 | F92: =SUM(F12:F90) -> 9160731 | G92: =SUM(G12:G90) -> 343232.09 | I92: =SUM(I12:I90) -> 237110.75 | J92: =SUM(J12:J90) -> 101799 | K92: =SUM(K12:K90) -> 135311.75 | M92: =D92+I92 -> 9741073.84 | N92: =F92+J92 -> 9262530 | O92: =M92-N92 -> 478543.84
A94: 5408 | B94: 10137 | C94: Bishop Douglass RC High | D94: -0.1 | E94: 0 | F94: 83487 | G94: -83487.1 | I94: 0 | J94: 0 | K94: 0 | M94: -0.1 | N94: 83487 | O94: -83487.1
A95: 5405 | B95: 10145 | C95: Finchley Catholic High School | D95: 514620.15 | E95: 0 | F95: 517084 | G95: -2463.85 | I95: 0.82 | J95: 0 | K95: 0.82 | M95: 514620.97 | N95: 517084 | O95: -2463.03
A96: 4003 | B96: 10139 | C96: Friern Barnet School | D96: 220868.72 | E96: 0 | F96: 300510 | G96: -79641.28 | I96: 29130.79 | J96: 9491 | K96: 19639.79 | M96: 249999.51 | N96: 310001 | O96: -60001.49
A97: 5427 | B97: 11174 | C97: JCoSS | D97: -1427.17 | E97: 0 | F97: 123972 | G97: -125399.17 | I97: 0 | J97: 0 | K97: 0 | M97: -1427.17 | N97: 123972 | O97: -125399.17
B98: 11513 | C98: Menorah High | D98: 30055.44 | F98: 0 | G98: 30055.44 | I98: 0 | J98: 0 | K98: 0 | M98: 30055.44 | N98: 0 | O98: 30055.44
A99: 5407 | B99: 10142 | C99: St James' Catholic High School | D99: 124247.52 | E99: 0 | F99: 108187 | G99: 16060.52 | I99: 0 | J99: 0 | K99: 0 | M99: 124247.52 | N99: 108187 | O99: 16060.52
A100: 5403 | B100: 10143 | C100: St Mary's CE High | D100: 6181.68 | E100: 0 | F100: 225826 | G100: -219644.32 | I100: 0 | J100: 0 | K100: 0 | M100: 6181.68 | N100: 225826 | O100: -219644.32
A101: 5404 | B101: 10148 | C101: St. Michael's Catholic Gram'r Sch. | D101: -98516.75 | E101: 0 | F101: 11789 | G101: -110305.75 | I101: 4443 | J101: 4443 | K101: 0 | M101: -94073.75 | N101: 16232 | O101: -110305.75
C103: Sub Total - Secondary Sector | D103: =SUM(D94:D102) -> 796029.49 | E103: =SUM(E94:E102) -> 0 | F103: =SUM(F94:F102) -> 1370855 | G103: =SUM(G94:G102) -> -574825.51 | I103: =SUM(I94:I102) -> 33574.61 | J103: =SUM(J94:J102) -> 13934 | K103: =SUM(K94:K102) -> 19640.61 | M103: =D103+I103 -> 829604.1 | N103: =F103+J103 -> 1384789 | O103: =M103-N103 -> -555184.9
A105: 7010 | B105: 10159 | C105: Mapledown School | D105: 77439.45 | E105: 0 | F105: 118167 | G105: -40727.55 | I105: 6463.75 | J105: 0 | K105: 6463.75 | M105: 83903.2 | N105: 118167 | O105: -34263.8
A106: 7005 | B106: 10157 | C106: Northway School | D106: 182559.21 | E106: 0 | F106: 107766 | G106: 74793.21 | I106: -0.08 | J106: -790 | K106: 789.92 | M106: 182559.13 | N106: 106976 | O106: 75583.13
A107: 7000 | B107: 10156 | C107: Oak Lodge School | D107: 163008.26 | E107: 0 | F107: 144502 | G107: 18506.26 | I107: 2579.31 | J107: 3166 | K107: -586.69 | M107: 165587.57 | N107: 147668 | O107: 17919.57
A108: 7009 | B108: 10158 | C108: Oakleigh School | D108: 203251.04 | E108: 0 | F108: 154313 | G108: 48938.04 | I108: 1790.13 | J108: 1712 | K108: 78.13 | M108: 205041.17 | N108: 156025 | O108: 49016.17
C110: Sub Total - Special Sector | D110: =SUM(D105:D109) -> 626257.96 | E110: =SUM(E105:E109) -> 0 | F110: =SUM(F105:F109) -> 524748 | G110: =SUM(G105:G109) -> 101509.96 | I110: =SUM(I105:I109) -> 10833.11 | J110: =SUM(J105:J109) -> 4088 | K110: =SUM(K105:K109) -> 6745.11 | M110: =D110+I110 -> 637091.07 | N110: =F110+J110 -> 528836 | O110: =M110-N110 -> 108255.07
B112: 10185 | C112: Northgate School | D112: 130915.42 | E112: 0 | F112: 72845 | G112: 58070.42 | I112: 13665.38 | J112: 9182 | K112: 4483.38 | M112: 144580.8 | N112: 82027 | O112: 62553.8
B113: 10188 | C113: Pavilion Study Centre | D113: 59022.41 | E113: 0 | F113: 260791 | G113: -201768.59 | I113: 10651.25 | J113: 9072 | K113: 1579.25 | M113: 69673.66 | N113: 269863 | O113: -200189.34
C114: Sub Total - Pupil referral units | D114: 189937.83 | E114: 0 | F114: 333636 | G114: -143698.17 | H114: 0 | I114: 24316.63 | J114: 18254 | K114: 6062.63 | L114: 0 | M114: 214254.46 | N114: 351890 | O114: -137635.54
C116: Sub Total All Sectors | D116: =D110+D103+D92+D10+D114 -> 11732089.52 | E116: 0 | F116: 12134839 | G116: -402749.48 | H116: 0 | I116: 324951.9 | J116: 165366 | K116: 159585.9 | L116: 0 | M116: 12057041.42 | N116: 12300205 | O116: =O110+O103+O92+O10+O114 -> -243163.58

Sheet check INTEGRA
O1: IN YR INCOME | T1: IN YR EXP | Z1: PAYROLL
B2: Transactions Totals | O2: CFR Inc + cap | T2: CFR Exp + cap | U2: Rev Bal | W2: Cap Bal | Z2: Payroll (E01-E08) | AA2: E31 | AB2: Total
O3: bal bfd | T3: bal bfwd
E4: School | F4: Transactions | G4: Report Total | H4: Non CFR Adj | O4: A | T4: B | U4: C | W4: D
B5: 1 | C5: 2 | D5: 3 | E5: 4 | F5: 5 | G5: 6 | H5: 7 | I5: 8 | J5: 9 | K5: 10 | L5: 11 | M5: 12 | N5: 13 | O5: 14 | P5: 15 | Q5: 16 | R5: 17 | S5: 18 | T5: 19 | U5: 20 | V5: 21 | W5: 22 | X5: 23 | Y5: 24 | Z5: 25 | AA5: 26 | AB5: 27
B6: 10130 | C6: 10130 Total | D6: Total | E6: Brookhill Nursery | F6: -157404.34 | G6: -157404.34 | H6: 0 | K6: -658839.03 | L6: -658839.03 | M6: -5830.25 | N6: -5830.25 | O6: -664669.28 | P6: 645736.36 | Q6: 645736.36 | R6: 5830 | S6: 5830 | T6: 651566.36 | U6: 158461.67 | V6: 1.25 | W6: 1.25 | X6: 145359 | Z6: 561530.77 | AA6: 0 | AB6: =SUM(Z6:AA6) -> 561530.77
B7: 10131 | C7: 10131 Total | D7: Total | E7: Hampden Way Nursery | F7: -90643.75 | G7: -90643.75 | H7: 0 | K7: -788271.22 | L7: -788271.22 | M7: -4580.5 | N7: -4580.5 | O7: -792851.72 | P7: 854995.07 | Q7: 854995.07 | R7: 7816.8 | S7: 7816.8 | T7: 862811.87 | U7: 125592.15 | V7: 8014.7 | W7: 8014.7 | X7: 192316 | Z7: 575286.46 | AA7: 141738.51 | AB7: =SUM(Z7:AA7) -> 717024.97
B8: 10132 | C8: 10132 Total | D8: Total | E8: Moss Hall Nursery | F8: -16386.77 | G8: -16386.77 | H8: 0 | K8: -728156.56 | L8: -728156.56 | M8: -5053 | N8: -5053 | O8: -733209.56 | P8: 700966.92 | Q8: 700966.92 | R8: 4921 | S8: 4921 | T8: 705887.92 | U8: 302766.64 | V8: 10046 | W8: 10046 | X8: 275577 | Z8: 616881.97 | AA8: 0 | AB8: 616881.97
B9: 10133 | C9: 10133 Total | D9: Total | E9: St Margaret's Nursery | F9: 85008.01 | G9: 85008.01 | H9: 0 | K9: -770265.07 | L9: -770265.07 | M9: -24850.25 | N9: -24850.25 | O9: -795115.32 | P9: 872801.38 | Q9: 872801.38 | R9: 29920.4 | S9: 29920.4 | T9: 902721.78 | U9: 29080.69 | V9: 1054.85 | W9: 1054.85 | X9: 131617 | Z9: 727454.83 | AA9: 0 | AB9: 727454.83
B10: 10159 | C10: 10159 Total | D10: Total | E10: Mapledown | F10: -28522.96 | G10: -28522.96 | H10: -8.367351256e-11 | K10: -2533571.36 | L10: -2533571.36 | M10: -6463.75 | N10: -6463.75 | O10: -2540035.11 | P10: 2574298.91 | Q10: 2574298.91 | R10: 0 | S10: 0 | T10: 2574298.91 | U10: 77439.45 | V10: 6463.75 | W10: 6463.75 | X10: 118167 | Z10: 2281769.28 | AA10: 0 | AB10: 2281769.28
B11: 10157 | C11: 10157 Total | D11: Total | E11: Northway | F11: 204444.89 | G11: 204444.89 | H11: 0 | K11: -2384970.75 | L11: -2384970.75 | M11: -14565.5 | N11: -14565.5 | O11: -2399536.25 | P11: 2310177.54 | Q11: 2310177.54 | R11: 13775.58 | S11: 13775.58 | T11: 2323953.12 | U11: 182559.21 | V11: -0.08 | W11: -0.08 | X11: 107766 | Z11: 1717923.88 | AA11: 0 | AB11: 1717923.88
B12: 10156 | C12: 10156 Total | D12: Total | E12: Oak Lodge | F12: -130242.5 | G12: -130242.5 | H12: 0 | K12: -3049050.31 | L12: -3049050.31 | M12: -16490.73 | N12: -16490.73 | O12: -3065541.04 | P12: 3030544.05 | Q12: 3030544.05 | R12: 17077.42 | S12: 17077.42 | T12: 3047621.47 | U12: 163008.26 | V12: 2579.31 | W12: 2579.31 | X12: 144502 | Z12: 2345347.13 | AA12: 0 | AB12: 2345347.13
B13: 10158 | C13: 10158 Total | D13: Total | E13: Oakleigh | F13: -18801.61 | G13: -18801.61 | H13: 0 | K13: -3477084.75 | L13: -3477084.75 | M13: -7304.13 | N13: -7304.13 | O13: -3484388.88 | P13: 3428146.71 | Q13: 3428146.71 | R13: 7226 | S13: 7226 | T13: 3435372.71 | U13: 203251.04 | V13: 1790.13 | W13: 1790.13 | X13: 154313 | Z13: 2493961.97 | AA13: 0 | AB13: 2493961.97
B14: 10185 | C14: 10185 Total | D14: Total | E14: Northgate | F14: -1467.19 | G14: -1467.19 | H14: -5.00222086e-12 | K14: -595017.57 | L14: -595017.57 | M14: -9083.38 | N14: -9083.38 | O14: -604100.95 | P14: 536947.15 | Q14: 536947.15 | R14: 4600 | S14: 4600 | T14: 541547.15 | U14: 130915.42 | V14: 13665.38 | W14: 13665.38 | X14: 72845 | Z14: 391395.38 | AA14: 0 | AB14: 391395.38
B15: 10188 | C15: 10188 Total | D15: Total | E15: Pavilion | F15: 107871.3 | G15: 107871.3 | H15: 0 | K15: -2394781.63 | L15: -2394781.63 | M15: -24861.8 | N15: -24861.8 | O15: -2419643.43 | P15: 2596550.22 | Q15: 2596550.22 | R15: 23282.55 | S15: 23282.55 | T15: 2619832.77 | U15: 59022.41 | V15: 10651.25 | W15: 10651.25 | X15: 260791 | Z15: 2000726.01 | AA15: 0 | AB15: 2000726.01
B16: 11094 | C16: 11094 Total | D16: Total | E16: Akiva | F16: 71429.98 | G16: 71429.98 | H16: 0 | K16: -2403701.18 | L16: -2403701.18 | M16: -68008.85 | N16: -68008.85 | O16: -2471710.03 | P16: 2447651.71 | Q16: 2447651.71 | R16: 24764.85 | S16: 24764.85 | T16: 2472416.56 | U16: -34411.53 | V16: 9.313225746e-12 | W16: 9.313225746e-12 | X16: 9539 | Z16: 1614539.8 | AA16: 0 | AB16: 1614539.8
B17: 10042 | C17: 10042 Total | D17: Total | E17: All Saints N20 | F17: 134042.78 | G17: 134042.78 | H17: 0 | K17: -1397362.31 | L17: -1397362.31 | M17: 0 | N17: 0 | O17: -1397362.31 | P17: 1380869.96 | Q17: 1380869.96 | R17: 0 | S17: 0 | T17: 1380869.96 | U17: 151873.35 | V17: 0 | W17: 0 | X17: 135381 | Z17: 923458.51 | AA17: 0 | AB17: 923458.51
B18: 10040 | C18: 10040 Total | D18: Total | E18: All Saints NW2 | F18: 93260.78 | G18: 93260.78 | H18: 0 | K18: -1251405.02 | L18: -1251405.02 | M18: 0 | N18: 0 | O18: -1251405.02 | P18: 1199032.72 | Q18: 1199032.72 | R18: 0 | S18: 0 | T18: 1199032.72 | U18: 205150.3 | V18: 0 | W18: 0 | X18: 152778 | Z18: 886693.89 | AA18: 0 | AB18: 886693.89
B19: 10043 | C19: 10043 Total | D19: Total | E19: Annunciation Inf | F19: 68743.22 | G19: 68743.22 | H19: 0 | K19: -993636.9 | L19: -993636.9 | M19: 0 | N19: 0 | O19: -993636.9 | P19: 996974.5 | Q19: 996974.5 | R19: 0 | S19: 0 | T19: 996974.5 | U19: 122676.4 | V19: 0 | W19: 0 | X19: 126014 | Z19: 842480.37 | AA19: 0 | AB19: 842480.37
B20: 10117 | C20: 10117 Total | D20: Total | E20: Annunciation Jun | F20: 109477.89 | G20: 109477.89 | H20: 0 | K20: -1159197.3 | L20: -1159197.3 | M20: 0 | N20: 0 | O20: -1159197.3 | P20: 1128465.02 | Q20: 1128465.02 | R20: 0 | S20: 0 | T20: 1128465.02 | U20: 60712.28 | V20: 0 | W20: 0 | X20: 29980 | Z20: 810160.07 | AA20: 0 | AB20: 810160.07
B21: 10044 | C21: 10044 Total | D21: Total | E21: Barnfield | F21: -34673.08 | G21: -34673.08 | H21: 8.003553376e-11 | K21: -3377597.42 | L21: -3377597.42 | M21: -35233.75 | N21: -35233.75 | O21: -3412831.17 | P21: 3389272.18 | Q21: 3389272.18 | R21: 35233.82 | S21: 35233.82 | T21: 3424506 | U21: 375651.24 | V21: -1.07 | W21: -1.07 | X21: 387326 | Z21: 2194389.62 | AA21: 262629.86 | AB21: 2457019.48
B22: 10128 | C22: 10128 Total | D22: Total | E22: Beis Yaakov | F22: 176465.91 | G22: 176465.91 | H22: 0 | K22: -2124460.21 | L22: -2124460.21 | M22: 0 | N22: 0 | O22: -2124460.21 | P22: 2024917.25 | Q22: 2024917.25 | R22: 0 | S22: 0 | T22: 2024917.25 | U22: 15010.96 | V22: 0 | W22: 0 | X22: -84532 | Z22: 1614424.87 | AA22: 0 | AB22: 1614424.87
B23: 11278 | C23: 11278 Total | D23: Total | E23: Beit Shvidler School | F23: -33808.41 | G23: -33808.41 | H23: 0 | K23: -1438851.15 | L23: -1438851.15 | N23: 0 | O23: -1438851.15 | P23: 1480831.58 | Q23: 1480831.58 | S23: 0 | T23: 1480831.58 | U23: 58611.57 | W23: 0 | X23: 100592 | Z23: 991323.48 | AA23: 0 | AB23: 991323.48
B24: 10045 | C24: 10045 Total | D24: Total | E24: Bell Lane | F24: 42438.67 | G24: 42438.67 | H24: 0 | K24: -2659213.1 | L24: -2659213.1 | M24: -8826.48 | N24: -8826.48 | O24: -2668039.58 | P24: 2652177.32 | Q24: 2652177.32 | R24: 0 | S24: 0 | T24: 2652177.32 | U24: 80741.78 | V24: 8826.48 | W24: 8826.48 | X24: 73706 | Z24: 1718755.93 | AA24: 215428.81 | AB24: 1934184.74
B25: 10115 | C25: 10115 Total | D25: Total | E25: Blessed Dominic | F25: 173716.55 | G25: 173716.55 | H25: 0 | K25: -2238787.98 | L25: -2238787.98 | M25: 0 | N25: 0 | O25: -2238787.98 | P25: 2271062.11 | Q25: 2271062.11 | R25: 0 | S25: 0 | T25: 2271062.11 | U25: 74706.87 | V25: 1 | W25: 1 | X25: 106981 | Z25: 1547162.08 | AA25: 0 | AB25: 1547162.08
B26: 10047 | C26: 10047 Total | D26: Total | E26: Brookland Inf | F26: 142413.97 | G26: 142413.97 | H26: 0 | K26: -1617447.25 | L26: -1617447.25 | M26: -27892.94 | N26: -27892.94 | O26: -1645340.19 | P26: 1594575.23 | Q26: 1594575.23 | R26: 40903 | S26: 40903 | T26: 1635478.23 | U26: 49818.02 | V26: 1423.94 | W26: 1423.94 | X26: 26946 | Z26: 1198051.04 | AA26: 0 | AB26: 1198051.04
B27: 10046 | C27: 10046 Total | D27: Total | E27: Brookland Jun | F27: 137246.18 | G27: 137246.18 | H27: 0 | K27: -1806337.23 | L27: -1806337.23 | M27: -8050 | N27: -8050 | O27: -1814387.23 | P27: 1758512.04 | Q27: 1758512.04 | R27: 7138 | S27: 7138 | T27: 1765650.04 | U27: 181476.19 | V27: 912 | W27: 912 | X27: 133651 | Z27: 1270862.06 | AA27: 0 | AB27: 1270862.06
B28: 10048 | C28: 10048 Total | D28: Total | E28: Brunswick Park | F28: 198995.82 | G28: 198995.82 | H28: 0 | K28: -2281980.9 | L28: -2281980.9 | M28: -32852 | N28: -32852 | O28: -2314832.9 | P28: 2306764.57 | Q28: 2306764.57 | R28: 35307 | S28: 35307 | T28: 2342071.57 | U28: 119745.33 | V28: 0 | W28: 0 | X28: 144529 | Z28: 1662553.09 | AA28: 0 | AB28: 1662553.09
B29: 10118 | C29: 10118 Total | D29: Total | E29: Chalgrove | F29: 180628.62 | G29: 180628.62 | H29: 0 | K29: -1502273.68 | L29: -1502273.68 | M29: -19059.5 | N29: -19059.5 | O29: -1521333.18 | P29: 1460498.58 | Q29: 1460498.58 | R29: 22916 | S29: 22916 | T29: 1483414.58 | U29: 126744.1 | V29: -1.5 | W29: -1.5 | X29: 84969 | Z29: 1058519.18 | AA29: 0 | AB29: 1058519.18
B30: 10049 | C30: 10049 Total | D30: Total | E30: Childs Hill | F30: 187794.27 | G30: 187794.27 | H30: 0 | K30: -2548684.05 | L30: -2548684.05 | M30: -46530.04 | N30: -46530.04 | O30: -2595214.09 | P30: 2626357.65 | Q30: 2626357.65 | R30: 46231.04 | S30: 46231.04 | T30: 2672588.69 | U30: 39642.4 | V30: 0 | W30: 0 | X30: 117316 | Z30: 1960714.48 | AA30: 3955.11 | AB30: 1964669.59
B31: 10050 | C31: 10050 Total | D31: Total | E31: Christchurch JMI | F31: 8214.52 | G31: 8214.52 | H31: -5.27506927e-11 | K31: -1175514.17 | L31: -1175514.17 | M31: 0 | N31: 0 | O31: -1175514.17 | P31: 1071089.07 | Q31: 1071089.07 | R31: 0 | S31: 0 | T31: 1071089.07 | U31: 175744.1 | V31: 0 | W31: 0 | X31: 71319 | Z31: 802213.95 | AA31: 0 | AB31: 802213.95
B32: 10051 | C32: 10051 Total | D32: Total | E32: Church Hill | F32: 76172.49 | G32: 76172.49 | H32: 0 | K32: -1238838.25 | L32: -1238838.25 | M32: -6610 | N32: -6610 | O32: -1245448.25 | P32: 1184120.82 | Q32: 1184120.82 | R32: 11052.5 | S32: 11052.5 | T32: 1195173.32 | U32: 89142.43 | V32: 161.5 | W32: 161.5 | X32: 34425 | Z32: 888121.63 | AA32: 0 | AB32: 888121.63
B33: 10054 | C33: 10054 Total | D33: Total | E33: Colindale | F33: 320877.85 | G33: 320877.85 | H33: 0 | K33: -4252955.5 | L33: -4252955.5 | M33: -44472.26 | N33: -44472.26 | O33: -4297427.76 | P33: 4228903.02 | Q33: 4228903.02 | R33: 44472.26 | S33: 44472.26 | T33: 4273375.28 | U33: 691029.48 | V33: 0 | W33: 0 | X33: 666977 | Z33: 2629368.78 | AA33: 0 | AB33: 2629368.78
B34: 10055 | C34: 10055 Total | D34: Total | E34: Coppetts Wood | F34: -110015.84 | G34: -110015.84 | H34: 0 | K34: -2160168.89 | L34: -2160168.89 | M34: -7066.75 | N34: -7066.75 | O34: -2167235.64 | P34: 2093284.09 | Q34: 2093284.09 | R34: 0 | S34: 0 | T34: 2093284.09 | U34: 416463.8 | V34: 7066.75 | W34: 7066.75 | X34: 349579 | Z34: 1385876.6 | AA34: 247516.39 | AB34: 1633392.99
B35: 10056 | C35: 10056 Total | D35: Total | E35: Courtland | F35: 95480.34 | G35: 95480.34 | H35: 0 | K35: -1124147.66 | L35: -1124147.66 | M35: -27821.19 | N35: -27821.19 | O35: -1151968.85 | P35: 1128869.33 | Q35: 1128869.33 | R35: 24955 | S35: 24955 | T35: 1153824.33 | U35: 12493.33 | V35: 11092.19 | W35: 11092.19 | X35: 17215 | Z35: 822445.06 | AA35: 0 | AB35: 822445.06
B36: 10057 | C36: 10057 Total | D36: Total | E36: Cromer Road | F36: 183905.87 | G36: 183905.87 | H36: 0 | K36: -2165056.34 | L36: -2165056.34 | M36: -8680 | N36: -8680 | O36: -2173736.34 | P36: 2220585.97 | Q36: 2220585.97 | R36: 3167.8 | S36: 3167.8 | T36: 2223753.77 | U36: 137978.37 | V36: 14715.2 | W36: 14715.2 | X36: 193508 | Z36: 1662673.69 | AA36: 0 | AB36: 1662673.69
B37: 10083 | C37: 10083 Total | D37: Total | E37: Danegrove | F37: 54021.38 | G37: 54021.38 | H37: 0 | K37: -3478532.63 | L37: -3478532.63 | M37: -11323.75 | N37: -11323.75 | O37: -3489856.38 | P37: 3455016.84 | Q37: 3455016.84 | R37: 17943 | S37: 17943 | T37: 3472959.84 | U37: 461078.79 | V37: -0.25 | W37: -0.25 | X37: 437563 | Z37: 2589283.02 | AA37: 1734 | AB37: 2591017.02
B38: 10059 | C38: 10059 Total | D38: Total | E38: Deansbrook Inf | F38: 98917.74 | G38: 98917.74 | H38: 0 | K38: -1723891.85 | L38: -1723891.85 | M38: -7782.25 | N38: -7782.25 | O38: -1731674.1 | P38: 1763865.29 | Q38: 1763865.29 | R38: 0 | S38: 0 | T38: 1763865.29 | U38: 36222.56 | V38: 15618.25 | W38: 15618.25 | X38: 76196 | Z38: 1424096.62 | AA38: 0 | AB38: 1424096.62
B39: 10061 | C39: 10061 Total | D39: Total | E39: Dollis Inf | F39: 105213.06 | G39: 105213.06 | H39: 0 | K39: -1844336.4 | L39: -1844336.4 | M39: -44521.9 | N39: -44521.9 | O39: -1888858.3 | P39: 1800877.85 | Q39: 1800877.85 | R39: 27998.93 | S39: 27998.93 | T39: 1828876.78 | U39: 84238.55 | V39: 16523.97 | W39: 16523.97 | X39: 40780 | Z39: 1367202.41 | AA39: 0 | AB39: 1367202.41
B40: 10060 | C40: 10060 Total | D40: Total | E40: Dollis Junior | F40: 101242.8 | G40: 101242.8 | H40: -1.746229827e-10 | K40: -2160976.34 | L40: -2160976.34 | M40: -7870 | N40: -7870 | O40: -2168846.34 | P40: 2171224.99 | Q40: 2171224.99 | R40: 2605 | S40: 2605 | T40: 2173829.99 | U40: 32911.35 | V40: 5264 | W40: 5264 | X40: 43160 | Z40: 1555046.73 | AA40: 0 | AB40: 1555046.73
B41: 10063 | C41: 10063 Total | D41: Total | E41: Edgware Primary | F41: 271967.53 | G41: 271967.53 | H41: 0 | K41: -3491563.09 | L41: -3491563.09 | M41: -11146 | N41: -11146 | O41: -3502709.09 | P41: 3539172.81 | Q41: 3539172.81 | R41: 12677.4 | S41: 12677.4 | T41: 3551850.21 | U41: 16604.28 | V41: 641.6 | W41: 641.6 | X41: 64214 | Z41: 2585171.99 | AA41: 0 | AB41: 2585171.99
B42: 10064 | C42: 10064 Total | D42: Total | E42: Fairway | F42: -132245.29 | G42: -132245.29 | H42: 0 | K42: -2103905.61 | L42: -2103905.61 | M42: -6952.44 | N42: -6952.44 | O42: -2110858.05 | P42: 2061091.89 | Q42: 2061091.89 | R42: 4663.37 | S42: 4663.37 | T42: 2065755.26 | U42: 170460.72 | V42: 39959.07 | W42: 39959.07 | X42: 127647 | Z42: 1070901.83 | AA42: 459761.63 | AB42: 1530663.46
B43: 10065 | C43: 10065 Total | D43: Total | E43: Foulds | F43: 116972.58 | G43: 116972.58 | H43: 0 | K43: -1607770.46 | L43: -1607770.46 | M43: -15351.75 | N43: -15351.75 | O43: -1623122.21 | P43: 1572999.88 | Q43: 1572999.88 | R43: 15658.9 | S43: 15658.9 | T43: 1588658.78 | U43: 96651.58 | V43: 9042.85 | W43: 9042.85 | X43: 61881 | Z43: 1198763.08 | AA43: 0 | AB43: 1198763.08
B44: 10066 | C44: 10066 Total | D44: Total | E44: Frith Manor | F44: 311724.78 | G44: 311724.78 | H44: 0 | K44: -3267456.39 | L44: -3267456.39 | M44: -11300.94 | N44: -11300.94 | O44: -3278757.33 | P44: 3319448.44 | Q44: 3319448.44 | R44: 15259.76 | S44: 15259.76 | T44: 3334708.2 | U44: 1968.95 | V44: 10303.18 | W44: 10303.18 | X44: 53961 | Z44: 2526427.14 | AA44: 0 | AB44: 2526427.14
B45: 10068 | C45: 10068 Total | D45: Total | E45: Garden Suburb Inf | F45: 110959.86 | G45: 110959.86 | H45: 0 | K45: -1358938.05 | L45: -1358938.05 | M45: -6925 | N45: -6925 | O45: -1365863.05 | P45: 1375979.62 | Q45: 1375979.62 | R45: 0 | S45: 0 | T45: 1375979.62 | U45: 54373.43 | V45: 11223 | W45: 11223 | X45: 71415 | Z45: 1073753.63 | AA45: 0 | AB45: 1073753.63
B46: 10067 | C46: 10067 Total | D46: Total | E46: Garden Suburb Jnr | F46: 185497.27 | G46: 185497.27 | H46: 0 | K46: -1846162.65 | L46: -1846162.65 | M46: -7982.5 | N46: -7982.5 | O46: -1854145.15 | P46: 1821410.44 | Q46: 1821410.44 | R46: 6778.27 | S46: 6778.27 | T46: 1828188.71 | U46: 105199.21 | V46: 3259.23 | W46: 3259.23 | X46: 80447 | Z46: 1263926.3 | AA46: 0 | AB46: 1263926.3
B47: 10069 | C47: 10069 Total | D47: Total | E47: Goldbeaters | F47: 169131.24 | G47: 169131.24 | H47: 0 | K47: -2704544.78 | L47: -2704544.78 | M47: -8970.25 | N47: -8970.25 | O47: -2713515.03 | P47: 2759209.94 | Q47: 2759209.94 | R47: 0 | S47: 0 | T47: 2759209.94 | U47: -10195.16 | V47: 8969.25 | W47: 8969.25 | X47: 44470 | Z47: 1960878.06 | AA47: 0 | AB47: 1960878.06
B48: 10121 | C48: 10121 Total | D48: Total | E48: Hasmonean Primary | F48: 78210.31 | G48: 78210.31 | H48: 0 | K48: -1299664.29 | L48: -1299664.29 | N48: 0 | O48: -1299664.29 | P48: 1238641.32 | Q48: 1238641.32 | S48: 0 | T48: 1238641.32 | U48: -1986.03 | W48: 0 | X48: -63009 | Z48: 976148.59 | AA48: 0 | AB48: 976148.59
B49: 10071 | C49: 10071 Total | D49: Total | E49: Hollickwood | F49: 92077.08 | G49: 92077.08 | H49: 0 | K49: -1438369.14 | L49: -1438369.14 | M49: -6614.05 | N49: -6614.05 | O49: -1444983.19 | P49: 1354965.47 | Q49: 1354965.47 | R49: 0 | S49: 0 | T49: 1354965.47 | U49: 156272.67 | V49: 7817.05 | W49: 7817.05 | X49: 72869 | Z49: 1003893.88 | AA49: 0 | AB49: 1003893.88
B50: 10072 | C50: 10072 Total | D50: Total | E50: Holly Park | F50: 253156.78 | G50: 253156.78 | H50: 0 | K50: -2636021.46 | L50: -2636021.46 | M50: -9818.5 | N50: -9818.5 | O50: -2645839.96 | P50: 2582348.09 | Q50: 2582348.09 | R50: 9828 | S50: 9828 | T50: 2592176.09 | U50: 74560.37 | V50: -0.5 | W50: -0.5 | X50: 20887 | Z50: 2018774.36 | AA50: 0 | AB50: 2018774.36
B51: 10073 | C51: 10073 Total | D51: Total | E51: Holy Trinity | F51: 117430.7 | G51: 117430.7 | H51: 0 | K51: -1454586.57 | L51: -1454586.57 | M51: 0 | N51: 0 | O51: -1454586.57 | P51: 1362385.41 | Q51: 1362385.41 | R51: 0 | S51: 0 | T51: 1362385.41 | U51: 126491.16 | V51: -1 | W51: -1 | X51: 34290 | Z51: 945551.14 | AA51: 0 | AB51: 945551.14
B52: 10074 | C52: 10074 Total | D52: Total | E52: Livingstone | F52: 177614.02 | G52: 177614.02 | H52: 0 | K52: -2377946.2 | L52: -2377946.2 | M52: -21218.66 | N52: -21218.66 | O52: -2399164.86 | P52: 2318658.29 | Q52: 2318658.29 | R52: 21250.66 | S52: 21250.66 | T52: 2339908.95 | U52: 452448.91 | V52: 0 | W52: 0 | X52: 393161 | Z52: 1692319.85 | AA52: 0 | AB52: 1692319.85
B53: 10075 | C53: 10075 Total | D53: Total | E53: Manorside | F53: 88621.3 | G53: 88621.3 | H53: 0 | K53: -1642901.42 | L53: -1642901.42 | M53: -7384 | N53: -7384 | O53: -1650285.42 | P53: 1613026.43 | Q53: 1613026.43 | R53: 0 | S53: 0 | T53: 1613026.43 | U53: 13575.99 | V53: 7717 | W53: 7717 | X53: -16299 | Z53: 1441718.83 | AA53: 0 | AB53: 1441718.83
B54: 11093 | C54: 11093 Total | D54: Total | E54: Martin Primary School | F54: 329721.56 | G54: 329721.56 | H54: -4.656612873e-10 | K54: -3441054.03 | L54: -3441054.03 | M54: -10576.56 | N54: -10576.56 | O54: -3451630.59 | P54: 3397286.98 | Q54: 3397286.98 | R54: 6362.18 | S54: 6362.18 | T54: 3403649.16 | U54: 178533.05 | V54: 4214.38 | W54: 4214.38 | X54: 134766 | Z54: 2679006.4 | AA54: 0 | AB54: 2679006.4
B55: 10125 | C55: 10125 Total | D55: Total | E55: Mathilda Marks Kennedy | F55: 40832.4 | G55: 40832.4 | H55: 0 | K55: -1399541.3 | L55: -1399541.3 | N55: 0 | O55: -1399541.3 | P55: 1391719.23 | Q55: 1391719.23 | S55: 0 | T55: 1391719.23 | U55: 24291.07 | W55: 0 | X55: 16469 | Z55: 1089001.21 | AA55: 0 | AB55: 1089001.21
B56: 10126 | C56: 10126 Total | D56: Total | E56: Menorah Foundation | F56: -39362.77 | G56: -39362.77 | H56: 7.275957614e-11 | K56: -1819707.42 | L56: -1819707.42 | N56: 0 | O56: -1819707.42 | P56: 1778540.57 | Q56: 1778540.57 | S56: 0 | T56: 1778540.57 | U56: 64642.85 | W56: 0 | X56: 23476 | Z56: 1310292.73 | AA56: 0 | AB56: 1310292.73
B57: 10114 | C57: 10114 Total | D57: Total | E57: Menorah Primary | F57: 137927.32 | G57: 137927.32 | H57: 0 | K57: -1999920.62 | L57: -1999920.62 | M57: -2925.98 | N57: -2925.98 | O57: -2002846.6 | P57: 1976292.19 | Q57: 1976292.19 | R57: 2925.58 | S57: 2925.58 | T57: 1979217.77 | U57: -1759.57 | V57: 0.4 | W57: 0.4 | X57: -25388 | Z57: 1549177.63 | AA57: 0 | AB57: 1549177.63
B58: 10078 | C58: 10078 Total | D58: Total | E58: Monken Hadley CE | F58: 25335.26 | G58: 25335.26 | H58: 0 | K58: -785473.31 | L58: -785473.31 | M58: 0 | N58: 0 | O58: -785473.31 | P58: 685210.84 | Q58: 685210.84 | R58: 0 | S58: 0 | T58: 685210.84 | U58: 163465.47 | V58: 0 | W58: 0 | X58: 63203 | Z58: 504845.78 | AA58: 0 | AB58: 504845.78
B59: 10079 | C59: 10079 Total | D59: Total | E59: Monkfrith | F59: 57967.37 | G59: 57967.37 | H59: 0 | K59: -1630170.96 | L59: -1630170.96 | M59: -48511.44 | N59: -48511.44 | O59: -1678682.4 | P59: 1619608.69 | Q59: 1619608.69 | R59: 55290 | S59: 55290 | T59: 1674898.69 | U59: 122305.27 | V59: 0.44 | W59: 0.44 | X59: 111743 | Z59: 1295931.95 | AA59: 0 | AB59: 1295931.95
B60: 10081 | C60: 10081 Total | D60: Total | E60: Moss Hall Inf | F60: 173348.77 | G60: 173348.77 | H60: 0 | K60: -1976744.24 | L60: -1976744.24 | M60: -10918.13 | N60: -10918.13 | O60: -1987662.37 | P60: 2010029.66 | Q60: 2010029.66 | R60: 10917.88 | S60: 10917.88 | T60: 2020947.54 | U60: 72560.58 | V60: 0.25 | W60: 0.25 | X60: 105846 | Z60: 1505802.65 | AA60: 0 | AB60: 1505802.65
B61: 10080 | C61: 10080 Total | D61: Total | E61: Moss Hall Jun | F61: 195804.67 | G61: 195804.67 | H61: 0 | K61: -2100321.06 | L61: -2100321.06 | M61: -6240 | N61: -6240 | O61: -2106561.06 | P61: 1751626.9 | Q61: 1751626.9 | R61: 30635.72 | S61: 30635.72 | T61: 1782262.62 | U61: 558499.16 | V61: -24396.72 | W61: -24396.72 | X61: 191665 | Z61: 1491652.59 | AA61: 0 | AB61: 1491652.59
B62: 10082 | C62: 10082 Total | D62: Total | E62: Northside | F62: 85213.33 | G62: 85213.33 | H62: 0 | K62: -1562528.47 | L62: -1562528.47 | M62: -103110.31 | N62: -103110.31 | O62: -1665638.78 | P62: 1604703.76 | Q62: 1604703.76 | R62: 108743.35 | S62: 108743.35 | T62: 1713447.11 | U62: 399998.71 | V62: 13508.96 | W62: 13508.96 | X62: 442174 | Z62: 1156424.92 | AA62: 0 | AB62: 1156424.92
B63: 10127 | C63: 10127 Total | D63: Total | E63: Orion | F63: 686320.66 | G63: 686320.66 | H63: 0 | K63: -5623876.94 | L63: -5623876.94 | M63: -12091.25 | N63: -12091.25 | O63: -5635968.19 | P63: 5646535.22 | Q63: 5646535.22 | R63: 5819.5 | S63: 5819.5 | T63: 5652354.72 | U63: 120926.72 | V63: -14020.25 | W63: -14020.25 | X63: 143585 | Z63: 3930917.03 | AA63: 0 | AB63: 3930917.03
B64: 10084 | C64: 10084 Total | D64: Total | E64: Osidge JMI | F64: 52462.43 | G64: 52462.43 | H64: 1.527951099e-10 | K64: -2209500.5 | L64: -2209500.5 | M64: -10800.25 | N64: -10800.25 | O64: -2220300.75 | P64: 2202152.32 | Q64: 2202152.32 | R64: 10800 | S64: 10800 | T64: 2212952.32 | U64: 188193.18 | V64: 0.25 | W64: 0.25 | X64: 180845 | Z64: 1584447.54 | AA64: 0 | AB64: 1584447.54
B65: 10085 | C65: 10085 Total | D65: Total | E65: Our Lady of Lourdes | F65: 77328.09 | G65: 77328.09 | H65: 0 | K65: -1289080.25 | L65: -1289080.25 | M65: 0 | N65: 0 | O65: -1289080.25 | P65: 1300250.6 | Q65: 1300250.6 | R65: 0 | S65: 0 | T65: 1300250.6 | U65: 61777.65 | V65: 1 | W65: 1 | X65: 72948 | Z65: 881435.4 | AA65: 0 | AB65: 881435.4
B66: 10129 | C66: 10129 Total | D66: Total | E66: Pardes House | F66: 113658.46 | G66: 113658.46 | H66: 0 | K66: -1553986.05 | L66: -1553986.05 | N66: 0 | O66: -1553986.05 | P66: 1450846.59 | Q66: 1450846.59 | S66: 0 | T66: 1450846.59 | U66: 51517.46 | W66: 0 | X66: -51622 | Z66: 1039724.83 | AA66: 0 | AB66: 1039724.83
B67: 10119 | C67: 10119 Total | D67: Total | E67: Queenswell Inf | F67: 165159.82 | G67: 165159.82 | H67: 0 | K67: -1670334.72 | L67: -1670334.72 | M67: -40695.63 | N67: -40695.63 | O67: -1711030.35 | P67: 1744133.79 | Q67: 1744133.79 | R67: 33004.63 | S67: 33004.63 | T67: 1777138.42 | U67: 18395.93 | V67: 7691 | W67: 7691 | X67: 92195 | Z67: 1258799.75 | AA67: 0 | AB67: 1258799.75
B68: 10086 | C68: 10086 Total | D68: Total | E68: Queenswell Jun | F68: 65088.21 | G68: 65088.21 | H68: 9.458744898e-11 | K68: -1971911.83 | L68: -1971911.83 | M68: -7735.03 | N68: -7735.03 | O68: -1979646.86 | P68: 1978518.83 | Q68: 1978518.83 | R68: 5861.75 | S68: 5861.75 | T68: 1984380.58 | U68: 66539 | V68: 1872.28 | W68: 1872.28 | X68: 73146 | Z68: 1586778.67 | AA68: 0 | AB68: 1586778.67
B69: 10112 | C69: 10112 Total | D69: Total | E69: Rosh Pinah | F69: 166202.1 | G69: 166202.1 | H69: 0 | K69: -2599371.25 | L69: -2599371.25 | M69: 0 | N69: 0 | O69: -2599371.25 | P69: 2558404.47 | Q69: 2558404.47 | R69: 0 | S69: 0 | T69: 2558404.47 | U69: 32369.78 | V69: 0 | W69: 0 | X69: -8597 | Z69: 1837118.16 | AA69: 0 | AB69: 1837118.16
B70: 10110 | C70: 10110 Total | D70: Total | E70: Sacred Heart | F70: 195445.42 | G70: 195445.42 | H70: 0 | K70: -1993266.32 | L70: -1993266.32 | M70: -8963 | N70: -8963 | O70: -2002229.32 | P70: 1992381.56 | Q70: 1992381.56 | R70: 8963 | S70: 8963 | T70: 2001344.56 | U70: 144436.76 | V70: 0 | W70: 0 | X70: 143552 | Z70: 1409742.31 | AA70: 0 | AB70: 1409742.31
B71: 11381 | C71: 11381 Total | D71: Total | E71: Sacks Morasha | F71: 29193.26 | G71: 29193.26 | H71: -3.274180926e-11 | K71: -1115783.97 | L71: -1115783.97 | M71: -12364 | N71: -12364 | O71: -1128147.97 | P71: 1131150.13 | Q71: 1131150.13 | R71: 12364 | S71: 12364 | T71: 1143514.13 | U71: 64165.84 | V71: 1 | W71: 1 | X71: 79532 | Z71: 732140.25 | AA71: 0 | AB71: =SUM(Z71:AA71) -> 732140.25
B72: 10087 | C72: 10087 Total | D72: Total | E72: St Agnes RC | F72: 131668.93 | G72: 131668.93 | H72: 0 | K72: -1812781.24 | L72: -1812781.24 | M72: 0 | N72: 0 | O72: -1812781.24 | P72: 1778120.94 | Q72: 1778120.94 | R72: 0 | S72: 0 | T72: 1778120.94 | U72: 300440.3 | V72: 1 | W72: 1 | X72: 265780 | Z72: 1272357.19 | AA72: 0 | AB72: 1272357.19
B73: 10099 | C73: 10099 Total | D73: Total | E73: St Andrews CE | F73: 94137.77 | G73: 94137.77 | H73: 0 | K73: -1075469.02 | L73: -1075469.02 | N73: 0 | O73: -1075469.02 | P73: 1075250.25 | Q73: 1075250.25 | S73: 0 | T73: 1075250.25 | U73: 172133.77 | W73: 0 | X73: 171915 | Z73: 767722.54 | AA73: 0 | AB73: 767722.54
B74: 10088 | C74: 10088 Total | D74: Total | E74: St Catherines RC | F74: 202408.84 | G74: 202408.84 | H74: 0 | K74: -2468521.08 | L74: -2468521.08 | M74: 0 | N74: 0 | O74: -2468521.08 | P74: 2395680.37 | Q74: 2395680.37 | R74: 0 | S74: 0 | T74: 2395680.37 | U74: 231122.71 | V74: 0 | W74: 0 | X74: 158282 | Z74: 1763682.06 | AA74: 0 | AB74: 1763682.06
B75: 10089 | C75: 10089 Total | D75: Total | E75: St Johns CE N11 | F75: 122316.9 | G75: 122316.9 | H75: 0 | K75: -1291559.83 | L75: -1291559.83 | M75: 0 | N75: 0 | O75: -1291559.83 | P75: 1350221.12 | Q75: 1350221.12 | R75: 0 | S75: 0 | T75: 1350221.12 | U75: 49400.71 | V75: 0 | W75: 0 | X75: 108062 | Z75: 870771.66 | AA75: 0 | AB75: 870771.66
B76: 10116 | C76: 10116 Total | D76: Total | E76: St Johns CE N20 | F76: 31427.2 | G76: 31427.2 | H76: 3.274180926e-11 | K76: -1235572.94 | L76: -1235572.94 | M76: 0 | N76: 0 | O76: -1235572.94 | P76: 1238178.29 | Q76: 1238178.29 | R76: 0 | S76: 0 | T76: 1238178.29 | U76: 27280.65 | V76: 0 | W76: 0 | X76: 29886 | Z76: 931275.92 | AA76: 0 | AB76: 931275.92
B77: 10107 | C77: 10107 Total | D77: Total | E77: St Josephs RC Jun | F77: 208977.85 | G77: 208977.85 | H77: 0 | K77: -2543707.53 | L77: -2543707.53 | M77: 0 | N77: 0 | O77: -2543707.53 | P77: 2661735.95 | Q77: 2661735.95 | R77: 0 | S77: 0 | T77: 2661735.95 | U77: -101168.42 | V77: 0 | W77: 0 | X77: 16860 | Z77: 2024190.17 | AA77: 0 | AB77: 2024190.17
B78: 10698 | C78: 10698 Total | D78: Total | E78: St Mary's & St Johns Primary | F78: 253933.45 | G78: 253933.45 | H78: 0 | K78: -4910337.84 | L78: -4910337.84 | M78: 0 | N78: 0 | O78: -4910337.84 | P78: 4717194.62 | Q78: 4717194.62 | R78: 17866.23 | S78: 17866.23 | T78: 4735060.85 | U78: 370562.22 | V78: 2371.77 | W78: 2371.77 | X78: 177419 | Z78: 3447466.34 | AA78: 0 | AB78: 3447466.34
B79: 10093 | C79: 10093 Total | D79: Total | E79: St Marys CE EB | F79: 90007.99 | G79: 90007.99 | H79: 0 | K79: -1159448.03 | L79: -1159448.03 | M79: 0 | N79: 0 | O79: -1159448.03 | P79: 1130683.23 | Q79: 1130683.23 | R79: 0 | S79: 0 | T79: 1130683.23 | U79: 62592.8 | V79: 0 | W79: 0 | X79: 33828 | Z79: 851193 | AA79: 0 | AB79: 851193
B80: 10092 | C80: 10092 Total | D80: Total | E80: St Marys CE N3 | F80: 151531 | G80: 151531 | H80: 0 | K80: -2152277.15 | L80: -2152277.15 | M80: 0 | N80: 0 | O80: -2152277.15 | P80: 2174966.83 | Q80: 2174966.83 | R80: 0 | S80: 0 | T80: 2174966.83 | U80: 78078.32 | V80: 0 | W80: 0 | X80: 100768 | Z80: 1580716.77 | AA80: 0 | AB80: 1580716.77
B81: 10094 | C81: 10094 Total | D81: Total | E81: St Pauls CE N11 | F81: 118002.51 | G81: 118002.51 | H81: 0 | K81: -1201842.39 | L81: -1201842.39 | M81: -2850 | N81: -2850 | O81: -1204692.39 | P81: 1201253.25 | Q81: 1201253.25 | R81: 2850 | S81: 2850 | T81: 1204103.25 | U81: 253746.14 | V81: 0 | W81: 0 | X81: 253157 | Z81: 872645.53 | AA81: 0 | AB81: 872645.53
B82: 10095 | C82: 10095 Total | D82: Total | E82: St Pauls CE NW7 | F82: 56968.83 | G82: 56968.83 | H82: 1.382431947e-10 | K82: -1150437.67 | L82: -1150437.67 | M82: 0 | N82: 0 | O82: -1150437.67 | P82: 1173206.73 | Q82: 1173206.73 | R82: 0 | S82: 0 | T82: 1173206.73 | U82: 23741.94 | V82: 0 | W82: 0 | X82: 46511 | Z82: 827789.08 | AA82: 0 | AB82: 827789.08
B83: 10108 | C83: 10108 Total | D83: Total | E83: St Theresas RC | F83: 151145.08 | G83: 151145.08 | H83: 0 | K83: -1178875.36 | L83: -1178875.36 | M83: 0 | N83: 0 | O83: -1178875.36 | P83: 1174646.26 | Q83: 1174646.26 | R83: 0 | S83: 0 | T83: 1174646.26 | U83: 23559.1 | V83: 0 | W83: 0 | X83: 19330 | Z83: 849659.72 | AA83: 0 | AB83: 849659.72
B84: 10096 | C84: 10096 Total | D84: Total | E84: St Vincents RC | F84: 130150.75 | G84: 130150.75 | H84: 0 | K84: -1584228.57 | L84: -1584228.57 | M84: -24621.6 | N84: -24621.6 | O84: -1608850.17 | P84: 1601336.44 | Q84: 1601336.44 | R84: 24621.6 | S84: 24621.6 | T84: 1625958.04 | U84: 115609.13 | V84: -1 | W84: -1 | X84: 132717 | Z84: 1232295.3 | AA84: 0 | AB84: 1232295.3
B85: 10098 | C85: 10098 Total | D85: Total | E85: Summerside | F85: 264301.71 | G85: 264301.71 | H85: 0 | K85: -3097477.16 | L85: -3097477.16 | M85: -14916.53 | N85: -14916.53 | O85: -3112393.69 | P85: 3042979.84 | Q85: 3042979.84 | R85: 12542.29 | S85: 12542.29 | T85: 3055522.13 | U85: 100079.32 | V85: 2374.24 | W85: 2374.24 | X85: 45582 | Z85: 2263318.59 | AA85: 0 | AB85: 2263318.59
B86: 10097 | C86: 10097 Total | D86: Total | E86: Sunnyfields | F86: 126970.42 | G86: 126970.42 | H86: 0 | K86: -1476550.64 | L86: -1476550.64 | M86: -6673 | N86: -6673 | O86: -1483223.64 | P86: 1428486.51 | Q86: 1428486.51 | R86: 0 | S86: 0 | T86: 1428486.51 | U86: 143408.13 | V86: 6674 | W86: 6674 | X86: 95344 | Z86: 1095469.95 | AA86: 0 | AB86: 1095469.95
B87: 10100 | C87: 10100 Total | D87: Total | E87: Trent | F87: 82426.98 | G87: 82426.98 | H87: 0 | K87: -1054665.93 | L87: -1054665.93 | M87: 0 | N87: 0 | O87: -1054665.93 | P87: 1057715.66 | Q87: 1057715.66 | R87: 0 | S87: 0 | T87: 1057715.66 | U87: 13208.27 | V87: 0 | W87: 0 | X87: 16258 | Z87: 765113.82 | AA87: 0 | AB87: 765113.82
B88: 10101 | C88: 10101 Total | D88: Total | E88: Tudor | F88: 141017.55 | G88: 141017.55 | H88: 0 | K88: -1472462.61 | L88: -1472462.61 | M88: -6592 | N88: -6592 | O88: -1479054.61 | P88: 1541734.69 | Q88: 1541734.69 | R88: 11652.71 | S88: 11652.71 | T88: 1553387.4 | U88: -48708.08 | V88: 1483.29 | W88: 1483.29 | X88: 20564 | Z88: 1081537.02 | AA88: 0 | AB88: 1081537.02
B89: 10103 | C89: 10103 Total | D89: Total | E89: Underhill School | F89: 2402.04 | G89: 2402.04 | H89: 0 | K89: -3697116.47 | L89: -3697116.47 | M89: -13468.25 | N89: -13468.25 | O89: -3710584.72 | P89: 3670038.32 | Q89: 3670038.32 | R89: 13467.91 | S89: 13467.91 | T89: 3683506.23 | U89: 184595.15 | V89: 0.34 | W89: 0.34 | X89: 157517 | Z89: 2653806.52 | AA89: 215848.72 | AB89: 2869655.24
B90: 10124 | C90: 10124 Total | D90: Total | E90: Wessex Gardens | F90: 151435.84 | G90: 151435.84 | H90: 0 | K90: -2675783.24 | L90: -2675783.24 | M90: -198201.5 | N90: -198201.5 | O90: -2873984.74 | P90: 2849392.93 | Q90: 2849392.93 | R90: 228056.5 | S90: 228056.5 | T90: 3077449.43 | U90: 192232.31 | V90: 16066 | W90: 16066 | X90: 365842 | Z90: 1845904.65 | AA90: 0 | AB90: 1845904.65
B91: 10105 | C91: 10105 Total | D91: Total | E91: Whitings Hill | F91: 274388.55 | G91: 274388.55 | H91: 0 | K91: -2790714.34 | L91: -2790714.34 | M91: -33576.25 | N91: -33576.25 | O91: -2824290.59 | P91: 2882161.29 | Q91: 2882161.29 | R91: 20152 | S91: 20152 | T91: 2902313.29 | U91: 141636.05 | V91: -1669.75 | W91: -1669.75 | X91: 233083 | Z91: 2037068.49 | AA91: 0 | AB91: 2037068.49
B92: 10123 | C92: 10123 Total | D92: Total | E92: Woodcroft Primary | F92: 276217.11 | G92: 276217.11 | H92: 0 | K92: -2830240.4 | L92: -2830240.4 | M92: -24807.5 | N92: -24807.5 | O92: -2855047.9 | P92: 2862810.54 | Q92: 2862810.54 | R92: 30998.29 | S92: 30998.29 | T92: 2893808.83 | U92: 97408.86 | V92: 2919.21 | W92: 2919.21 | X92: 129979 | Z92: 2038243.36 | AA92: 0 | AB92: 2038243.36
B93: 10109 | C93: 10109 Total | D93: Total | E93: Woodridge | F93: 130876.9 | G93: 130876.9 | H93: 0 | K93: -1235176.12 | L93: -1235176.12 | M93: -6700 | N93: -6700 | O93: -1241876.12 | P93: 1285034.06 | Q93: 1285034.06 | R93: 15332.5 | S93: 15332.5 | T93: 1300366.56 | U93: 70041.06 | V93: 4757.5 | W93: 4757.5 | X93: 119899 | Z93: 963760.98 | AA93: 0 | AB93: 963760.98
B94: 10137 | C94: 10137 Total | D94: Total | E94: Bishop Douglass | F94: 166780.71 | G94: 166780.71 | K94: -1985556.46 | L94: -1985556.46 | M94: 0 | N94: 0 | O94: -1985556.46 | P94: 2069043.56 | Q94: 2069043.56 | R94: 0 | S94: 0 | T94: 2069043.56 | U94: -0.1 | V94: 0 | W94: 0 | X94: 83487 | Z94: 1568898.2 | AA94: 0 | AB94: 1568898.2
B95: 10145 | C95: 10145 Total | D95: Total | E95: Finchley Catholic High | F95: 563652.7 | G95: 563652.7 | H95: 0 | K95: -6863393.2 | L95: -6863393.2 | M95: -19518 | N95: -19518 | O95: -6882911.2 | P95: 6865857.05 | Q95: 6865857.05 | R95: 19517.18 | S95: 19517.18 | T95: 6885374.23 | U95: 514620.15 | V95: 0.82 | W95: 0.82 | X95: 517084 | Z95: 5394172.44 | AA95: 3537.41 | AB95: 5397709.85
B96: 10139 | C96: 10139 Total | D96: Total | E96: Friern Barnet | F96: 197500.47 | G96: 197500.47 | H96: -4.074536264e-10 | K96: -5453527.48 | L96: -5453527.48 | M96: -126857.86 | N96: -126857.86 | O96: -5580385.34 | P96: 5533168.76 | Q96: 5533168.76 | R96: 107218.07 | S96: 107218.07 | T96: 5640386.83 | U96: 220868.72 | V96: 29130.79 | W96: 29130.79 | X96: 300510 | Z96: 4511187.33 | AA96: 0 | AB96: 4511187.33
B97: 11174 | C97: 11174 Total | D97: Total | E97: JCoSS | F97: -15362.31 | G97: -15362.31 | H97: -6.002665032e-11 | K97: -10236907.9 | L97: -10236907.9 | N97: 0 | O97: -10236907.9 | P97: 10362307.07 | Q97: 10362307.07 | S97: 0 | T97: 10362307.07 | U97: -1427.17 | W97: 0 | X97: 123972 | Z97: 7607290.09 | AA97: 0 | AB97: 7607290.09
B98: 10142 | C98: 10142 Total | D98: Total | E98: St James' Catholic High | F98: 169611.01 | G98: 169611.01 | H98: 0 | K98: -6595824.82 | L98: -6595824.82 | N98: 0 | O98: -6595824.82 | P98: 6579764.3 | Q98: 6579764.3 | S98: 0 | T98: 6579764.3 | U98: 124247.52 | W98: 0 | X98: 108187 | Z98: 5314098.89 | AA98: 0 | AB98: 5314098.89
B99: 10143 | C99: 10143 Total | D99: Total | E99: St Mary's C E High | F99: 13741.18 | G99: 13741.18 | H99: 0 | K99: -559787.61 | L99: -559787.61 | N99: 0 | O99: -559787.61 | P99: 779431.93 | Q99: 779431.93 | S99: 0 | T99: 779431.93 | U99: 6181.68 | W99: 0 | X99: 225826 | Z99: 666097.27 | AA99: 0 | AB99: 666097.27
B100: 10148 | C100: 10148 Total | D100: Total | E100: St Michaels Cath Gram | F100: 58380.38 | G100: 58380.38 | H100: 1.091393642e-10 | K100: -4697117.19 | L100: -4697117.19 | N100: 0 | O100: -4697117.19 | P100: 4807422.94 | Q100: 4807422.94 | R100: 0 | S100: 0 | T100: 4807422.94 | U100: -98516.75 | V100: 4443 | W100: 4443 | X100: 11789 | Z100: 3682270.24 | AA100: 0 | AB100: 3682270.24
B101: 11513 | C101: 11513 Total | D101: Total | E101: Menorah High | F101: 55483.22 | G101: 55483.22 | H101: 0 | L101: 0 | N101: 0 | O101: -1754037.05 | P101: 4807422.94 | Q101: 4807422.94 | R101: 0 | S101: 0 | T101: 1723981.61 | U101: 30055.44 | V101: 4443 | W101: 0 | X101: 0 | Z101: 1390341.53 | AA101: 0 | AB101: 1390341.53
H102: =SUM(H6:H100) -> -6.016307452e-10

Sheet Allocation of spring claim
C2: 1 | D2: 2 | E2: 3 | F2: 4 | G2: 5 | H2: 6 | I2: 7 | J2: 8
B3: Sum of Total Claim | D3: Type | M3: 1 | N3: 2 | O3: 3 | P3: 4 | Q3: 5 | S3: 1 | T3: 2 | U3: 3 | V3: 4 | W3: 5 | X3: 6
B4: School | C4: Cost Centre | D4: LTS | E4: MAT | F4: MTS | G4: Grand Total | H4: less MTS Pool Clawback | I4: Add LTS-MAT Pool Rebate 16-17 | J4: Total Amount Due | M4: Document Ref | P4: Amount | Q4: Amount | S4: CC | T4: GL | U4: Line Narrative | V4: GL Code | W4: Value | X4: Dr / Cr Ind
B5: Akiva | C5: 11094 | E5: 12982.84 | G5: =SUM(D5:F5) -> 12982.84 | H5: 0 | I5: =VLOOKUP(C5,$S$4:$X$74,5,0) -> 691.32 | J5: =G5-H5+I5 -> 13674.16 | M5: Integra G/L Account | N5: GL | O5: Descritpion | P5: Debit | Q5: Credit | S5: 11094 | T5: 138110 | U5: LTS-MAT Pool Rebate 16-17 | V5: 11094138110 | W5: 691.32 | X5: C
B6: All Saints N20 | C6: 10042 | D6: 504.25 | F6: 1073 | G6: 1577.25 | H6: =VLOOKUP(C6,$M$6:$Q$60,4,0) -> 319.26 | I6: =VLOOKUP(C6,$S$4:$X$74,5,0) -> 391.75 | J6: =G6-H6+I6 -> 1649.74 | M6: 10040 | N6: 138110 | O6: MTS Pool Clawback 16-17 | P6: 315.78 | Q6: 0 | S6: 10040 | T6: 138110 | U6: LTS-MAT Pool Rebate 16-17 | V6: 10040138110 | W6: 387.48 | X6: C
B7: Annunciation Junior | C7: 10117 | D7: 5397.6 | G7: 5397.6 | H7: 0 | I7: 312.38 | J7: 5709.98 | M7: 10042 | N7: 138110 | O7: MTS Pool Clawback 16-17 | P7: 319.26 | Q7: 0 | S7: 10042 | T7: 138110 | U7: LTS-MAT Pool Rebate 16-17 | V7: 10042138110 | W7: 391.75 | X7: C
B8: Barnfield | C8: 10044 | E8: 3114 | G8: 3114 | H8: 902.27 | I8: 1107.14 | J8: 3318.87 | M8: 10044 | N8: 138110 | O8: MTS Pool Clawback 16-17 | P8: 902.27 | Q8: 0 | S8: 10117 | T8: 138110 | U8: LTS-MAT Pool Rebate 16-17 | V8: 10117138110 | W8: 312.38 | X8: C
B9: Beis Yaakov | C9: 10128 | D9: 346 | E9: 2595 | F9: 4199.13 | G9: 7140.13 | H9: 510.95 | I9: 626.97 | J9: 7256.15 | M9: 10128 | N9: 138110 | O9: MTS Pool Clawback 16-17 | P9: 510.95 | Q9: 0 | S9: 10044 | T9: 138110 | U9: LTS-MAT Pool Rebate 16-17 | V9: 10044138110 | W9: 1107.14 | X9: C
B10: Bell Lane CC | C10: 10045 | D10: 1445.86 | G10: 1445.86 | H10: 0 | I10: 754.14 | J10: 2200 | M10: 10047 | N10: 138110 | O10: MTS Pool Clawback 16-17 | P10: 401.89 | Q10: 0 | S10: 10128 | T10: 138110 | U10: LTS-MAT Pool Rebate 16-17 | V10: 10128138110 | W10: 626.97 | X10: C
B11: Brookhill Nursery | C11: 10130 | D11: 1341.6 | F11: 1118 | G11: 2459.6 | H11: 239.96 | I11: 294.45 | J11: 2514.09 | M11: 10046 | N11: 138110 | O11: MTS Pool Clawback 16-17 | P11: 435.69 | Q11: 0 | S11: 10045 | T11: 138110 | U11: LTS-MAT Pool Rebate 16-17 | V11: 10045138110 | W11: 754.14 | X11: C
B12: Brookland Infants | C12: 10047 | D12: 255.6 | E12: 4048.2 | F12: 468.51 | G12: 4772.31 | H12: 401.89 | I12: 493.14 | J12: 4863.56 | M12: 10048 | N12: 138110 | O12: MTS Pool Clawback 16-17 | P12: 619.04 | Q12: 0 | S12: 10047 | T12: 138110 | U12: LTS-MAT Pool Rebate 16-17 | V12: 10047138110 | W12: 493.14 | X12: C
B13: Brunswick Park | C13: 10048 | E13: 6300.65 | G13: 6300.65 | H13: 619.04 | I13: 759.6 | J13: 6441.21 | M13: 10118 | N13: 138110 | O13: MTS Pool Clawback 16-17 | P13: 374.62 | Q13: 0 | S13: 10046 | T13: 138110 | U13: LTS-MAT Pool Rebate 16-17 | V13: 10046138110 | W13: 534.62 | X13: C
B14: Chalgrove | C14: 10118 | E14: 1453.2 | F14: 2333.96 | G14: 3787.16 | H14: 374.62 | I14: 459.69 | J14: 3872.23 | M14: 10051 | N14: 138110 | O14: MTS Pool Clawback 16-17 | P14: 319.4 | Q14: 0 | S14: 10048 | T14: 138110 | U14: LTS-MAT Pool Rebate 16-17 | V14: 10048138110 | W14: 759.6 | X14: C
B15: Colindale | C15: 10054 | E15: 1453.2 | G15: 1453.2 | H15: 0 | I15: 1168.25 | J15: 2621.45 | M15: 10055 | N15: 138110 | O15: MTS Pool Clawback 16-17 | P15: 544.61 | Q15: 0 | S15: 10118 | T15: 138110 | U15: LTS-MAT Pool Rebate 16-17 | V15: 10118138110 | W15: 459.69 | X15: C
B16: Courtland | C16: 10056 | F16: 744.92 | G16: 744.92 | H16: 308.27 | I16: 378.26 | J16: 814.91 | M16: 10056 | N16: 138110 | O16: MTS Pool Clawback 16-17 | P16: 308.27 | Q16: 0 | S16: 10049 | T16: 138110 | U16: LTS-MAT Pool Rebate 16-17 | V16: 10049138110 | W16: 849.05 | X16: C
B17: Cromer Road | C17: 10057 | D17: 1593.02 | F17: 1598.32 | G17: 3191.34 | H17: 591.36 | I17: 725.63 | J17: 3325.61 | M17: 10057 | N17: 138110 | O17: MTS Pool Clawback 16-17 | P17: 591.36 | Q17: 0 | S17: 10051 | T17: 138110 | U17: LTS-MAT Pool Rebate 16-17 | V17: 10051138110 | W17: 391.92 | X17: C
B18: Danegrove | C18: 10083 | D18: 1758 | F18: 3997.04 | G18: 5755.04 | H18: 1005.76 | I18: 1234.14 | J18: 5983.42 | M18: 10083 | N18: 138110 | O18: MTS Pool Clawback 16-17 | P18: 1005.76 | Q18: 0 | S18: 10054 | T18: 138110 | U18: LTS-MAT Pool Rebate 16-17 | V18: 10054138110 | W18: 1168.25 | X18: C
B19: Deansbrook Infants | C19: 10059 | D19: 238.8 | F19: 1908.28 | G19: 2147.08 | H19: 517.35 | I19: 634.82 | J19: 2264.55 | M19: 10059 | N19: 138110 | O19: MTS Pool Clawback 16-17 | P19: 517.35 | Q19: 0 | S19: 10055 | T19: 138110 | U19: LTS-MAT Pool Rebate 16-17 | V19: 10055138110 | W19: 668.28 | X19: C
B20: Dollis Infants | C20: 10061 | E20: 4325 | G20: 4325 | H20: 0 | I20: 612.63 | J20: 4937.63 | M20: 10064 | N20: 138110 | O20: MTS Pool Clawback 16-17 | P20: 359.04 | Q20: 0 | S20: 10056 | T20: 138110 | U20: LTS-MAT Pool Rebate 16-17 | V20: 10056138110 | W20: 378.26 | X20: C
B21: Fairway | C21: 10064 | D21: 5428 | G21: 5428 | H21: 359.04 | I21: 440.57 | J21: 5509.53 | M21: 10065 | N21: 138110 | O21: MTS Pool Clawback 16-17 | P21: 417.47 | Q21: 0 | S21: 10057 | T21: 138110 | U21: LTS-MAT Pool Rebate 16-17 | V21: 10057138110 | W21: 725.63 | X21: C
B22: Foulds | C22: 10065 | E22: 4680.68 | F22: 210.6 | G22: 4891.28 | H22: 417.47 | I22: 512.26 | J22: 4986.07 | M22: 10068 | N22: 138110 | O22: MTS Pool Clawback 16-17 | P22: 343.32 | Q22: 0 | S22: 10083 | T22: 138110 | U22: LTS-MAT Pool Rebate 16-17 | V22: 10083138110 | W22: 1234.14 | X22: C
B23: Garden Suburb Junior | C23: 10067 | D23: 1593.02 | G23: 1593.02 | H23: 443.48 | I23: 544.18 | J23: 1693.72 | M23: 10067 | N23: 138110 | O23: MTS Pool Clawback 16-17 | P23: 443.48 | Q23: 0 | S23: 10059 | T23: 138110 | U23: LTS-MAT Pool Rebate 16-17 | V23: 10059138110 | W23: 634.82 | X23: C
B24: Hampden Way Nursery | C24: 10131 | E24: 2250.82 | F24: 91.67 | G24: 2342.49 | H24: 168.04 | I24: 206.2 | J24: 2380.65 | M24: 10071 | N24: 138110 | O24: MTS Pool Clawback 16-17 | P24: 400.91 | Q24: 0 | S24: 10061 | T24: 138110 | U24: LTS-MAT Pool Rebate 16-17 | V24: 10061138110 | W24: 612.63 | X24: C
B25: Hollickwood | C25: 10071 | D25: 842.4 | F25: 819.84 | G25: 1662.24 | H25: 400.91 | I25: 491.95 | J25: 1753.28 | M25: 10073 | N25: 138110 | O25: MTS Pool Clawback 16-17 | P25: 335.12 | Q25: 0 | S25: 10064 | T25: 138110 | U25: LTS-MAT Pool Rebate 16-17 | V25: 10064138110 | W25: 440.57 | X25: C
B26: JCoSS | C26: 11174 | D26: 6276.1 | E26: 14567.38 | G26: 20843.48 | H26: 0 | I26: 2904.4 | J26: 23747.88 | M26: 10075 | N26: 138110 | O26: MTS Pool Clawback 16-17 | P26: 516.93 | Q26: 0 | S26: 10065 | T26: 138110 | U26: LTS-MAT Pool Rebate 16-17 | V26: 10065138110 | W26: 512.26 | X26: C
B27: Manorside | C27: 10075 | D27: 7195.18 | E27: 5369.21 | F27: 2395.34 | G27: 14959.73 | H27: 516.93 | I27: 634.31 | J27: 15077.11 | M27: 11093 | N27: 138110 | O27: MTS Pool Clawback 16-17 | P27: 854.55 | Q27: 0 | S27: 10068 | T27: 138110 | U27: LTS-MAT Pool Rebate 16-17 | V27: 10068138110 | W27: 421.28 | X27: C
B28: Mapledown | C28: 10159 | D28: 4152 | E28: 5174.9 | F28: 4447.12 | G28: 13774.02 | H28: 886.13 | I28: 1087.34 | J28: 13975.23 | M28: 10078 | N28: 138110 | O28: MTS Pool Clawback 16-17 | P28: 176.67 | Q28: 0 | S28: 10067 | T28: 138110 | U28: LTS-MAT Pool Rebate 16-17 | V28: 10067138110 | W28: 544.18 | X28: C
B29: Martin Primary | C29: 11093 | E29: 9515 | F29: 1168.06 | G29: 10683.06 | H29: 854.55 | I29: 1048.59 | J29: 10877.1 | M29: 10081 | N29: 138110 | O29: MTS Pool Clawback 16-17 | P29: 507.47 | Q29: 0 | S29: 10071 | T29: 138110 | U29: LTS-MAT Pool Rebate 16-17 | V29: 10071138110 | W29: 491.95 | X29: C
B30: Matilda Marks Kennedy | C30: 10125 | D30: 5190 | E30: 10452.13 | G30: 15642.13 | H30: 0 | I30: 525.06 | J30: 16167.19 | M30: 10080 | N30: 138110 | O30: MTS Pool Clawback 16-17 | P30: 478.12 | Q30: 0 | S30: 10073 | T30: 138110 | U30: LTS-MAT Pool Rebate 16-17 | V30: 10073138110 | W30: 411.21 | X30: C
B31: Menorah Foundation | C31: 10126 | D31: 993.6 | E31: 2076 | G31: 3069.6 | H31: 0 | I31: 629.87 | J31: 3699.47 | M31: 10082 | N31: 138110 | O31: MTS Pool Clawback 16-17 | P31: 461.15 | Q31: 0 | S31: 10075 | T31: 138110 | U31: LTS-MAT Pool Rebate 16-17 | V31: 10075138110 | W31: 634.31 | X31: C
B32: Menorah High | C32: 11513 | E32: 9030.75 | G32: 9030.75 | H32: 0 | I32: 417.18 | J32: 9447.93 | M32: 10084 | N32: 138110 | O32: MTS Pool Clawback 16-17 | P32: 630.31 | Q32: 0 | S32: 11093 | T32: 138110 | U32: LTS-MAT Pool Rebate 16-17 | V32: 11093138110 | W32: 1048.59 | X32: C
B33: Menorah Primary | C33: 10114 | D33: 551.07 | G33: 551.07 | H33: 0 | I33: 641.48 | J33: 1192.55 | M33: 10085 | N33: 138110 | O33: MTS Pool Clawback 16-17 | P33: 295.05 | Q33: 0 | S33: 10125 | T33: 138110 | U33: LTS-MAT Pool Rebate 16-17 | V33: 10125138110 | W33: 525.06 | X33: C
B34: Moss Hall Junior | C34: 10080 | E34: 9342 | G34: 9342 | H34: 478.12 | I34: 586.69 | J34: 9450.57 | M34: 10119 | N34: 138110 | O34: MTS Pool Clawback 16-17 | P34: 476.31 | Q34: 0 | S34: 10114 | T34: 138110 | U34: LTS-MAT Pool Rebate 16-17 | V34: 10114138110 | W34: 641.48 | X34: C
B35: Northgate | C35: 10185 | F35: 4325 | G35: 4325 | H35: 114.9 | I35: 141 | J35: 4351.1 | M35: 10087 | N35: 138110 | O35: MTS Pool Clawback 16-17 | P35: 431.8 | Q35: 0 | S35: 10126 | T35: 138110 | U35: LTS-MAT Pool Rebate 16-17 | V35: 10126138110 | W35: 629.87 | X35: C
B36: Northside | C36: 10082 | F36: 2491.58 | G36: 2491.58 | H36: 461.15 | I36: 565.86 | J36: 2596.29 | M36: 10089 | N36: 138110 | O36: MTS Pool Clawback 16-17 | P36: 278.64 | Q36: 0 | S36: 10078 | T36: 138110 | U36: LTS-MAT Pool Rebate 16-17 | V36: 10078138110 | W36: 216.79 | X36: C
B37: Northway | C37: 10157 | D37: 330.1 | E37: 3888.42 | F37: 2176.5 | G37: =SUM(D37:F37) -> 6395.02 | H37: 644.5 | I37: 790.84 | J37: 6541.36 | M37: 10116 | N37: 138110 | O37: MTS Pool Clawback 16-17 | P37: 338.62 | Q37: 0 | S37: 10081 | T37: 138110 | U37: LTS-MAT Pool Rebate 16-17 | V37: 10081138110 | W37: 622.7 | X37: C
B38: Oakleigh | C38: 10158 | D38: 3258.39 | E38: 2172.26 | F38: 2035.44 | G38: 7466.09 | H38: 827.56 | I38: 1015.48 | J38: 7654.01 | M38: 10107 | N38: 138110 | O38: MTS Pool Clawback 16-17 | P38: 690.26 | Q38: 0 | S38: 10080 | T38: 138110 | U38: LTS-MAT Pool Rebate 16-17 | V38: 10080138110 | W38: 586.69 | X38: C
B39: Osidge | C39: 10084 | D39: 561.6 | E39: 4671 | F39: 468 | G39: 5700.6 | H39: 630.31 | I39: 773.43 | J39: 5843.72 | M39: 10093 | N39: 138110 | O39: MTS Pool Clawback 16-17 | P39: 301.45 | Q39: 0 | S39: 10082 | T39: 138110 | U39: LTS-MAT Pool Rebate 16-17 | V39: 10082138110 | W39: 565.86 | X39: C
B40: Pardes House | C40: 10129 | E40: 1150.05 | G40: 1150.05 | H40: 0 | I40: 459.86 | J40: 1609.91 | M40: 10094 | N40: 138110 | O40: MTS Pool Clawback 16-17 | P40: 315.08 | Q40: 0 | S40: 10084 | T40: 138110 | U40: LTS-MAT Pool Rebate 16-17 | V40: 10084138110 | W40: 773.43 | X40: C
B41: Pavilion | C41: 10188 | D41: -965.68 | F41: 10317.16 | G41: 9351.48 | H41: 568.68 | I41: 697.81 | J41: 9480.61 | M41: 10098 | N41: 138110 | O41: MTS Pool Clawback 16-17 | P41: 859.84 | Q41: 0 | S41: 10085 | T41: 138110 | U41: LTS-MAT Pool Rebate 16-17 | V41: 10085138110 | W41: 362.05 | X41: C
B42: Queenswell Infants | C42: 10119 | D42: 185.3 | F42: 778.26 | G42: 963.56 | H42: 476.31 | I42: 584.47 | J42: 1071.72 | M42: 10097 | N42: 138110 | O42: MTS Pool Clawback 16-17 | P42: 352.09 | Q42: 0 | S42: 10129 | T42: 138110 | U42: LTS-MAT Pool Rebate 16-17 | V42: 10129138110 | W42: 459.86 | X42: C
B43: St Agnes' | C43: 10087 | E43: 6920 | G43: 6920 | H43: 431.8 | I43: 529.84 | J43: 7018.04 | M43: 10100 | N43: 138110 | O43: MTS Pool Clawback 16-17 | P43: 271.96 | Q43: 0 | S43: 10119 | T43: 138110 | U43: LTS-MAT Pool Rebate 16-17 | V43: 10119138110 | W43: 584.47 | X43: C
B44: St John's N11 | C44: 10089 | D44: 5938.35 | G44: 5938.35 | H44: 278.64 | I44: 341.91 | J44: 6001.62 | M44: 10101 | N44: 138110 | O44: MTS Pool Clawback 16-17 | P44: 362.94 | Q44: 0 | S44: 10087 | T44: 138110 | U44: LTS-MAT Pool Rebate 16-17 | V44: 10087138110 | W44: 529.84 | X44: C
B45: St John's N20 | C45: 10116 | E45: 1453.2 | G45: 1453.2 | H45: 338.62 | I45: 415.5 | J45: 1530.08 | M45: 10103 | N45: 138110 | O45: MTS Pool Clawback 16-17 | P45: 693.73 | Q45: 0 | S45: 10089 | T45: 138110 | U45: LTS-MAT Pool Rebate 16-17 | V45: 10089138110 | W45: 341.91 | X45: C
B46: St Joseph's Primary | C46: 10107 | F46: 1118.1 | G46: 1118.1 | H46: 690.26 | I46: 847 | J46: 1274.84 | M46: 10105 | N46: 138110 | O46: MTS Pool Clawback 16-17 | P46: 732.13 | Q46: 0 | S46: 10116 | T46: 138110 | U46: LTS-MAT Pool Rebate 16-17 | V46: 10116138110 | W46: 415.5 | X46: C
B47: St Margarets Nursery | C47: 10133 | D47: 402.85 | F47: 1151 | G47: 1553.85 | H47: 251.37 | I47: 308.45 | J47: 1610.93 | M47: 10123 | N47: 138110 | O47: MTS Pool Clawback 16-17 | P47: 790.42 | Q47: 0 | S47: 10107 | T47: 138110 | U47: LTS-MAT Pool Rebate 16-17 | V47: 10107138110 | W47: 847 | X47: C
B48: St Mary's EB | C48: 10093 | E48: 3114 | G48: 3114 | H48: 301.45 | I48: 369.9 | J48: 3182.45 | M48: 10159 | N48: 138110 | O48: MTS Pool Clawback 16-17 | P48: 886.13 | Q48: 0 | S48: 10093 | T48: 138110 | U48: LTS-MAT Pool Rebate 16-17 | V48: 10093138110 | W48: 369.9 | X48: C
B49: St Paul's N11 | C49: 10094 | F49: 196.56 | G49: 196.56 | H49: 315.08 | I49: 386.63 | J49: 268.11 | M49: 10157 | N49: 138110 | O49: MTS Pool Clawback 16-17 | P49: 644.5 | Q49: 0 | S49: 10094 | T49: 138110 | U49: LTS-MAT Pool Rebate 16-17 | V49: 10094138110 | W49: 386.63 | X49: C
B50: St Theresas | C50: 10108 | D50: 10207 | G50: 10207 | H50: 0 | I50: 390.38 | J50: 10597.38 | M50: 10158 | N50: 138110 | O50: MTS Pool Clawback 16-17 | P50: 827.56 | Q50: 0 | S50: 10095 | T50: 138110 | U50: LTS-MAT Pool Rebate 16-17 | V50: 10095138110 | W50: 318.01 | X50: C
B51: Summerside | C51: 10098 | D51: 10332.8 | E51: 11669.68 | F51: 1456.73 | G51: 23459.21 | H51: 859.84 | I51: 1055.08 | J51: 23654.45 | M51: 10130 | N51: 138110 | O51: MTS Pool Clawback 16-17 | P51: 239.96 | Q51: 0 | S51: 10108 | T51: 138110 | U51: LTS-MAT Pool Rebate 16-17 | V51: 10108138110 | W51: 390.38 | X51: C
B52: Sunnyfields | C52: 10097 | D52: 2997 | E52: 1066.96 | F52: 1620 | G52: 5683.96 | H52: 352.09 | I52: 432.03 | J52: 5763.9 | M52: 10131 | N52: 138110 | O52: MTS Pool Clawback 16-17 | P52: 168.04 | Q52: 0 | S52: 10098 | T52: 138110 | U52: LTS-MAT Pool Rebate 16-17 | V52: 10098138110 | W52: 1055.08 | X52: C
B53: Trent | C53: 10100 | D53: 1459.57 | F53: 1150.05 | G53: 2609.62 | H53: 271.96 | I53: 333.71 | J53: 2671.37 | M53: 10133 | N53: 138110 | O53: MTS Pool Clawback 16-17 | P53: 251.37 | Q53: 0 | S53: 10097 | T53: 138110 | U53: LTS-MAT Pool Rebate 16-17 | V53: 10097138110 | W53: 432.03 | X53: C
B54: Tudor | C54: 10101 | F54: 499.39 | G54: 499.39 | H54: 362.94 | I54: 445.35 | J54: 581.8 | M54: 10044 | N54: 411025 | O54: MTS Pool Clawback 16-17 - CC | P54: 86.8 | Q54: 0 | S54: 10100 | T54: 138110 | U54: LTS-MAT Pool Rebate 16-17 | V54: 10100138110 | W54: 333.71 | X54: C
B55: Underhill | C55: 10103 | D55: 3464.46 | E55: 1384.2 | F55: 3325.6 | G55: 8174.26 | H55: 693.73 | I55: 1459.29 | J55: 8939.82 | M55: 10055 | N55: 411025 | O55: MTS Pool Clawback 16-17 - CC | P55: 97.58 | Q55: 0 | S55: 10101 | T55: 138110 | U55: LTS-MAT Pool Rebate 16-17 | V55: 10101138110 | W55: 445.35 | X55: C
B56: Whitings Hill | C56: 10105 | D56: 2799.54 | G56: 2799.54 | H56: 732.13 | I56: 898.38 | J56: 2965.79 | M56: 10131 | N56: 411025 | O56: MTS Pool Clawback 16-17 - CC | P56: 95.3 | Q56: 0 | S56: 10103 | T56: 138110 | U56: LTS-MAT Pool Rebate 16-17 | V56: 10103138110 | W56: 1459.29 | X56: C
B57: Grand Total | D57: =SUM(D5:D56) -> 86073.38 | E57: 146220.73 | F57: 59683.16 | G57: 291977.27 | H57: 19918.72 | I57: 34556.59 | J57: 306615.14 | M57: 10103 | N57: 411025 | O57: MTS Pool Clawback 16-17 - CC | P57: 104.41 | Q57: 0 | S57: 10105 | T57: 138110 | U57: LTS-MAT Pool Rebate 16-17 | V57: 10105138110 | W57: 898.38 | X57: C
M58: 10185 | N58: 138110 | O58: MTS Pool Clawback 16-17 | P58: 114.9 | Q58: 0 | S58: 10123 | T58: 138110 | U58: LTS-MAT Pool Rebate 16-17 | V58: 10123138110 | W58: 969.9 | X58: C
M59: 10188 | N59: 138110 | O59: MTS Pool Clawback 16-17 | P59: 568.68 | Q59: 0 | S59: 11174 | T59: 138110 | U59: LTS-MAT Pool Rebate 16-17 | V59: 11174138110 | W59: 2904.4 | X59: C
M60: 10866 | N60: 730000 | O60: MTS Pool Clawback 16-17 | P60: 0 | Q60: 24366.34 | S60: 11513 | T60: 138110 | U60: LTS-MAT Pool Rebate 16-17 | V60: 11513138110 | W60: 417.18 | X60: C
S61: 10159 | T61: 138110 | U61: LTS-MAT Pool Rebate 16-17 | V61: 10159138110 | W61: 1087.34 | X61: C
B62: Sum of Total Claim | D62: Type | S62: 10157 | T62: 138110 | U62: LTS-MAT Pool Rebate 16-17 | V62: 10157138110 | W62: 790.84 | X62: C
B63: School | C63: Cost Centre | D63: LTS | E63: MAT | F63: MTS | G63: Grand Total | S63: 10158 | T63: 138110 | U63: LTS-MAT Pool Rebate 16-17 | V63: 10158138110 | W63: 1015.48 | X63: C
B64: Copthall | C64: 10152A | D64: 10310.8 | F64: 2770 | G64: =SUM(D64:F64) -> 13080.8 | S64: 10130 | T64: 138110 | U64: LTS-MAT Pool Rebate 16-17 | V64: 10130138110 | W64: 294.45 | X64: C
B65: Hyde | C65: 10122A | F65: 73.25 | G65: =SUM(D65:F65) -> 73.25 | S65: 10131 | T65: 138110 | U65: LTS-MAT Pool Rebate 16-17 | V65: 10131138110 | W65: 206.2 | X65: C
B66: Parkfield | C66: 10120A | D66: 205.92 | E66: 22490 | F66: 934.74 | G66: =SUM(D66:F66) -> 23630.66 | S66: 10133 | T66: 138110 | U66: LTS-MAT Pool Rebate 16-17 | V66: 10133138110 | W66: 308.45 | X66: C
B67: Queen Elizabeth Girls | C67: 10154A | D67: 4498 | E67: 2422 | G67: =SUM(D67:F67) -> 6920 | S67: 10044 | T67: 411025 | U67: LTS-MAT Pool Rebate 16-17 - CC | V67: 10044411025 | W67: 107.17 | X67: C
B68: Grand Total | D68: =SUM(D64:D67) -> 15014.72 | E68: =SUM(E64:E67) -> 24912 | F68: =SUM(F64:F67) -> 3777.99 | G68: =SUM(G64:G67) -> 43704.71 | S68: 10045 | T68: 411025 | U68: LTS-MAT Pool Rebate 16-17 - CC | V68: 10045411025 | W68: 74.01 | X68: C
S69: 10055 | T69: 411025 | U69: LTS-MAT Pool Rebate 16-17 - CC | V69: 10055411025 | W69: 120.47 | X69: C
S70: 10131 | T70: 411025 | U70: LTS-MAT Pool Rebate 16-17 - CC | V70: 10131411025 | W70: 117.66 | X70: C
S71: 10103 | T71: 411025 | U71: LTS-MAT Pool Rebate 16-17 - CC | V71: 10103411025 | W71: 128.91 | X71: C
S72: 10185 | T72: 138110 | U72: LTS-MAT Pool Rebate 16-17 | V72: 10185138110 | W72: 141 | X72: C
S73: 10188 | T73: 138110 | U73: LTS-MAT Pool Rebate 16-17 | V73: 10188138110 | W73: 697.81 | X73: C
S74: 10865 | T74: 730000 | U74: LTS-MAT Pool Rebate 16-17 | V74: 10865730000 | W74: 41258.1

Sheet FUNDING I01 I02 I03
A1: CFR | B1: (Multiple Items)
C2: 1 | D2: 2 | E2: 3 | F2: 4 | G2: 5 | H2: 6
A3: Sum of Funding | E3: Original | F3: Total | G3: Total | H3: 20% Orig B/share | J3: Funding
E4: Budget | F4: Funding | G4: Budget | H4: Paid to Local | J4: deposited in
A5: DFE | B5: School | C5: SchoolCC | D5: Option | E5: Share | F5: Adjustments | G5: Share | H5: Bank Account | J5: central a/c
A6: 3023300 | B6: All Saints' CE Primary School NW2 | C6: 10040 | D6: A | E6: 1048383.35 | F6: -1664.25 | G6: =SUM(E6:F6) -> 1046719.1 | H6: =VLOOKUP(C6,'FUNDING ALLOCATION'!$B$10:$T$105,19,0) -> 209676.67 | I6: 0.2 | J6: =G6-H6 -> 837042.43
A7: 3023317 | B7: All Saints' CE Primary School, N20 | C7: 10042 | D7: A | E7: 1149968.9 | F7: -12903.55 | G7: 1137065.35 | H7: =VLOOKUP(C7,'FUNDING ALLOCATION'!$B$10:$T$105,19,0) -> 229993.78 | I7: 0.2 | J7: =G7-H7 -> 907071.57
A8: 3023500 | B8: Annunciation Catholic Infant School | C8: 10043 | D8: A | E8: 878388.66 | F8: 10324.91 | G8: 888713.57 | H8: =VLOOKUP(C8,'FUNDING ALLOCATION'!$B$10:$T$105,19,0) -> 175677.732 | I8: 0.2 | J8: 713035.838
A9: 3023514 | B9: Annunciation Catholic Junior School | C9: 10117 | D9: A | E9: 1026329.28 | F9: -15841.5 | G9: 1010487.78 | H9: =VLOOKUP(C9,'FUNDING ALLOCATION'!$B$10:$T$105,19,0) -> 205265.856 | I9: 0.2 | J9: 805221.924
A10: 3022079 | B10: Beis Yaakov | C10: 10128 | D10: A | E10: 1825635.51 | F10: -1425.27 | G10: 1824210.24 | H10: =VLOOKUP(C10,'FUNDING ALLOCATION'!$B$10:$T$105,19,0) -> 216048.51 | I10: 0.2 | J10: 1608161.73
A11: 3022003 | B11: Bell Lane Primary School | C11: 10045 | D11: A | E11: 2010926.83 | F11: -4366.25 | G11: 2006560.58 | H11: =VLOOKUP(C11,'FUNDING ALLOCATION'!$B$10:$T$105,19,0) -> 402185.366 | I11: 0.2 | J11: 1604375.214
A12: 3023511 | B12: Blessed Dominic School | C12: 10115 | D12: A | E12: 1868325.61 | F12: 23990.88 | G12: 1892316.49 | H12: =VLOOKUP(C12,'FUNDING ALLOCATION'!$B$10:$T$105,19,0) -> 373665.122 | I12: 0.2 | J12: 1518651.368
A13: 3021000 | B13: Brookhill Nursery | C13: 10130 | D13: A | E13: 337562.24 | F13: -9851.8 | G13: 327710.44 | H13: =VLOOKUP(C13,'FUNDING ALLOCATION'!$B$10:$T$105,19,0) -> 67512.448 | I13: 0.2 | J13: 260197.992
A14: 3022008 | B14: Brookland Infant & Nursery School | C14: 10047 | D14: A | E14: 1361718.23 | F14: -16589.99 | G14: 1345128.24 | H14: =VLOOKUP(C14,'FUNDING ALLOCATION'!$B$10:$T$105,19,0) -> 272343.646 | I14: 0.2 | J14: 1072784.594
A15: 3022007 | B15: Brookland Junior School | C15: 10046 | D15: A | E15: 1491258.94 | F15: 8686.83 | G15: 1499945.77 | H15: =VLOOKUP(C15,'FUNDING ALLOCATION'!$B$10:$T$105,19,0) -> 298251.788 | I15: 0.2 | J15: 1201693.982
A16: 3022009 | B16: Brunswick Park Primary & Nursery School | C16: 10048 | D16: A | E16: 1777968.07 | F16: 81499.19 | G16: 1859467.26 | H16: =VLOOKUP(C16,'FUNDING ALLOCATION'!$B$10:$T$105,19,0) -> 355593.614 | I16: 0.2 | J16: 1503873.646
A17: 3022067 | B17: Chalgrove Primary School | C17: 10118 | D17: A | E17: 1198262.23 | F17: 22490.09 | G17: 1220752.32 | H17: =VLOOKUP(C17,'FUNDING ALLOCATION'!$B$10:$T$105,19,0) -> 239652.446 | I17: 0.2 | J17: 981099.874
A18: 3022010 | B18: Child's Hill School | C18: 10049 | D18: A | E18: 2070131.41 | F18: 40499.66 | G18: 2110631.07 | H18: =VLOOKUP(C18,'FUNDING ALLOCATION'!$B$10:$T$105,19,0) -> 414026.282 | I18: 0.2 | J18: 1696604.788
A19: 3022011 | B19: Church Hill Primary School | C19: 10051 | D19: A | E19: 1024570.71 | F19: -8749.08 | G19: 1015821.63 | H19: =VLOOKUP(C19,'FUNDING ALLOCATION'!$B$10:$T$105,19,0) -> 204914.142 | I19: 0.2 | J19: 810907.488
A20: 3022014 | B20: Colindale School | C20: 10054 | D20: A | E20: 3381076.41 | F20: 127348.67 | G20: 3508425.08 | H20: =VLOOKUP(C20,'FUNDING ALLOCATION'!$B$10:$T$105,19,0) -> 676215.282 | I20: 0.2 | J20: 2832209.798
A21: 3022015 | B21: Coppetts Wood | C21: 10055 | D21: A | E21: 1530193.24 | F21: 22309.94 | G21: 1552503.18 | H21: =VLOOKUP(C21,'FUNDING ALLOCATION'!$B$10:$T$105,19,0) -> 306038.648 | I21: 0.2 | J21: 1246464.532
A22: 3022016 | B22: Courtland School | C22: 10056 | D22: A | E22: 964477.72 | F22: -8538.83 | G22: 955938.89 | H22: =VLOOKUP(C22,'FUNDING ALLOCATION'!$B$10:$T$105,19,0) -> 192895.544 | I22: 0.2 | J22: 763043.346
A23: 3022017 | B23: Cromer Road Primary School | C23: 10057 | D23: A | E23: 1759514.26 | F23: -22514.33 | G23: 1736999.93 | H23: =VLOOKUP(C23,'FUNDING ALLOCATION'!$B$10:$T$105,19,0) -> 351902.852 | I23: 0.2 | J23: 1385097.078
A24: 3022019 | B24: Deansbrook Infant School | C24: 10059 | D24: A | E24: 1478267.93 | F24: -13035.9 | G24: 1465232.03 | H24: =VLOOKUP(C24,'FUNDING ALLOCATION'!$B$10:$T$105,19,0) -> 295653.586 | I24: 0.2 | J24: 1169578.444
A25: 3022021 | B25: Dollis Infant School | C25: 10061 | D25: A | E25: 1488547.41 | F25: -20094.33 | G25: 1468453.08 | H25: =VLOOKUP(C25,'FUNDING ALLOCATION'!$B$10:$T$105,19,0) -> 297709.482 | I25: 0.2 | J25: 1170743.598
A26: 3022024 | B26: Fairway Primary School | C26: 10064 | D26: A | E26: 1315843.89 | F26: 88332.22 | G26: 1404176.11 | H26: =VLOOKUP(C26,'FUNDING ALLOCATION'!$B$10:$T$105,19,0) -> 263168.778 | I26: 0.2 | J26: 1141007.332
A27: 3022026 | B27: Frith Manor School | C27: 10066 | D27: A | E27: 2723272.75 | F27: -10207.17 | G27: 2713065.58 | H27: =VLOOKUP(C27,'FUNDING ALLOCATION'!$B$10:$T$105,19,0) -> 544654.55 | I27: 0.2 | J27: 2168411.03
A28: 3022028 | B28: Garden Suburb Infant School | C28: 10068 | D28: A | E28: 1153197.03 | F28: 10774.58 | G28: 1163971.61 | H28: =VLOOKUP(C28,'FUNDING ALLOCATION'!$B$10:$T$105,19,0) -> 230639.406 | I28: 0.2 | J28: 933332.204
A29: 3022027 | B29: Garden Suburb Junior | C29: 10067 | D29: A | E29: 1563881.66 | F29: 3641.5 | G29: 1567523.16 | H29: =VLOOKUP(C29,'FUNDING ALLOCATION'!$B$10:$T$105,19,0) -> 312776.332 | I29: 0.2 | J29: 1254746.828
A30: 3022029 | B30: Goldbeaters Primary School | C30: 10069 | D30: A | E30: 2268196.77 | F30: -10781.34 | G30: 2257415.43 | H30: =VLOOKUP(C30,'FUNDING ALLOCATION'!$B$10:$T$105,19,0) -> 453639.354 | I30: 0.2 | J30: 1803776.076
A31: 3021001 | B31: Hampden Way Nursery | C31: 10131 | D31: A | E31: 283703.58 | F31: -1366.48 | G31: 282337.1 | H31: =VLOOKUP(C31,'FUNDING ALLOCATION'!$B$10:$T$105,19,0) -> 56740.716 | I31: 0.2 | J31: 225596.384
A32: 3023516 | B32: Hasmonean Primary School | C32: 10121 | D32: A | E32: 962785.9 | F32: 16120.35 | G32: 978906.25 | H32: =VLOOKUP(C32,'FUNDING ALLOCATION'!$B$10:$T$105,19,0) -> 40303.9 | I32: 0.2 | J32: 938602.35
A33: 3022031 | B33: Hollickwood JMI School | C33: 10071 | D33: A | E33: 1161124.85 | F33: -14910.53 | G33: 1146214.32 | H33: =VLOOKUP(C33,'FUNDING ALLOCATION'!$B$10:$T$105,19,0) -> 232224.97 | I33: 0.2 | J33: 913989.35
A34: 3022032 | B34: Holly Park School | C34: 10072 | D34: A | E34: 2216407.58 | F34: -6723.43 | G34: 2209684.15 | H34: =VLOOKUP(C34,'FUNDING ALLOCATION'!$B$10:$T$105,19,0) -> 443281.516 | I34: 0.2 | J34: 1766402.634
A35: 3023304 | B35: Holy Trinity School | C35: 10073 | D35: A | E35: 1188755.58 | F35: -20410.48 | G35: 1168345.1 | H35: =VLOOKUP(C35,'FUNDING ALLOCATION'!$B$10:$T$105,19,0) -> 237751.116 | I35: 0.2 | J35: 930593.984
A36: 3025427 | B36: JCoSS | C36: 11174 | D36: A | E36: 7402775.76 | F36: 462760.32 | G36: 7865536.08 | H36: =VLOOKUP(C36,'FUNDING ALLOCATION'!$B$10:$T$105,19,0) -> 841131.76 | I36: 0.2 | J36: 7024404.32
A37: 3022036 | B37: Livingstone School | C37: 10074 | D37: A | E37: 2039248.52 | F37: -13730.62 | G37: 2025517.9 | H37: =VLOOKUP(C37,'FUNDING ALLOCATION'!$B$10:$T$105,19,0) -> 407849.704 | I37: 0.2 | J37: 1617668.196
A38: 3022037 | B38: Manorside Primary School | C38: 10075 | D38: A | E38: 1543531.87 | F38: 22460.99 | G38: =SUM(E38:F38) -> 1565992.86 | H38: =VLOOKUP(C38,'FUNDING ALLOCATION'!$B$10:$T$105,19,0) -> 308706.374 | I38: 0.2 | J38: 1257286.486
A39: 3023513 | B39: Menorah Primary School | C39: 10114 | D39: A | E39: 1712661.7 | F39: 5463.12 | G39: 1718124.82 | H39: =VLOOKUP(C39,'FUNDING ALLOCATION'!$B$10:$T$105,19,0) -> 187903.7 | I39: 0.2 | J39: 1530221.12
A40: 3023305 | B40: Monken Hadley C E Primary School | C40: 10078 | D40: A | E40: 641809.87 | F40: 1153.58 | G40: 642963.45 | H40: =VLOOKUP(C40,'FUNDING ALLOCATION'!$B$10:$T$105,19,0) -> 128361.974 | I40: 0.2 | J40: 514601.476
A41: 3022044 | B41: Moss Hall Infant School | C41: 10081 | D41: A | E41: 1643453.34 | F41: -12628.37 | G41: 1630824.97 | H41: =VLOOKUP(C41,'FUNDING ALLOCATION'!$B$10:$T$105,19,0) -> 328690.668 | I41: 0.2 | J41: 1302134.302
A42: 3022043 | B42: Moss Hall Junior School | C42: 10080 | D42: A | E42: 1862067.72 | F42: -3259.46 | G42: 1858808.26 | H42: =VLOOKUP(C42,'FUNDING ALLOCATION'!$B$10:$T$105,19,0) -> 372413.544 | I42: 0.2 | J42: 1486394.716
A43: 3021002 | B43: Moss Hall Nursery | C43: 10132 | D43: A | E43: 403542.8 | F43: 12977.81 | G43: 416520.61 | H43: =VLOOKUP(C43,'FUNDING ALLOCATION'!$B$10:$T$105,19,0) -> 80708.56 | I43: 0.2 | J43: 335812.05
A44: 3021102 | B44: Northgate | C44: 10185 | D44: A | E44: 408316 | G44: 408316 | H44: =VLOOKUP(C44,'FUNDING ALLOCATION'!$B$10:$T$105,19,0) -> 81663.2 | I44: 0.2 | J44: 326652.8
A45: 3022045 | B45: Northside School | C45: 10082 | D45: A | E45: 1345261.33 | F45: -29187.3 | G45: 1316074.03 | H45: =VLOOKUP(C45,'FUNDING ALLOCATION'!$B$10:$T$105,19,0) -> 269052.266 | I45: 0.2 | J45: 1047021.764
A46: 3027005 | B46: Northway | C46: 10157 | D46: A | E46: 2037425 | F46: 148055.08 | G46: 2185480.08 | H46: =VLOOKUP(C46,'FUNDING ALLOCATION'!$B$10:$T$105,19,0) -> 407485 | I46: 0.2 | J46: 1777995.08
A47: 3027000 | B47: Oak Lodge | C47: 10156 | D47: A | E47: 3460148.34 | F47: -830273.21 | G47: 2629875.13 | H47: =VLOOKUP(C47,'FUNDING ALLOCATION'!$B$10:$T$105,19,0) -> 692029.668 | I47: 0.2 | J47: 1937845.462
A48: 3027009 | B48: Oakleigh | C48: 10158 | D48: A | E48: 2881784.2 | F48: 105542.2 | G48: 2987326.4 | H48: =VLOOKUP(C48,'FUNDING ALLOCATION'!$B$10:$T$105,19,0) -> 576356.84 | I48: 0.2 | J48: 2410969.56
A49: 3022077 | B49: Orion Primary School | C49: 10127 | D49: A | E49: 4564842.26 | F49: 142082.34 | G49: 4706924.6 | H49: =VLOOKUP(C49,'FUNDING ALLOCATION'!$B$10:$T$105,19,0) -> 912968.452 | I49: 0.2 | J49: 3793956.148
A50: 3023501 | B50: Our Lady of Lourdes School | C50: 10085 | D50: A | E50: 1049671.16 | F50: 671.95 | G50: 1050343.11 | H50: =VLOOKUP(C50,'FUNDING ALLOCATION'!$B$10:$T$105,19,0) -> 209934.232 | I50: 0.2 | J50: 840408.878
A51: 3022078 | B51: Pardes House School | C51: 10129 | D51: A | E51: 1109983.61 | F51: 13613.15 | G51: 1123596.76 | H51: =VLOOKUP(C51,'FUNDING ALLOCATION'!$B$10:$T$105,19,0) -> 133630.61 | I51: 0.2 | J51: 989966.15
A52: 3021100 | B52: Pavilion | C52: 10188 | D52: A | E52: 2041390 | F52: 156862.73 | G52: 2198252.73 | H52: =VLOOKUP(C52,'FUNDING ALLOCATION'!$B$10:$T$105,19,0) -> 408278 | I52: 0.2 | J52: 1789974.73
A53: 3023512 | B53: Rosh Pinah | C53: 10112 | D53: A | E53: 1716592.41 | F53: -18158.99 | G53: 1698433.42 | H53: =VLOOKUP(C53,'FUNDING ALLOCATION'!$B$10:$T$105,19,0) -> 83479.41 | I53: 0.2 | J53: 1614954.01
A54: 3023510 | B54: Sacred Heart School | C54: 10110 | D54: A | E54: 1635877.3 | F54: -748.42 | G54: 1635128.88 | H54: =VLOOKUP(C54,'FUNDING ALLOCATION'!$B$10:$T$105,19,0) -> 327175.46 | I54: 0.2 | J54: 1307953.42
A55: 3023502 | B55: St Agnes RC Primary School | C55: 10087 | D55: A | E55: 1459320.68 | F55: 43653.66 | G55: 1502974.34 | H55: =VLOOKUP(C55,'FUNDING ALLOCATION'!$B$10:$T$105,19,0) -> 291864.136 | I55: 0.2 | J55: 1211110.204
A56: 3023315 | B56: St Andrew's C E | C56: 10099 | D56: A | E56: 884798.15 | F56: -16150.17 | G56: 868647.98 | H56: =VLOOKUP(C56,'FUNDING ALLOCATION'!$B$10:$T$105,19,0) -> 176959.63 | I56: 0.2 | J56: 691688.35
A57: 3023504 | B57: St Catherines R C Primary | C57: 10088 | D57: A | E57: 1984105.71 | F57: -5403.88 | G57: 1978701.83 | H57: =VLOOKUP(C57,'FUNDING ALLOCATION'!$B$10:$T$105,19,0) -> 396821.142 | I57: 0.2 | J57: 1581880.688
A58: 3023307 | B58: St John's CE School N11 | C58: 10089 | D58: A | E58: 985198.25 | F58: -19904.35 | G58: 965293.9 | H58: =VLOOKUP(C58,'FUNDING ALLOCATION'!$B$10:$T$105,19,0) -> 197039.65 | I58: 0.2 | J58: 768254.25
A59: 3023509 | B59: St Joseph's Primary School | C59: 10107 | D59: A | E59: 2059974.38 | F59: 9777.95 | G59: 2069752.33 | H59: =VLOOKUP(C59,'FUNDING ALLOCATION'!$B$10:$T$105,19,0) -> 411994.876 | I59: 0.2 | J59: 1657757.454
A60: 3021003 | B60: St Margaret's Nursery | C60: 10133 | D60: A | E60: 445511.86 | F60: -63340.83 | G60: 382171.03 | H60: =VLOOKUP(C60,'FUNDING ALLOCATION'!$B$10:$T$105,19,0) -> 89102.372 | I60: 0.2 | J60: 293068.658
A61: 3023311 | B61: St Mary's C E Primary School N3 | C61: 10092 | D61: A | E61: 1768992.4 | F61: 14194.37 | G61: 1783186.77 | H61: =VLOOKUP(C61,'FUNDING ALLOCATION'!$B$10:$T$105,19,0) -> 353798.48 | I61: 0.2 | J61: 1429388.29
A62: 3023312 | B62: St Mary's School EN4 | C62: 10093 | D62: A | E62: 930016.58 | F62: 11341.5 | G62: 941358.08 | H62: =VLOOKUP(C62,'FUNDING ALLOCATION'!$B$10:$T$105,19,0) -> 186003.316 | I62: 0.2 | J62: 755354.764
A63: 3023313 | B63: St Paul's School, N11 | C63: 10094 | D63: A | E63: 1053778.11 | F63: -6559.91 | G63: 1047218.2 | H63: =VLOOKUP(C63,'FUNDING ALLOCATION'!$B$10:$T$105,19,0) -> 210755.622 | I63: 0.2 | J63: 836462.578
A64: 3023507 | B64: St Theresa's R.C. Primary School | C64: 10108 | D64: A | E64: 990209.07 | G64: 990209.07 | H64: =VLOOKUP(C64,'FUNDING ALLOCATION'!$B$10:$T$105,19,0) -> 198041.814 | I64: 0.2 | J64: 792167.256
A65: 3023506 | B65: St Vincent's Catholic Primary School | C65: 10096 | D65: A | E65: 1376772.97 | F65: -9060.67 | G65: 1367712.3 | H65: =VLOOKUP(C65,'FUNDING ALLOCATION'!$B$10:$T$105,19,0) -> 275354.594 | I65: 0.2 | J65: 1092357.706
A66: 3022052 | B66: Summerside Primary School | C66: 10098 | D66: A | E66: 2505899.55 | F66: 78202.54 | G66: 2584102.09 | H66: =VLOOKUP(C66,'FUNDING ALLOCATION'!$B$10:$T$105,19,0) -> 501179.91 | I66: 0.2 | J66: 2082922.18
A67: 3022070 | B67: Sunnyfields Primary School | C67: 10097 | D67: A | E67: 1163646.06 | F67: 33414.77 | G67: 1197060.83 | H67: =VLOOKUP(C67,'FUNDING ALLOCATION'!$B$10:$T$105,19,0) -> 232729.212 | I67: 0.2 | J67: 964331.618
A68: 3023316 | B68: Trent C of E Primary School | C68: 10100 | D68: A | E68: 845186.52 | G68: 845186.52 | H68: =VLOOKUP(C68,'FUNDING ALLOCATION'!$B$10:$T$105,19,0) -> 169037.304 | I68: 0.2 | J68: 676149.216
A69: 3022055 | B69: Tudor School | C69: 10101 | D69: A | E69: 1200546.6 | F69: 48369.42 | G69: 1248916.02 | H69: =VLOOKUP(C69,'FUNDING ALLOCATION'!$B$10:$T$105,19,0) -> 240109.32 | I69: 0.2 | J69: 1008806.7
A70: 3022060 | B70: Whitings Hill Primary School | C70: 10105 | D70: A | E70: 2283870.37 | F70: -3834.51 | G70: =SUM(E70:F70) -> 2280035.86 | H70: =VLOOKUP(C70,'FUNDING ALLOCATION'!$B$10:$T$105,19,0) -> 456774.074 | I70: 0.2 | J70: 1823261.786
A71: 3023518 | B71: Woodcroft Primary School | C71: 10123 | D71: A | E71: 2403370.48 | F71: -28170.91 | G71: 2375199.57 | H71: =VLOOKUP(C71,'FUNDING ALLOCATION'!$B$10:$T$105,19,0) -> 480674.096 | I71: 0.2 | J71: =G71-H71 -> 1894525.474
A72: 3022054 | B72: Woodridge Primary School | C72: 10109 | D72: A | E72: 1027801.89 | F72: -1854.25 | G72: 1025947.64 | H72: =VLOOKUP(C72,'FUNDING ALLOCATION'!$B$10:$T$105,19,0) -> 205560.378 | I72: 0.2 | J72: 820387.262
A73: 3025408 | B73: Bishop Douglass School (closed) | C73: 10137 | D73: B | E73: 4374456.41 | F73: -2473967.13 | G73: 1900489.28 | H73: =G73 -> 1900489.28 | I73: 1 | J73: 0
A74: 3022073 | B74: Danegrove JMI School | C74: 10083 | D74: B | E74: 2848288.36 | F74: 23385.75 | G74: 2871674.11 | H74: =G74 -> 2871674.11 | I74: 1 | J74: 0
A75: 3025200 | B75: Dollis Junior School | C75: 10060 | D75: B | E75: 1709535.2 | F75: 13304.58 | G75: 1722839.78 | H75: 1722839.78 | I75: 1 | J75: 0
A76: 3025405 | B76: Finchley Catholic High School | C76: 10145 | D76: B | E76: 6145399.17 | F76: -89389.24 | G76: 6056009.93 | H76: 6056009.93 | I76: 1 | J76: 0
A77: 3023523 | B77: Martin Primary School | C77: 11093 | D77: B | E77: 2797922.04 | F77: 37517.21 | G77: 2835439.25 | H77: 2835439.25 | I77: 1 | J77: 0
A78: 3025948 | B78: Mathilda Marks-Kennedy School | C78: 10125 | D78: B | E78: 959255.73 | F78: -12140.39 | G78: 947115.34 | H78: 947115.34 | I78: 1 | J78: 0
A79: 3025949 | B79: Menorah Foundation School | C79: 10126 | D79: B | E79: 1350988.32 | F79: 10067.31 | G79: 1361055.63 | H79: 1361055.63 | I79: 1 | J79: 0
A80: 3025201 | B80: Osidge Primary School | C80: 10084 | D80: B | E80: 1786258.09 | F80: -7309.26 | G80: 1778948.83 | H80: 1778948.83 | I80: 1 | J80: 0
A81: 3023521 | B81: St Mary's & St John's CE School | C81: 10698 | D81: B | E81: 4310242.68 | F81: 254.76 | G81: 4310497.44 | H81: 4310497.44 | I81: 1 | J81: 0
A82: 3025404 | B82: St Michaels Catholic Grammar School | C82: 10148 | D82: B | E82: 3920075.44 | F82: 10868.67 | G82: 3930944.11 | H82: 3930944.11 | I82: 1 | J82: 0
A83: 3023314 | B83: St Pauls CE Primary, NW7 | C83: 10095 | D83: B | E83: 919544.4 | F83: 810.67 | G83: 920355.07 | H83: 920355.07 | I83: 1 | J83: 0
A84: 3025407 | B84: St. James' Catholic High School | C84: 10142 | D84: B | E84: 6003107.77 | F84: 48092.28 | G84: 6051200.05 | H84: 6051200.05 | I84: 1 | J84: 0
A85: 3025403 | B85: St. Mary's CE High School | C85: 10143 | D85: B | E85: 260393.87 | F85: 0 | G85: 260393.87 | H85: 260393.87 | I85: 1 | J85: 0
A86: 3022057 | B86: Underhill School | C86: 10103 | D86: B | E86: 2666505.47 | F86: 109135.19 | G86: 2775640.66 | H86: 2775640.66 | I86: 1 | J86: 0
A87: 3022072 | B87: Queenswell Junior School | C87: 10086 | D87: B | E87: 1623706.44 | F87: 17385.75 | G87: =SUM(E87:F87) -> 1641092.19 | H87: 1641092.19 | I87: 0.2 | J87: =G87-H87 -> 0
A88: 3023520 | B88: Akiva School | C88: 11094 | D88: C | E88: 1597348.81 | F88: 12821.67 | G88: 1610170.48 | H88: =VLOOKUP(C88,'FUNDING ALLOCATION'!$B$10:$T$105,19,0) -> 319470 | I88: 0.2 | J88: 1290700.48
A89: 3023524 | B89: Beit Shvidler Primary School | C89: 11278 | D89: C | E89: 1012959.65 | F89: 6996.02 | G89: 1019955.67 | H89: =VLOOKUP(C89,'FUNDING ALLOCATION'!$B$10:$T$105,19,0) -> 202592 | I89: 0.2 | J89: 817363.67
A90: 3022023 | B90: Edgware Primary School | C90: 10063 | D90: C | E90: 3028568.66 | F90: -53585.11 | G90: 2974983.55 | H90: =VLOOKUP(C90,'FUNDING ALLOCATION'!$B$10:$T$105,19,0) -> 605714 | I90: 0.2 | J90: 2369269.55
A91: 3022025 | B91: Foulds | C91: 10065 | D91: C | E91: 1293292.32 | F91: 14529.42 | G91: 1307821.74 | H91: =VLOOKUP(C91,'FUNDING ALLOCATION'!$B$10:$T$105,19,0) -> 258658 | I91: 0.2 | J91: 1049163.74
A92: 3022071 | B92: Queenswell Infant and Nursery School | C92: 10119 | D92: C | E92: 1453912.31 | F92: -42216.42 | G92: 1411695.89 | H92: =VLOOKUP(C92,'FUNDING ALLOCATION'!$B$10:$T$105,19,0) -> 290782 | I92: 0.2 | J92: 1120913.89
A93: 3022041 | B93: Sacks Morasha Jewish Primary School | C93: 11381 | D93: C | E93: 809979.73 | G93: 809979.73 | H93: =VLOOKUP(C93,'FUNDING ALLOCATION'!$B$10:$T$105,19,0) -> 161996 | I93: 0.2 | J93: 647983.73
A94: 3023309 | B94: St Johns CE N20 | C94: 10116 | D94: C | E94: 1005576.42 | F94: -46070.59 | G94: 959505.83 | H94: =VLOOKUP(C94,'FUNDING ALLOCATION'!$B$10:$T$105,19,0) -> 201115 | I94: 0.2 | J94: 758390.83
A95: 3022002 | B95: Barnfield School | C95: 10044 | D95: D | E95: 2573895.53 | F95: -51328.21 | G95: 2522567.32 | H95: =G95 -> 2522567.32 | I95: 1 | J95: 0
A96: 3023302 | B96: Christ Church CE Primary School | C96: 10050 | D96: D | E96: 931173.46 | F96: 7511.88 | G96: 938685.34 | H96: 938685.34 | I96: 1 | J96: 0
A97: 3024003 | B97: Friern Barnet School | C97: 10139 | D97: D | E97: 4821222.74 | F97: -14174.83 | G97: 4807047.91 | H97: 4807047.91 | I97: 1 | J97: 0
A98: 3027010 | B98: Mapledown | C98: 10159 | D98: D | E98: 2142843.33 | F98: 168746.72 | G98: 2311590.05 | H98: 2311590.05 | I98: 1 | J98: 0
A99: 3024004 | B99: Menorah High School (Girls) | C99: 11513 | D99: D | E99: 1279214.79 | F99: 19551 | G99: 1298765.79 | H99: 1298765.79 | I99: 1 | J99: 0
A100: 3022042 | B100: Monkfrith School | C100: 10079 | D100: D | E100: 1357170.31 | F100: 16653.42 | G100: 1373823.73 | H100: 1373823.73 | I100: 1 | J100: 0
A101: 3022076 | B101: Wessex Gardens Primary School | C101: 10124 | D101: D | E101: 2189459.25 | F101: 8571.67 | G101: 2198030.92 | H101: 2198030.92 | I101: 1 | J101: 0
A102: Grand Total | E102: =SUM(E6:E101) -> 176550356.1 | F102: =SUM(F6:F101) -> -1759601.27 | G102: =SUM(G6:G101) -> 174790754.8 | H102: =SUM(H6:H101) -> 77286556.38 | J102: =SUM(J6:J101) -> 97504198.4

Sheet FUNDING ALLOCATION
B1: Banking & Funding Option A
B2: Financial Year 2016-17
A4: 1 | B4: 2 | C4: 3 | D4: 4 | E4: 5 | F4: 6 | G4: 6 | H4: 7 | I4: 8 | J4: 9 | K4: 10 | L4: 11 | M4: 12 | N4: 13 | O4: 14 | P4: 15 | Q4: 16 | R4: 17 | S4: 18 | T4: 19 | X4: 20 | Y4: 21 | Z4: 22 | AA4: 23 | AB4: 24
D5: 1 | F5: 2 | G5: 3 | H5: 4 | I5: 5 | J5: 6 | K5: 7 | L5: 8 | M5: 9 | N5: 10 | O5: 11 | P5: 12 | Q5: 13 | R5: 14 | S5: 15 | T5: 16 | X5: 17 | Y5: 18 | Z5: 19
F6: [A] | R6: [B] | X6: Addit'l Paym't
A7: Index | B7: Cost | C7: DCFS | D7: School | E7: Option | F7: Original | G7: I01 | H7: I01 | I7: I02 | J7: I02 | K7: I03 | L7: I03 | M7: Total | R7: % deemed to be Staffing | S7: [A] minus [B] | T7: % of Orig B/share | X7: to Local Bank | Y7: Interim | Z7: Net Funding
A8: Ref | B8: Centre | C8: No. | F8: Budget Share | G8: % | H8: Amt (£) | I8: % | J8: Amt (£) | K8: % | L8: Amt (£) | M8: I01-I03 | N8: 0.1 | R8: Costs & paid into | T8: Paid to Local | X8: A/C re Revised | Y8: Payments / | Z8: Advances
G9: 543970 | I9: 543971 | K9: 543972 | R9: Central Sal A/c | T9: Bank Account | X9: Budget Share | Y9: (repayment) | Z9: in year
A10: 1 | B10: 10040 | C10: 3300 | D10: All Saints' CE School (NW2) | E10: A | F10: =VLOOKUP(B10,'[57]2016-17 CFR'!D$1:R$65536,7,0) -> 1048383.35 | G10: =VLOOKUP(C10,[58]budget!$A$12:$P$98,9,0) -> 0.8001790318 | H10: =(G10*F10)-T10 -> 629217.704 | I10: =VLOOKUP(C10,[58]budget!$A$12:$P$98,11,0) -> 0 | J10: =I10*F10 -> 0 | K10: =VLOOKUP(C10,[58]budget!$A$12:$P$98,15,0) -> 0.1998209682 | L10: =K10*F10 -> 209488.976 | M10: =H10+J10+L10 -> 838706.68 | N10: =F10-M10 -> 209676.67 | O10: =G10+I10+K10 -> 1 | P10: =M10-R10 -> 0 | Q10: =N10-S10 -> 0 | R10: =+F10/100*80 -> 838706.68 | S10: =+F10-R10 -> 209676.67 | T10: =S10 -> 209676.67 | Z10: =T10+X10+Y10 -> 209676.67 | AB10: =G10+I10+K10 -> 1
A11: =A10+1 -> 2 | B11: 10042 | C11: 3317 | D11: All Saints' CE School (N20) | E11: A | F11: =VLOOKUP(B11,'[57]2016-17 CFR'!D$1:R$65536,7,0) -> 1149968.9 | G11: =VLOOKUP(C11,[58]budget!$A$12:$P$98,9,0) -> 0.9046501996 | H11: =(G11*F11)-T11 -> 810325.8149 | I11: =VLOOKUP(C11,[58]budget!$A$12:$P$98,11,0) -> 0 | J11: =I11*F11 -> 0 | K11: =VLOOKUP(C11,[58]budget!$A$12:$P$98,15,0) -> 0.09534980039 | L11: =K11*F11 -> 109649.3051 | M11: =H11+J11+L11 -> 919975.12 | N11: =F11-M11 -> 229993.78 | O11: 1 | P11: =M11-R11 -> 0 | Q11: 0 | R11: 919975.12 | S11: 229993.78 | T11: 229993.78 | Z11: =T11+X11+Y11 -> 229993.78 | AB11: 1
A12: 3 | B12: 10117 | C12: 3514 | D12: Annunciation RC Junior | E12: A | F12: =VLOOKUP(B12,'[57]2016-17 CFR'!D$1:R$65536,7,0) -> 1026329.28 | G12: =VLOOKUP(C12,[58]budget!$A$12:$P$98,9,0) -> 0.9283102824 | H12: 747486.1678 | I12: =VLOOKUP(C12,[58]budget!$A$12:$P$98,11,0) -> 0 | J12: 0 | K12: =VLOOKUP(C12,[58]budget!$A$12:$P$98,15,0) -> 0.07168971755 | L12: 73577.2562 | M12: 821063.424 | N12: 205265.856 | O12: 1 | P12: 0 | Q12: 0 | R12: 821063.424 | S12: 205265.856 | T12: 205265.856 | Z12: 205265.856 | AB12: 1
A13: 4 | B13: 10043 | C13: 3500 | D13: Annunciation RC Infant | E13: A | F13: =VLOOKUP(B13,'[57]2016-17 CFR'!D$1:R$65536,7,0) -> 878388.66 | G13: =VLOOKUP(C13,[58]budget!$A$12:$P$98,9,0) -> 0.920067938 | H13: 632499.5112 | I13: =VLOOKUP(C13,[58]budget!$A$12:$P$98,11,0) -> 0 | J13: 0 | K13: =VLOOKUP(C13,[58]budget!$A$12:$P$98,15,0) -> 0.07993206198 | L13: 70211.41682 | M13: 702710.928 | N13: 175677.732 | O13: 1 | P13: 0 | Q13: 0 | R13: 702710.928 | S13: 175677.732 | T13: 175677.732 | Z13: 175677.732 | AB13: 1
A14: 5 | B14: 10045 | C14: 2003 | D14: Bell Lane | E14: A | F14: =VLOOKUP(B14,'[57]2016-17 CFR'!D$1:R$65536,7,0) -> 2010926.83 | G14: =VLOOKUP(C14,[58]budget!$A$12:$P$98,9,0) -> 0.8354491286 | H14: 1277841.702 | I14: =VLOOKUP(C14,[58]budget!$A$12:$P$98,11,0) -> 0 | J14: 0 | K14: =VLOOKUP(C14,[58]budget!$A$12:$P$98,15,0) -> 0.1645508714 | L14: 330899.7622 | M14: 1608741.464 | N14: 402185.366 | O14: 1 | P14: 0 | Q14: 0 | R14: 1608741.464 | S14: 402185.366 | T14: 402185.366 | Z14: 402185.366 | AB14: 1
A15: 6 | B15: 10115 | C15: 3511 | D15: Blessed Dominic | E15: A | F15: =VLOOKUP(B15,'[57]2016-17 CFR'!D$1:R$65536,7,0) -> 1868325.61 | G15: =VLOOKUP(C15,[58]budget!$A$12:$P$98,9,0) -> 0.87156069 | H15: 1254694.036 | I15: =VLOOKUP(C15,[58]budget!$A$12:$P$98,11,0) -> 0 | J15: 0 | K15: =VLOOKUP(C15,[58]budget!$A$12:$P$98,15,0) -> 0.12843931 | L15: 239966.4521 | M15: 1494660.488 | N15: 373665.122 | O15: 1 | P15: 0 | Q15: 0 | R15: 1494660.488 | S15: 373665.122 | T15: 373665.122 | Z15: 373665.122 | AB15: 1
A16: 7 | B16: 10128 | C16: 2079 | D16: Beis Yaakov | E16: A | F16: =VLOOKUP(B16,'[57]2016-17 CFR'!D$1:R$65536,7,0) -> 1825635.51 | G16: =VLOOKUP(C16,[58]budget!$A$12:$P$98,9,0) -> 0.9288924593 | H16: 1479770.549 | I16: =VLOOKUP(C16,[58]budget!$A$12:$P$98,11,0) -> 0 | J16: 0 | K16: =VLOOKUP(C16,[58]budget!$A$12:$P$98,15,0) -> 0.07110754068 | L16: 129816.4513 | M16: 1609587 | N16: 216048.51 | O16: 1 | P16: 0 | Q16: 0 | R16: 1609587 | S16: 216048.51 | T16: =S16 -> 216048.51 | Z16: 216048.51 | AB16: 1
A17: 8 | B17: 10046 | C17: 2007 | D17: Brookland Junior | E17: A | F17: =VLOOKUP(B17,'[57]2016-17 CFR'!D$1:R$65536,7,0) -> 1491258.94 | G17: =VLOOKUP(C17,[58]budget!$A$12:$P$98,9,0) -> 0.9015926924 | H17: 1046256.375 | I17: =VLOOKUP(C17,[58]budget!$A$12:$P$98,11,0) -> 0 | J17: 0 | K17: =VLOOKUP(C17,[58]budget!$A$12:$P$98,15,0) -> 0.09840730758 | L17: 146750.7772 | M17: 1193007.152 | N17: 298251.788 | O17: 1 | P17: 0 | Q17: 0 | R17: =+F17/100*80 -> 1193007.152 | S17: 298251.788 | T17: =S17 -> 298251.788 | Z17: 298251.788 | AB17: 1
A18: 9 | B18: 10047 | C18: 2008 | D18: Brookland Infant | E18: A | F18: =VLOOKUP(B18,'[57]2016-17 CFR'!D$1:R$65536,7,0) -> 1361718.23 | G18: =VLOOKUP(C18,[58]budget!$A$12:$P$98,9,0) -> 0.8846274073 | H18: 932269.6213 | I18: =VLOOKUP(C18,[58]budget!$A$12:$P$98,11,0) -> 0 | J18: 0 | K18: =VLOOKUP(C18,[58]budget!$A$12:$P$98,15,0) -> 0.1153725927 | L18: 157104.9627 | M18: 1089374.584 | N18: 272343.646 | O18: 1 | P18: 0 | Q18: 0 | R18: 1089374.584 | S18: 272343.646 | T18: 272343.646 | Z18: 272343.646 | AB18: 1
A19: 10 | B19: 10048 | C19: 2009 | D19: Brunswick Park | E19: A | F19: =VLOOKUP(B19,'[57]2016-17 CFR'!D$1:R$65536,7,0) -> 1777968.07 | G19: =VLOOKUP(C19,[58]budget!$A$12:$P$98,9,0) -> 0.7818125284 | H19: 1034444.098 | I19: =VLOOKUP(C19,[58]budget!$A$12:$P$98,11,0) -> 0 | J19: 0 | K19: =VLOOKUP(C19,[58]budget!$A$12:$P$98,15,0) -> 0.2181874716 | L19: 387930.3578 | M19: 1422374.456 | N19: 355593.614 | O19: 1 | P19: 0 | Q19: 0 | R19: 1422374.456 | S19: 355593.614 | T19: 355593.614 | Z19: 355593.614 | AB19: 1
A20: 11 | B20: 10118 | C20: 2067 | D20: Chalgrove | E20: A | F20: =VLOOKUP(B20,'[57]2016-17 CFR'!D$1:R$65536,7,0) -> 1198262.23 | G20: =VLOOKUP(C20,[58]budget!$A$12:$P$98,9,0) -> 0.8304267225 | H20: 755416.5303 | I20: =VLOOKUP(C20,[58]budget!$A$12:$P$98,11,0) -> 0 | J20: 0 | K20: =VLOOKUP(C20,[58]budget!$A$12:$P$98,15,0) -> 0.1695732775 | L20: 203193.2537 | M20: 958609.784 | N20: 239652.446 | O20: 1 | P20: 0 | Q20: 0 | R20: 958609.784 | S20: 239652.446 | T20: 239652.446 | Z20: 239652.446 | AB20: 1
A21: 12 | B21: 10049 | C21: 2010 | D21: Childs Hill | E21: A | F21: =VLOOKUP(B21,'[57]2016-17 CFR'!D$1:R$65536,7,0) -> 2070131.41 | G21: =VLOOKUP(C21,[58]budget!$A$12:$P$98,9,0) -> 0.6419217629 | H21: 914836.1222 | I21: =VLOOKUP(C21,[58]budget!$A$12:$P$98,11,0) -> 0 | J21: 0 | K21: =VLOOKUP(C21,[58]budget!$A$12:$P$98,15,0) -> 0.3580782371 | L21: 741269.0058 | M21: 1656105.128 | N21: 414026.282 | O21: 1 | P21: 0 | Q21: 0 | R21: 1656105.128 | S21: 414026.282 | T21: 414026.282 | Z21: 414026.282 | AB21: 1
A22: 13 | B22: 10051 | C22: 2011 | D22: Church Hill | E22: A | F22: =VLOOKUP(B22,'[57]2016-17 CFR'!D$1:R$65536,7,0) -> 1024570.71 | G22: =VLOOKUP(C22,[58]budget!$A$12:$P$98,9,0) -> 0.8486968322 | H22: 664635.7739 | I22: =VLOOKUP(C22,[58]budget!$A$12:$P$98,11,0) -> 0 | J22: 0 | K22: =VLOOKUP(C22,[58]budget!$A$12:$P$98,15,0) -> 0.1513031678 | L22: 155020.7941 | M22: 819656.568 | N22: 204914.142 | O22: 1 | P22: 0 | Q22: 0 | R22: 819656.568 | S22: 204914.142 | T22: 204914.142 | Z22: 204914.142 | AB22: 1
A23: 14 | B23: 10054 | C23: 2014 | D23: Colindale | E23: A | F23: =VLOOKUP(B23,'[57]2016-17 CFR'!D$1:R$65536,7,0) -> 3381076.41 | G23: =VLOOKUP(C23,[58]budget!$A$12:$P$98,9,0) -> 0.764795584 | H23: 1909617.026 | I23: =VLOOKUP(C23,[58]budget!$A$12:$P$98,11,0) -> 0 | J23: 0 | K23: =VLOOKUP(C23,[58]budget!$A$12:$P$98,15,0) -> 0.235204416 | L23: 795244.1024 | M23: 2704861.128 | N23: 676215.282 | O23: 1 | P23: 0 | Q23: 0 | R23: 2704861.128 | S23: 676215.282 | T23: 676215.282 | Z23: 676215.282 | AB23: 1
A24: 15 | B24: 10055 | C24: 2015 | D24: Coppetts Wood | E24: A | F24: =VLOOKUP(B24,'[57]2016-17 CFR'!D$1:R$65536,7,0) -> 1530193.24 | G24: =VLOOKUP(C24,[58]budget!$A$12:$P$98,9,0) -> 0.6848783295 | H24: 741957.5421 | I24: =VLOOKUP(C24,[58]budget!$A$12:$P$98,11,0) -> 0 | J24: 0 | K24: =VLOOKUP(C24,[58]budget!$A$12:$P$98,15,0) -> 0.3151216705 | L24: 482197.0499 | M24: 1224154.592 | N24: 306038.648 | O24: 1 | P24: 0 | Q24: 0 | R24: 1224154.592 | S24: 306038.648 | T24: 306038.648 | Z24: 306038.648 | AB24: 1
A25: 16 | B25: 10056 | C25: 2016 | D25: Courtland | E25: A | F25: =VLOOKUP(B25,'[57]2016-17 CFR'!D$1:R$65536,7,0) -> 964477.72 | G25: =VLOOKUP(C25,[58]budget!$A$12:$P$98,9,0) -> 0.9126225493 | H25: 687308.5716 | I25: =VLOOKUP(C25,[58]budget!$A$12:$P$98,11,0) -> 0 | J25: 0 | K25: =VLOOKUP(C25,[58]budget!$A$12:$P$98,15,0) -> 0.08737745067 | L25: 84273.60441 | M25: 771582.176 | N25: 192895.544 | O25: 1 | P25: 0 | Q25: 0 | R25: 771582.176 | S25: 192895.544 | T25: 192895.544 | Z25: 192895.544 | AB25: 1
A26: 17 | B26: 10057 | C26: 2017 | D26: Cromer Road | E26: A | F26: =VLOOKUP(B26,'[57]2016-17 CFR'!D$1:R$65536,7,0) -> 1759514.26 | G26: =VLOOKUP(C26,[58]budget!$A$12:$P$98,9,0) -> 0.9071038799 | H26: 1244159.36 | I26: =VLOOKUP(C26,[58]budget!$A$12:$P$98,11,0) -> 0 | J26: 0 | K26: =VLOOKUP(C26,[58]budget!$A$12:$P$98,15,0) -> 0.09289612006 | L26: 163452.0479 | M26: 1407611.408 | N26: 351902.852 | O26: 1 | P26: 0 | Q26: 0 | R26: 1407611.408 | S26: 351902.852 | T26: 351902.852 | Z26: 351902.852 | AB26: 1
A27: 18 | B27: 10059 | C27: 2019 | D27: Deansbrook Infant | E27: A | F27: =VLOOKUP(B27,'[57]2016-17 CFR'!D$1:R$65536,7,0) -> 1478267.93 | G27: =VLOOKUP(C27,[58]budget!$A$12:$P$98,9,0) -> 0.8111757907 | H27: 903481.571 | I27: =VLOOKUP(C27,[58]budget!$A$12:$P$98,11,0) -> 0 | J27: 0 | K27: =VLOOKUP(C27,[58]budget!$A$12:$P$98,15,0) -> 0.1888242093 | L27: 279132.773 | M27: 1182614.344 | N27: 295653.586 | O27: 1 | P27: 0 | Q27: 0 | R27: 1182614.344 | S27: 295653.586 | T27: 295653.586 | Z27: 295653.586 | AB27: 1
A28: 19 | B28: 10061 | C28: 2021 | D28: Dollis Infants | E28: A | F28: =VLOOKUP(B28,'[57]2016-17 CFR'!D$1:R$65536,7,0) -> 1488547.41 | G28: =VLOOKUP(C28,[58]budget!$A$12:$P$98,9,0) -> 0.8324162069 | H28: 941381.5069 | I28: =VLOOKUP(C28,[58]budget!$A$12:$P$98,11,0) -> 0 | K28: =VLOOKUP(C28,[58]budget!$A$12:$P$98,15,0) -> 0.1675837931 | L28: 249456.4211 | M28: =H28+J28+L28 -> 1190837.928 | N28: 297709.482 | O28: 1 | P28: 0 | Q28: 0 | R28: 1190837.928 | S28: 297709.482 | T28: 297709.482 | Z28: 297709.482 | AB28: 1
A29: 20 | B29: 10064 | C29: 2024 | D29: Fairway | E29: A | F29: =VLOOKUP(B29,'[57]2016-17 CFR'!D$1:R$65536,7,0) -> 1315843.89 | G29: =VLOOKUP(C29,[58]budget!$A$12:$P$98,9,0) -> 0.8424955014 | H29: =(G29*F29)-T29 -> 845423.7799 | I29: =VLOOKUP(C29,[58]budget!$A$12:$P$98,11,0) -> 0 | J29: =I29*F29 -> 0 | K29: =VLOOKUP(C29,[58]budget!$A$12:$P$98,15,0) -> 0.1575044986 | L29: =K29*F29 -> 207251.3321 | M29: =H29+J29+L29 -> 1052675.112 | N29: =F29-M29 -> 263168.778 | O29: =G29+I29+K29 -> 1 | P29: =M29-R29 -> 0 | Q29: =N29-S29 -> 0 | R29: 1052675.112 | S29: 263168.778 | T29: 263168.778 | Z29: =T29+X29+Y29 -> 263168.778
A30: 21 | B30: 10066 | C30: 2026 | D30: Frith Manor School | E30: A | F30: =VLOOKUP(B30,'[57]2016-17 CFR'!D$1:R$65536,7,0) -> 2723272.75 | G30: =VLOOKUP(C30,[58]budget!$A$12:$P$98,9,0) -> 0.9064160291 | H30: 1923763.522 | I30: =VLOOKUP(C30,[58]budget!$A$12:$P$98,11,0) -> 0 | J30: =I30*F30 -> 0 | K30: =VLOOKUP(C30,[58]budget!$A$12:$P$98,15,0) -> 0.0935839709 | L30: 254854.6778 | M30: 2178618.2 | N30: 544654.55 | O30: 1 | P30: 0 | Q30: 0 | R30: 2178618.2 | S30: 544654.55 | T30: 544654.55 | Z30: 544654.55 | AB30: =G30+I30+K30 -> 1
A31: 22 | B31: 10067 | C31: 2027 | D31: Garden Suburb Junior School | E31: A | F31: =VLOOKUP(B31,'[57]2016-17 CFR'!D$1:R$65536,7,0) -> 1563881.66 | G31: =VLOOKUP(C31,[58]budget!$A$12:$P$98,9,0) -> 0.8654668226 | H31: 1040711.359 | I31: =VLOOKUP(C31,[58]budget!$A$12:$P$98,11,0) -> 0 | J31: 0 | K31: =VLOOKUP(C31,[58]budget!$A$12:$P$98,15,0) -> 0.1345331774 | L31: 210393.9688 | M31: 1251105.328 | N31: 312776.332 | O31: 1 | P31: =M31-R31 -> 0 | Q31: 0 | R31: 1251105.328 | S31: 312776.332 | T31: 312776.332 | Z31: 312776.332 | AB31: 1
A32: 23 | B32: 10068 | C32: 2028 | D32: Garden Suburb Infant School | E32: A | F32: =VLOOKUP(B32,'[57]2016-17 CFR'!D$1:R$65536,7,0) -> 1153197.03 | G32: =VLOOKUP(C32,[58]budget!$A$12:$P$98,9,0) -> 0.8862098248 | H32: 791335.1319 | I32: =VLOOKUP(C32,[58]budget!$A$12:$P$98,11,0) -> 0 | J32: 0 | K32: =VLOOKUP(C32,[58]budget!$A$12:$P$98,15,0) -> 0.1137901752 | L32: 131222.4921 | M32: 922557.624 | N32: 230639.406 | O32: 1 | P32: 0 | Q32: 0 | R32: 922557.624 | S32: 230639.406 | T32: 230639.406 | Z32: 230639.406 | AB32: 1
A33: 24 | B33: 10069 | C33: 2029 | D33: Goldbeaters School | E33: A | F33: =VLOOKUP(B33,'[57]2016-17 CFR'!D$1:R$65536,7,0) -> 2268196.77 | G33: =VLOOKUP(C33,[58]budget!$A$12:$P$98,9,0) -> 0.8324645739 | H33: 1434554.104 | I33: =VLOOKUP(C33,[58]budget!$A$12:$P$98,11,0) -> 0 | J33: 0 | K33: =VLOOKUP(C33,[58]budget!$A$12:$P$98,15,0) -> 0.1675354261 | L33: 380003.3123 | M33: 1814557.416 | N33: 453639.354 | O33: 1 | P33: 0 | Q33: 0 | R33: 1814557.416 | S33: 453639.354 | T33: 453639.354 | Z33: 453639.354 | AB33: 1
A34: 25 | B34: 10127 | C34: 2077 | D34: The Orion School | E34: A | F34: =VLOOKUP(B34,'[57]2016-17 CFR'!D$1:R$65536,7,0) -> 4564842.26 | G34: =VLOOKUP(C34,[58]budget!$A$12:$P$98,9,0) -> 0.7415576781 | H34: 2472125.375 | I34: =VLOOKUP(C34,[58]budget!$A$12:$P$98,11,0) -> 0 | J34: 0 | K34: =VLOOKUP(C34,[58]budget!$A$12:$P$98,15,0) -> 0.2584423219 | L34: 1179748.433 | M34: 3651873.808 | N34: 912968.452 | O34: 1 | P34: 0 | Q34: 0 | R34: 3651873.808 | S34: 912968.452 | T34: 912968.452 | Z34: 912968.452 | AB34: 1
A35: 26 | B35: 10121 | C35: 3516 | D35: Hasmonean Primary School | E35: A | F35: =VLOOKUP(B35,'[57]2016-17 CFR'!D$1:R$65536,7,0) -> 962785.9 | G35: =VLOOKUP(C35,[58]budget!$A$12:$P$98,9,0) -> 0.9004882784 | H35: 826673.5176 | I35: =VLOOKUP(C35,[58]budget!$A$12:$P$98,11,0) -> 0 | J35: 0 | K35: =VLOOKUP(C35,[58]budget!$A$12:$P$98,15,0) -> 0.09951172161 | L35: 95808.48245 | M35: 922482 | N35: 40303.9 | O35: 1 | P35: 0 | Q35: 0 | R35: 922482 | S35: 40303.9 | T35: 40303.9 | Z35: 40303.9 | AB35: 1
A36: 27 | B36: 10071 | C36: 2031 | D36: Hollickwood | E36: A | F36: =VLOOKUP(B36,'[57]2016-17 CFR'!D$1:R$65536,7,0) -> 1161124.85 | G36: =VLOOKUP(C36,[58]budget!$A$12:$P$98,9,0) -> 0.8066137308 | H36: 704354.2772 | I36: =VLOOKUP(C36,[58]budget!$A$12:$P$98,11,0) -> 0 | J36: 0 | K36: =VLOOKUP(C36,[58]budget!$A$12:$P$98,15,0) -> 0.1933862692 | L36: 224545.6028 | M36: 928899.88 | N36: 232224.97 | O36: 1 | P36: 0 | Q36: 0 | R36: =+F36/100*80 -> 928899.88 | S36: 232224.97 | T36: 232224.97 | Z36: 232224.97 | AB36: 1
A37: 28 | B37: 10072 | C37: 2032 | D37: Holly Park | E37: A | F37: =VLOOKUP(B37,'[57]2016-17 CFR'!D$1:R$65536,7,0) -> 2216407.58 | G37: =VLOOKUP(C37,[58]budget!$A$12:$P$98,9,0) -> 0.8573676365 | H37: 1456994.612 | I37: =VLOOKUP(C37,[58]budget!$A$12:$P$98,11,0) -> 0 | J37: 0 | K37: =VLOOKUP(C37,[58]budget!$A$12:$P$98,15,0) -> 0.1426323635 | L37: 316131.4516 | M37: 1773126.064 | N37: 443281.516 | O37: 1 | P37: 0 | Q37: 0 | R37: =+F37/100*80 -> 1773126.064 | S37: 443281.516 | T37: 443281.516 | Z37: 443281.516 | AB37: 1
A38: 29 | B38: 10073 | C38: 3304 | D38: Holy Trinity | E38: A | F38: =VLOOKUP(B38,'[57]2016-17 CFR'!D$1:R$65536,7,0) -> 1188755.58 | G38: =VLOOKUP(C38,[58]budget!$A$12:$P$98,9,0) -> 0.9279716466 | H38: 865380.357 | I38: =VLOOKUP(C38,[58]budget!$A$12:$P$98,11,0) -> 0 | J38: 0 | K38: =VLOOKUP(C38,[58]budget!$A$12:$P$98,15,0) -> 0.07202835339 | L38: 85624.10701 | M38: 951004.464 | N38: 237751.116 | O38: 1 | P38: 0 | Q38: 0 | R38: =+F38/100*80 -> 951004.464 | S38: 237751.116 | T38: 237751.116 | Z38: 237751.116 | AB38: 1
A39: 30 | B39: 10074 | C39: 2036 | D39: Livingstone | E39: A | F39: =VLOOKUP(B39,'[57]2016-17 CFR'!D$1:R$65536,7,0) -> 2039248.52 | G39: =VLOOKUP(C39,[58]budget!$A$12:$P$98,9,0) -> 0.5344717264 | H39: 682070.973 | I39: =VLOOKUP(C39,[58]budget!$A$12:$P$98,11,0) -> 0 | J39: 0 | K39: =VLOOKUP(C39,[58]budget!$A$12:$P$98,15,0) -> 0.4655282736 | L39: 949327.843 | M39: 1631398.816 | N39: 407849.704 | O39: 1 | P39: 0 | Q39: 0 | R39: =+F39/100*80 -> 1631398.816 | S39: 407849.704 | T39: 407849.704 | Z39: 407849.704 | AB39: 1
A40: 31 | B40: 10075 | C40: 2037 | D40: Manorside | E40: A | F40: =VLOOKUP(B40,'[57]2016-17 CFR'!D$1:R$65536,7,0) -> 1543531.87 | G40: =VLOOKUP(C40,[58]budget!$A$12:$P$98,9,0) -> 0.8360758869 | H40: 981803.4032 | I40: =VLOOKUP(C40,[58]budget!$A$12:$P$98,11,0) -> 0 | J40: 0 | K40: =VLOOKUP(C40,[58]budget!$A$12:$P$98,15,0) -> 0.1639241131 | L40: 253022.0928 | M40: 1234825.496 | N40: 308706.374 | O40: 1 | P40: 0 | Q40: 0 | R40: =+F40/100*80 -> 1234825.496 | S40: 308706.374 | T40: 308706.374 | Z40: 308706.374 | AB40: 1
A41: 32 | B41: 10114 | C41: 3513 | D41: Menorah Primary | E41: A | F41: =VLOOKUP(B41,'[57]2016-17 CFR'!D$1:R$65536,7,0) -> 1712661.7 | G41: =VLOOKUP(C41,[58]budget!$A$12:$P$98,9,0) -> 0.904292255 | H41: 1360843.011 | I41: =VLOOKUP(C41,[58]budget!$A$12:$P$98,11,0) -> 0 | J41: 0 | K41: =VLOOKUP(C41,[58]budget!$A$12:$P$98,15,0) -> 0.09570774499 | L41: 163914.9892 | M41: 1524758 | N41: 187903.7 | O41: 1 | P41: 0 | Q41: 0 | R41: 1524758 | S41: 187903.7 | T41: 187903.7 | Z41: 187903.7 | AB41: 1
A42: 33 | B42: 10078 | C42: 3305 | D42: Monken Hadley | E42: A | F42: =VLOOKUP(B42,'[57]2016-17 CFR'!D$1:R$65536,7,0) -> 641809.87 | G42: =VLOOKUP(C42,[58]budget!$A$12:$P$98,9,0) -> 0.9496433741 | H42: 481128.5165 | I42: =VLOOKUP(C42,[58]budget!$A$12:$P$98,11,0) -> 0 | J42: 0 | K42: =VLOOKUP(C42,[58]budget!$A$12:$P$98,15,0) -> 0.05035662593 | L42: 32319.37954 | M42: 513447.896 | N42: 128361.974 | O42: 1 | P42: 0 | Q42: 0 | R42: =+F42/100*80 -> 513447.896 | S42: =+F42-R42 -> 128361.974 | T42: 128361.974 | Z42: 128361.974 | AB42: 1
A43: 34 | B43: 10080 | C43: 2043 | D43: Moss Hall Junior | E43: A | F43: =VLOOKUP(B43,'[57]2016-17 CFR'!D$1:R$65536,7,0) -> 1862067.72 | G43: =VLOOKUP(C43,[58]budget!$A$12:$P$98,9,0) -> 0.8045982373 | H43: 1125802.861 | I43: =VLOOKUP(C43,[58]budget!$A$12:$P$98,11,0) -> 0 | J43: 0 | K43: =VLOOKUP(C43,[58]budget!$A$12:$P$98,15,0) -> 0.1954017627 | L43: 363851.3147 | M43: 1489654.176 | N43: 372413.544 | O43: 1 | P43: 0 | Q43: 0 | R43: =+F43/100*80 -> 1489654.176 | S43: 372413.544 | T43: 372413.544 | Z43: 372413.544 | AB43: 1
A44: 35 | B44: 10081 | C44: 2044 | D44: Moss Hall Infant | E44: A | F44: =VLOOKUP(B44,'[57]2016-17 CFR'!D$1:R$65536,7,0) -> 1643453.34 | G44: =VLOOKUP(C44,[58]budget!$A$12:$P$98,9,0) -> 0.8646706763 | H44: 1092355.243 | I44: =VLOOKUP(C44,[58]budget!$A$12:$P$98,11,0) -> 0 | J44: 0 | K44: =VLOOKUP(C44,[58]budget!$A$12:$P$98,15,0) -> 0.1353293237 | L44: 222407.4291 | M44: 1314762.672 | N44: 328690.668 | O44: 1 | P44: 0 | Q44: 0 | R44: =+F44/100*80 -> 1314762.672 | S44: 328690.668 | T44: 328690.668 | Z44: 328690.668 | AB44: 1
A45: 36 | B45: 10082 | C45: 2045 | D45: Northside School | E45: A | F45: =VLOOKUP(B45,'[57]2016-17 CFR'!D$1:R$65536,7,0) -> 1345261.33 | G45: =VLOOKUP(C45,[58]budget!$A$12:$P$98,9,0) -> 0.8413780861 | H45: 862821.1371 | I45: =VLOOKUP(C45,[58]budget!$A$12:$P$98,11,0) -> 0 | J45: 0 | K45: =VLOOKUP(C45,[58]budget!$A$12:$P$98,15,0) -> 0.1586219139 | L45: 213387.9269 | M45: 1076209.064 | N45: 269052.266 | O45: 1 | P45: 0 | Q45: 0 | R45: =+F45/100*80 -> 1076209.064 | S45: 269052.266 | T45: 269052.266 | Z45: 269052.266 | AB45: 1
A46: 37 | B46: 10085 | C46: 3501 | D46: Our Lady of Lourdes | E46: A | F46: =VLOOKUP(B46,'[57]2016-17 CFR'!D$1:R$65536,7,0) -> 1049671.16 | G46: =VLOOKUP(C46,[58]budget!$A$12:$P$98,9,0) -> 0.880946643 | H46: 714770.0527 | I46: =VLOOKUP(C46,[58]budget!$A$12:$P$98,11,0) -> 0 | J46: 0 | K46: =VLOOKUP(C46,[58]budget!$A$12:$P$98,15,0) -> 0.119053357 | L46: 124966.8753 | M46: 839736.928 | N46: 209934.232 | O46: 1 | P46: 0 | Q46: 0 | R46: =+F46/100*80 -> 839736.928 | S46: 209934.232 | T46: 209934.232 | Z46: 209934.232 | AB46: 1
A47: 38 | B47: 10129 | C47: 2078 | D47: Pardes House | E47: A | F47: =VLOOKUP(B47,'[57]2016-17 CFR'!D$1:R$65536,7,0) -> 1109983.61 | G47: =VLOOKUP(C47,[58]budget!$A$12:$P$98,9,0) -> 0.8871532626 | H47: 851094.9711 | I47: =VLOOKUP(C47,[58]budget!$A$12:$P$98,11,0) -> 0 | J47: 0 | K47: =VLOOKUP(C47,[58]budget!$A$12:$P$98,15,0) -> 0.1128467374 | L47: 125258.0289 | M47: 976353 | N47: 133630.61 | O47: 1 | P47: 0 | Q47: 0 | R47: 976353 | S47: 133630.61 | T47: 133630.61 | Z47: 133630.61 | AB47: 1
A48: 39 | B48: 10112 | C48: 3512 | D48: Rosh Pinah | E48: A | F48: =VLOOKUP(B48,'[57]2016-17 CFR'!D$1:R$65536,7,0) -> 1716592.41 | G48: =VLOOKUP(C48,[58]budget!$A$12:$P$98,9,0) -> 0.903196142 | H48: =(G48*F48)-T48-X48 -> 1466940.232 | I48: =VLOOKUP(C48,[58]budget!$A$12:$P$98,11,0) -> 0 | J48: 0 | K48: =VLOOKUP(C48,[58]budget!$A$12:$P$98,15,0) -> 0.096803858 | L48: 166172.7679 | M48: 1633113 | N48: 83479.41 | O48: 1 | P48: 0 | Q48: 0 | R48: 1633113 | S48: 83479.41 | T48: 83479.41 | Y48: 23447.27 | Z48: 106926.68 | AB48: 1
A49: =A48+1 -> 40 | B49: 10110 | C49: 3510 | D49: Sacred Heart | E49: A | F49: =VLOOKUP(B49,'[57]2016-17 CFR'!D$1:R$65536,7,0) -> 1635877.3 | G49: =VLOOKUP(C49,[58]budget!$A$12:$P$98,9,0) -> 0.9380306241 | H49: =(G49*F49)-T49 -> 1207327.545 | I49: =VLOOKUP(C49,[58]budget!$A$12:$P$98,11,0) -> 0 | J49: 0 | K49: =VLOOKUP(C49,[58]budget!$A$12:$P$98,15,0) -> 0.06196937593 | L49: 101374.2954 | M49: 1308701.84 | N49: 327175.46 | O49: 1 | P49: 0 | Q49: 0 | R49: =+F49/100*80 -> 1308701.84 | S49: 327175.46 | T49: 327175.46 | Z49: 327175.46 | AB49: 1
A50: 41 | B50: 10087 | C50: 3502 | D50: St. Agnes' | E50: A | F50: =VLOOKUP(B50,'[57]2016-17 CFR'!D$1:R$65536,7,0) -> 1459320.68 | G50: =VLOOKUP(C50,[58]budget!$A$12:$P$98,9,0) -> 0.8811776798 | H50: =(G50*F50)-T50 -> 994056.6748 | I50: =VLOOKUP(C50,[58]budget!$A$12:$P$98,11,0) -> 0 | J50: 0 | K50: =VLOOKUP(C50,[58]budget!$A$12:$P$98,15,0) -> 0.1188223202 | L50: 173399.8692 | M50: 1167456.544 | N50: 291864.136 | O50: 1 | P50: 0 | Q50: 0 | R50: 1167456.544 | S50: 291864.136 | T50: 291864.136 | Z50: 291864.136 | AB50: 1
A51: 42 | B51: 10099 | C51: 3315 | D51: St. Andrew's | E51: A | F51: =VLOOKUP(B51,'[57]2016-17 CFR'!D$1:R$65536,7,0) -> 884798.15 | G51: =VLOOKUP(C51,[58]budget!$A$12:$P$98,9,0) -> 0.9426942984 | H51: =(G51*F51)-T51 -> 657134.5413 | I51: =VLOOKUP(C51,[58]budget!$A$12:$P$98,11,0) -> 0 | J51: 0 | K51: =VLOOKUP(C51,[58]budget!$A$12:$P$98,15,0) -> 0.05730570157 | L51: 50703.97873 | M51: 707838.52 | N51: 176959.63 | O51: 1 | P51: 0 | Q51: 0 | R51: 707838.52 | S51: 176959.63 | T51: 176959.63 | Z51: 176959.63 | AB51: 1
A52: 43 | B52: 10088 | C52: 3504 | D52: St. Catherine's | E52: A | F52: =VLOOKUP(B52,'[57]2016-17 CFR'!D$1:R$65536,7,0) -> 1984105.71 | G52: =VLOOKUP(C52,[58]budget!$A$12:$P$98,9,0) -> 0.8946198513 | H52: =(G52*F52)-T52 -> 1378199.213 | I52: =VLOOKUP(C52,[58]budget!$A$12:$P$98,11,0) -> 0 | J52: 0 | K52: =VLOOKUP(C52,[58]budget!$A$12:$P$98,15,0) -> 0.1053801487 | L52: 209085.3547 | M52: 1587284.568 | N52: 396821.142 | O52: 1 | P52: 0 | Q52: 0 | R52: 1587284.568 | S52: 396821.142 | T52: 396821.142 | Z52: 396821.142 | AB52: 1
A53: 44 | B53: 10089 | C53: 3307 | D53: St. John's CE (N11) | E53: A | F53: =VLOOKUP(B53,'[57]2016-17 CFR'!D$1:R$65536,7,0) -> 985198.25 | G53: =VLOOKUP(C53,[58]budget!$A$12:$P$98,9,0) -> 0.967142483 | H53: =(G53*F53)-T53 -> 755787.4317 | I53: =VLOOKUP(C53,[58]budget!$A$12:$P$98,11,0) -> 0 | J53: 0 | K53: =VLOOKUP(C53,[58]budget!$A$12:$P$98,15,0) -> 0.03285751701 | L53: 32371.16826 | M53: 788158.6 | N53: 197039.65 | O53: 1 | P53: 0 | Q53: 0 | R53: 788158.6 | S53: 197039.65 | T53: 197039.65 | Z53: 197039.65 | AB53: 1
A54: 45 | B54: 10107 | C54: 3509 | D54: St. Joseph's RC Primary | E54: A | F54: =VLOOKUP(B54,'[57]2016-17 CFR'!D$1:R$65536,7,0) -> 2059974.38 | G54: =VLOOKUP(C54,[58]budget!$A$12:$P$98,9,0) -> 0.8675517616 | H54: =(G54*F54)-T54 -> 1375139.526 | I54: =VLOOKUP(C54,[58]budget!$A$12:$P$98,11,0) -> 0 | J54: 0 | K54: =VLOOKUP(C54,[58]budget!$A$12:$P$98,15,0) -> 0.1324482384 | L54: 272839.9777 | M54: 1647979.504 | N54: 411994.876 | O54: 1 | P54: 0 | Q54: 0 | R54: 1647979.504 | S54: 411994.876 | T54: 411994.876 | Z54: 411994.876 | AB54: 1
A55: 46 | B55: 10092 | C55: 3311 | D55: St. Mary's CE (N3) | E55: A | F55: =VLOOKUP(B55,'[57]2016-17 CFR'!D$1:R$65536,7,0) -> 1768992.4 | G55: =VLOOKUP(C55,[58]budget!$A$12:$P$98,9,0) -> 0.9378248646 | H55: 1305206.578 | I55: =VLOOKUP(C55,[58]budget!$A$12:$P$98,11,0) -> 0 | J55: 0 | K55: =VLOOKUP(C55,[58]budget!$A$12:$P$98,15,0) -> 0.06217513538 | L55: 109987.342 | M55: 1415193.92 | N55: 353798.48 | O55: 1 | P55: 0 | Q55: 0 | R55: 1415193.92 | S55: 353798.48 | T55: 353798.48 | Z55: 353798.48 | AB55: 1
A56: 47 | B56: 10093 | C56: 3312 | D56: St. Mary's CE (EN4) | E56: A | F56: =VLOOKUP(B56,'[57]2016-17 CFR'!D$1:R$65536,7,0) -> 930016.58 | G56: =VLOOKUP(C56,[58]budget!$A$12:$P$98,9,0) -> 0.8868433499 | H56: 638775.7033 | I56: =VLOOKUP(C56,[58]budget!$A$12:$P$98,11,0) -> 0 | J56: 0 | K56: =VLOOKUP(C56,[58]budget!$A$12:$P$98,15,0) -> 0.1131566501 | L56: 105237.5607 | M56: 744013.264 | N56: 186003.316 | O56: 1 | P56: 0 | Q56: 0 | R56: 744013.264 | S56: 186003.316 | T56: 186003.316 | Z56: 186003.316 | AB56: 1
A57: 48 | B57: 10094 | C57: 3313 | D57: St Paul's CE (N11) | E57: A | F57: =VLOOKUP(B57,'[57]2016-17 CFR'!D$1:R$65536,7,0) -> 1053778.11 | G57: =VLOOKUP(C57,[58]budget!$A$12:$P$98,9,0) -> 0.919251799 | H57: 757931.8013 | I57: =VLOOKUP(C57,[58]budget!$A$12:$P$98,11,0) -> 0 | J57: 0 | K57: =VLOOKUP(C57,[58]budget!$A$12:$P$98,15,0) -> 0.08074820103 | L57: 85090.68667 | M57: 843022.488 | N57: 210755.622 | O57: 1 | P57: 0 | Q57: 0 | R57: 843022.488 | S57: 210755.622 | T57: 210755.622 | Z57: 210755.622 | AB57: 1
A58: 49 | B58: 10108 | C58: 3507 | D58: St. Theresa's | E58: A | F58: =VLOOKUP(B58,'[57]2016-17 CFR'!D$1:R$65536,7,0) -> 990209.07 | G58: =VLOOKUP(C58,[58]budget!$A$12:$P$98,9,0) -> 0.9499835104 | H58: 742640.4744 | I58: =VLOOKUP(C58,[58]budget!$A$12:$P$98,11,0) -> 0 | J58: 0 | K58: =VLOOKUP(C58,[58]budget!$A$12:$P$98,15,0) -> 0.05001648957 | L58: 49526.78162 | M58: 792167.256 | N58: 198041.814 | O58: 1 | P58: 0 | Q58: 0 | R58: 792167.256 | S58: 198041.814 | T58: 198041.814 | Z58: 198041.814 | AB58: 1
A59: 50 | B59: 10096 | C59: 3506 | D59: St. Vincent's | E59: A | F59: =VLOOKUP(B59,'[57]2016-17 CFR'!D$1:R$65536,7,0) -> 1376772.97 | G59: =VLOOKUP(C59,[58]budget!$A$12:$P$98,9,0) -> 0.9029182576 | H59: 967758.8572 | I59: =VLOOKUP(C59,[58]budget!$A$12:$P$98,11,0) -> 0 | J59: 0 | K59: =VLOOKUP(C59,[58]budget!$A$12:$P$98,15,0) -> 0.09708174239 | L59: 133659.5188 | M59: 1101418.376 | N59: 275354.594 | O59: 1 | P59: 0 | Q59: 0 | R59: 1101418.376 | S59: 275354.594 | T59: 275354.594 | Z59: 275354.594 | AB59: 1
A60: 51 | B60: 10098 | C60: 2052 | D60: Summerside | E60: A | F60: =VLOOKUP(B60,'[57]2016-17 CFR'!D$1:R$65536,7,0) -> 2505899.55 | G60: =VLOOKUP(C60,[58]budget!$A$12:$P$98,9,0) -> 0.7109934941 | H60: =(G60*F60)-T60 -> 1280498.367 | I60: =VLOOKUP(C60,[58]budget!$A$12:$P$98,11,0) -> 0 | J60: =I60*F60 -> 0 | K60: =VLOOKUP(C60,[58]budget!$A$12:$P$98,15,0) -> 0.2890065059 | L60: =K60*F60 -> 724221.2731 | M60: =H60+J60+L60 -> 2004719.64 | N60: =F60-M60 -> 501179.91 | O60: 1 | P60: =M60-R60 -> 0 | Q60: =N60-S60 -> 0 | R60: 2004719.64 | S60: 501179.91 | T60: 501179.91 | Z60: =T60+X60+Y60 -> 501179.91 | AB60: 1
A61: 52 | B61: 10097 | C61: 2070 | D61: Sunnyfields | E61: A | F61: =VLOOKUP(B61,'[57]2016-17 CFR'!D$1:R$65536,7,0) -> 1163646.06 | G61: =VLOOKUP(C61,[58]budget!$A$12:$P$98,9,0) -> 0.8139665935 | H61: 714439.8075 | I61: =VLOOKUP(C61,[58]budget!$A$12:$P$98,11,0) -> 0 | J61: 0 | K61: =VLOOKUP(C61,[58]budget!$A$12:$P$98,15,0) -> 0.1860334065 | L61: 216477.0405 | M61: 930916.848 | N61: 232729.212 | O61: 1 | P61: 0 | Q61: 0 | R61: 930916.848 | S61: 232729.212 | T61: 232729.212 | Z61: 232729.212 | AB61: 1
A62: 53 | B62: 10100 | C62: 3316 | D62: Trent | E62: A | F62: =VLOOKUP(B62,'[57]2016-17 CFR'!D$1:R$65536,7,0) -> 845186.52 | G62: =VLOOKUP(C62,[58]budget!$A$12:$P$98,9,0) -> 0.9711630448 | H62: 651776.6102 | I62: =VLOOKUP(C62,[58]budget!$A$12:$P$98,11,0) -> 0 | J62: 0 | K62: =VLOOKUP(C62,[58]budget!$A$12:$P$98,15,0) -> 0.02883695523 | L62: 24372.60584 | M62: 676149.216 | N62: 169037.304 | O62: 1 | P62: 0 | Q62: 0 | R62: 676149.216 | S62: 169037.304 | T62: 169037.304 | Z62: 169037.304 | AB62: 1
A63: 54 | B63: 10101 | C63: 2055 | D63: Tudor | E63: A | F63: =VLOOKUP(B63,'[57]2016-17 CFR'!D$1:R$65536,7,0) -> 1200546.6 | G63: =VLOOKUP(C63,[58]budget!$A$12:$P$98,9,0) -> 0.8377824082 | H63: 765687.5017 | I63: =VLOOKUP(C63,[58]budget!$A$12:$P$98,11,0) -> 0 | J63: 0 | K63: =VLOOKUP(C63,[58]budget!$A$12:$P$98,15,0) -> 0.1622175918 | L63: 194749.7783 | M63: 960437.28 | N63: 240109.32 | O63: 1 | P63: 0 | Q63: 0 | R63: 960437.28 | S63: 240109.32 | T63: 240109.32 | Z63: 240109.32 | AB63: 1
A64: 55 | B64: 10105 | C64: 2060 | D64: Whitings Hill | E64: A | F64: =VLOOKUP(B64,'[57]2016-17 CFR'!D$1:R$65536,7,0) -> 2283870.37 | G64: =VLOOKUP(C64,[58]budget!$A$12:$P$98,9,0) -> 0.7813312945 | H64: 1327685.319 | I64: =VLOOKUP(C64,[58]budget!$A$12:$P$98,11,0) -> 0 | J64: 0 | K64: =VLOOKUP(C64,[58]budget!$A$12:$P$98,15,0) -> 0.2186687055 | L64: 499410.9774 | M64: 1827096.296 | N64: 456774.074 | O64: 1 | P64: 0 | Q64: 0 | R64: 1827096.296 | S64: 456774.074 | T64: 456774.074 | Z64: 456774.074 | AB64: 1
A65: 56 | B65: 10123 | C65: 3518 | D65: Woodcroft Primary | E65: A | F65: =VLOOKUP(B65,'[57]2016-17 CFR'!D$1:R$65536,7,0) -> 2403370.48 | G65: =VLOOKUP(C65,[58]budget!$A$12:$P$98,9,0) -> 0.8316721457 | H65: =(G65*F65)-T65-X65 -> 1518142.188 | I65: =VLOOKUP(C65,[58]budget!$A$12:$P$98,11,0) -> 0 | J65: 0 | K65: =VLOOKUP(C65,[58]budget!$A$12:$P$98,15,0) -> 0.1683278543 | L65: 404554.196 | M65: 1922696.384 | N65: 480674.096 | O65: 1 | P65: 0 | Q65: 0 | R65: 1922696.384 | S65: 480674.096 | T65: 480674.096 | Z65: 480674.096 | AB65: 1
A66: 57 | B66: 10109 | C66: 2054 | D66: Woodridge | E66: A | F66: =VLOOKUP(B66,'[57]2016-17 CFR'!D$1:R$65536,7,0) -> 1027801.89 | G66: =VLOOKUP(C66,[58]budget!$A$12:$P$98,9,0) -> 0.8579826786 | H66: =(G66*F66)-T66 -> 676275.8406 | I66: =VLOOKUP(C66,[58]budget!$A$12:$P$98,11,0) -> 0 | J66: 0 | K66: =VLOOKUP(C66,[58]budget!$A$12:$P$98,15,0) -> 0.1420173214 | L66: 145965.6714 | M66: 822241.512 | N66: 205560.378 | O66: 1 | P66: 0 | Q66: 0 | R66: 822241.512 | S66: 205560.378 | T66: 205560.378 | Z66: 205560.378 | AB66: 1
A67: =A66+1 -> 58 | B67: 11174 | C67: 5427 | D67: JCOSS | E67: A | F67: =VLOOKUP(B67,'[57]2016-17 CFR'!D$1:R$65536,7,0) -> 7402775.76 | G67: =VLOOKUP(C67,[58]budget!$A$101:$P$120,9,0) -> 0.8609333492 | H67: =(G67*F67)-T67-X67 -> 5532164.768 | I67: =VLOOKUP(C67,[58]budget!$A$101:$P$120,11,0) -> 0 | J67: =I67*F67 -> 0 | K67: =VLOOKUP(C67,[58]budget!$A$101:$P$120,15,0) -> 0.1390666508 | L67: =K67*F67 -> 1029479.232 | M67: =H67+J67+L67 -> 6561644 | N67: =F67-M67 -> 841131.76 | O67: 1 | P67: =M67-R67 -> 0 | Q67: =N67-S67 -> 0 | R67: 6561644 | S67: 841131.76 | T67: =S67 -> 841131.76 | Z67: =T67+X67+Y67 -> 841131.76 | AB67: 1
A68: 59 | B68: 10157 | C68: 7005 | D68: Northway | E68: A | F68: =VLOOKUP(B68,'[57]2016-17 CFR'!D$1:R$65536,7,0) -> 2037425 | G68: =VLOOKUP(C68,[58]budget!$A$123:$P$126,9,0) -> 0.9969247303 | H68: =(G68*F68)-T68 -> 1623674.369 | I68: =VLOOKUP(C68,[58]budget!$A$123:$P$126,11,0) -> 0 | J68: 0 | K68: =VLOOKUP(C68,[58]budget!$A$123:$P$126,15,0) -> 0.003075269693 | L68: 6265.631355 | M68: =H68+J68+L68 -> 1629940 | N68: 407485 | O68: 1 | P68: 0 | Q68: 0 | R68: =+F68/100*80 -> 1629940 | S68: 407485 | T68: 407485 | Z68: 407485 | AB68: 1
A69: 60 | B69: 10158 | C69: 7009 | D69: Oakleigh | E69: A | F69: =VLOOKUP(B69,'[57]2016-17 CFR'!D$1:R$65536,7,0) -> 2881784.2 | G69: =VLOOKUP(C69,[58]budget!$A$123:$P$126,9,0) -> 0.9988802654 | H69: 2302200.526 | I69: =VLOOKUP(C69,[58]budget!$A$123:$P$126,11,0) -> 0 | J69: 0 | K69: =VLOOKUP(C69,[58]budget!$A$123:$P$126,15,0) -> 0.001119734631 | L69: 3226.833569 | M69: 2305427.36 | N69: 576356.84 | O69: 1 | P69: 0 | Q69: 0 | R69: 2305427.36 | S69: 576356.84 | T69: 576356.84 | Z69: 576356.84 | AB69: 1
A70: 61 | B70: 10156 | C70: 7000 | D70: Oak Lodge | E70: A | F70: =VLOOKUP(B70,'[57]2016-17 CFR'!D$1:R$65536,7,0) -> 3460148.34 | G70: =VLOOKUP(C70,[58]budget!$A$123:$P$126,9,0) -> 0.9974429519 | H70: 2759270.906 | I70: =VLOOKUP(C70,[58]budget!$A$123:$P$126,11,0) -> 0 | J70: 0 | K70: =VLOOKUP(C70,[58]budget!$A$123:$P$126,15,0) -> 0.002557048107 | L70: 8847.765761 | M70: 2768118.672 | N70: 692029.668 | O70: =G70+I70+K70 -> 1 | P70: 0 | Q70: 0 | R70: 2768118.672 | S70: 692029.668 | T70: 692029.668 | Z70: 692029.668 | AB70: 1
A71: 62 | B71: 10130 | C71: 1000 | D71: Brookhill Nursery | E71: A | F71: =VLOOKUP(B71,'[57]2016-17 CFR'!D$1:R$65536,7,0) -> 337562.24 | G71: =VLOOKUP(C71,[58]budget!$A$5:$O$8,9) -> 0.9494231669 | H71: 252976.9629 | I71: =VLOOKUP(C71,[58]budget!$A$5:$O$8,11) -> 0 | J71: 0 | K71: =VLOOKUP(C71,[58]budget!$A$5:$O$8,15) -> 0.05057683308 | L71: 17072.82906 | M71: 270049.792 | N71: 67512.448 | O71: =G71+I71+K71 -> 1 | P71: =M71-R71 -> 0 | Q71: 0 | R71: 270049.792 | S71: 67512.448 | T71: 67512.448 | Z71: =T71+X71+Y71 -> 67512.448 | AB71: 1
A72: 63 | B72: 10131 | C72: 1001 | D72: Hampden Way Nursery | E72: A | F72: =VLOOKUP(B72,'[57]2016-17 CFR'!D$1:R$65536,7,0) -> 283703.58 | G72: =VLOOKUP(C72,[58]budget!$A$5:$O$8,9) -> 0.9816293523 | H72: 221751.0455 | I72: =VLOOKUP(C72,[58]budget!$A$5:$O$8,11) -> 0 | J72: 0 | K72: =VLOOKUP(C72,[58]budget!$A$5:$O$8,15) -> 0.01837064768 | L72: 5211.818514 | M72: 226962.864 | N72: 56740.716 | O72: =G72+I72+K72 -> 1 | P72: 0 | Q72: 0 | R72: 226962.864 | S72: 56740.716 | T72: 56740.716 | Z72: 56740.716 | AB72: 1
A73: 64 | B73: 10132 | C73: 1002 | D73: Moss Hall Nursery | E73: A | F73: =VLOOKUP(B73,'[57]2016-17 CFR'!D$1:R$65536,7,0) -> 403542.8 | G73: =VLOOKUP(C73,[58]budget!$A$5:$O$8,9) -> 0.9318559959 | H73: 295335.2178 | I73: =VLOOKUP(C73,[58]budget!$A$5:$O$8,11) -> 0 | J73: 0 | K73: =VLOOKUP(C73,[58]budget!$A$5:$O$8,15) -> 0.06814400414 | L73: 27499.02224 | M73: 322834.24 | N73: 80708.56 | O73: =G73+I73+K73 -> 1 | P73: 0 | Q73: 0 | R73: 322834.24 | S73: 80708.56 | T73: 80708.56 | Z73: 80708.56 | AB73: 1
A74: 65 | B74: 10133 | C74: 1003 | D74: St Margaret's Nursery | E74: A | F74: =VLOOKUP(B74,'[57]2016-17 CFR'!D$1:R$65536,7,0) -> 445511.86 | G74: =VLOOKUP(C74,[58]budget!$A$5:$O$8,9) -> 0.9247087189 | H74: 322866.3293 | I74: =VLOOKUP(C74,[58]budget!$A$5:$O$8,11) -> 0 | J74: 0 | K74: =VLOOKUP(C74,[58]budget!$A$5:$O$8,15) -> 0.07529128112 | L74: 33543.15869 | M74: 356409.488 | N74: 89102.372 | O74: =G74+I74+K74 -> 1 | P74: 0 | Q74: 0 | R74: 356409.488 | S74: =+F74-R74 -> 89102.372 | T74: 89102.372 | Z74: 89102.372 | AB74: 1
A75: 66 | B75: 10185 | C75: 1102 | D75: Northgate | E75: A | F75: =VLOOKUP(B75,'[57]2016-17 CFR'!D$1:R$65536,7,0) -> 408316 | R75: 326652.8 | S75: =+F75-R75 -> 81663.2 | T75: 81663.2 | Z75: 81663.2
A76: 67 | B76: 10188 | C76: 1100 | D76: The Pavillion | E76: A | F76: =VLOOKUP(B76,'[57]2016-17 CFR'!D$1:R$65536,7,0) -> 2041390 | R76: 1633112 | S76: =+F76-R76 -> 408278 | T76: 408278 | Z76: 408278
B77: 11094 | D77: Akiva | E77: C | T77: =[59]workings!G7 -> 319470
B78: 11278 | D78: Beit Shvidler | E78: C | T78: =[59]workings!G8 -> 202592
B79: 10063 | D79: Edgware Primary | E79: C | T79: =[59]workings!G9 -> 605714
B80: 10065 | D80: Foulds | E80: C | T80: =[59]workings!G10 -> 258658
B81: 10119 | D81: Queenswell Infant | E81: C | T81: =[59]workings!G11 -> 290782
B82: 10086 | D82: Queenswell Junior | E82: B | T82: =[59]workings!G12 -> 324741
B83: 11381 | D83: Sacks Morasha | E83: C | T83: =[59]workings!G13 -> 161996
B84: 10116 | D84: St John's N20 | E84: C | T84: =[59]workings!G14 -> 201115
B85: 10137 | D85: Bishop Douglass School (closed) | E85: B | T85: 0
B86: 10083 | D86: Danegrove JMI School | E86: B | T86: 0
B87: 10060 | D87: Dollis Junior School | E87: B | T87: 0
B88: 10145 | D88: Finchley Catholic High School | E88: B | T88: 0
B89: 11093 | D89: Martin Primary School | E89: B | T89: 0
B90: 10125 | D90: Mathilda Marks-Kennedy School | E90: B | T90: 0
B91: 10126 | D91: Menorah Foundation School | E91: B | T91: 0
B92: 10084 | D92: Osidge Primary School | E92: B | T92: 0
B93: 10698 | D93: St Mary's & St John's CE School | E93: B | T93: 0
B94: 10148 | D94: St Michaels Catholic Grammar School | E94: B | T94: 0
B95: 10095 | D95: St Pauls CE Primary, NW7 | E95: B | T95: 0
B96: 10142 | D96: St. James' Catholic High School | E96: B | T96: 0
B97: 10143 | D97: St. Mary's CE High School | E97: B | T97: 0
B98: 10103 | D98: Underhill School | E98: B | T98: 0
B99: 10044 | D99: Barnfield School | E99: D | T99: 0
B100: 10050 | D100: Christ Church CE Primary School | E100: D | T100: 0
B101: 10139 | D101: Friern Barnet School | E101: D | T101: 0
B102: 10159 | D102: Mapledown | E102: D | T102: 0
B103: 11513 | D103: Menorah High School (Girls) | E103: D | T103: 0
B104: 10079 | D104: Monkfrith School | E104: D | T104: 0
B105: 10124 | D105: Wessex Gardens Primary School | E105: D | T105: 0
T106: =SUM(T10:T105) -> 22797090.78

Sheet early retirement
A6: Integra Finance System LBB - LIVE
A8: LBB Hierachy 1 (LBB_COM)
A9: Year to period 12
A12: Delivery Unit | B12: Profit Centre | C12: Account Code | D12: Full Year Budget | E12: YTD
E13: Actual | F13: Variance
A14: Schools Direct Management | B14: 10040 : All Saints' CE NW2 | C14: 111100 : Education CFR Staff Admin & Cl | D14: 33786 | E14: 24997.24 | F14: -8788.76
A15: Schools Direct Management | B15: 10042 : All Saints' CE N20 | C15: 111100 : Education CFR Staff Admin & Cl | D15: 44964 | E15: 34455.94 | F15: -10508.06
A16: Schools Direct Management | B16: 10043 : Annunciation RC Infant | C16: 111100 : Education CFR Staff Admin & Cl | D16: 36462 | E16: 26922.48 | F16: -9539.52
A17: Schools Direct Management | B17: 10044 : Barnfield School | C17: 111100 : Education CFR Staff Admin & Cl | D17: 51367 | E17: 51871.24 | F17: 504.24
A18: Schools Direct Management | B18: 10045 : Bell Lane School | C18: 111100 : Education CFR Staff Admin & Cl | D18: 79356 | E18: 37654 | F18: -41702
A19: Schools Direct Management | B19: 10046 : Brookland Junior School | C19: 111100 : Education CFR Staff Admin & Cl | D19: 57718 | E19: 47807.61 | F19: -9910.39
A20: Schools Direct Management | B20: 10047 : Brookland Infant School | C20: 111100 : Education CFR Staff Admin & Cl | D20: 60347 | E20: 45090.22 | F20: -15256.78
A21: Schools Direct Management | B21: 10048 : Brunswick Park School | C21: 111100 : Education CFR Staff Admin & Cl | D21: 68908 | E21: 54063.21 | F21: -14844.79
A22: Schools Direct Management | B22: 10049 : Childs Hill School | C22: 111100 : Education CFR Staff Admin & Cl | D22: 80898 | E22: 62546.05 | F22: -18351.95
A23: Schools Direct Management | B23: 10050 : Christ Church CE School | C23: 111100 : Education CFR Staff Admin & Cl | D23: 38092 | E23: 38090.94 | F23: -1.06
A24: Schools Direct Management | B24: 10051 : Church Hill School | C24: 111100 : Education CFR Staff Admin & Cl | D24: 66966 | E24: 50158.5 | F24: -16807.5
A25: Schools Direct Management | B25: 10054 : Colindale School | C25: 111100 : Education CFR Staff Admin & Cl | D25: 118959 | E25: 90617.83 | F25: -28341.17
A26: Schools Direct Management | B26: 10055 : Coppetts Wood School | C26: 111100 : Education CFR Staff Admin & Cl | D26: 46130 | E26: 32894.64 | F26: -13235.36
A27: Schools Direct Management | B27: 10056 : Courtland School | C27: 111100 : Education CFR Staff Admin & Cl | D27: 43982 | E27: 21066.94 | F27: -22915.06
A28: Schools Direct Management | B28: 10057 : Cromer Road School | C28: 111100 : Education CFR Staff Admin & Cl | D28: 59072 | E28: 46977.4 | F28: -12094.6
A29: Schools Direct Management | B29: 10059 : Deansbrook Infant School | C29: 111100 : Education CFR Staff Admin & Cl | D29: 77768 | E29: 59148.82 | F29: -18619.18
A30: Schools Direct Management | B30: 10060 : Dollis Junior School | C30: 111100 : Education CFR Staff Admin & Cl | D30: 111957 | E30: 112041.74 | F30: 84.74
A31: Schools Direct Management | B31: 10061 : Dollis Infant School | C31: 111100 : Education CFR Staff Admin & Cl | D31: 78076 | E31: 57602.74 | F31: -20473.26
A32: Schools Direct Management | B32: 10063 : Edgware Primary | C32: 111100 : Education CFR Staff Admin & Cl | D32: 200962 | E32: 152783.51 | F32: -48178.49
A33: Schools Direct Management | B33: 10064 : Fairway School | C33: 111100 : Education CFR Staff Admin & Cl | D33: 80800 | E33: 52204.31 | F33: -28595.69
A34: Schools Direct Management | B34: 10065 : Foulds School | C34: 111100 : Education CFR Staff Admin & Cl | D34: 44808 | E34: 34191.99 | F34: -10616.01
A35: Schools Direct Management | B35: 10066 : Frith Manor School | C35: 111100 : Education CFR Staff Admin & Cl | D35: 120263 | E35: 93192.2 | F35: -27070.8
A36: Schools Direct Management | B36: 10067 : Garden Suburb Junior | C36: 111100 : Education CFR Staff Admin & Cl | D36: 43463 | E36: 32042.58 | F36: -11420.42
A37: Schools Direct Management | B37: 10068 : Garden Suburb Infant | C37: 111100 : Education CFR Staff Admin & Cl | D37: 40008 | E37: 29513.55 | F37: -10494.45
A38: Schools Direct Management | B38: 10069 : Goldbeaters School | C38: 111100 : Education CFR Staff Admin & Cl | D38: 87718 | E38: 64436.64 | F38: -23281.36
A39: Schools Direct Management | B39: 10071 : Hollickwood School | C39: 111100 : Education CFR Staff Admin & Cl | D39: 46843 | E39: 35243.58 | F39: -11599.42
A40: Schools Direct Management | B40: 10072 : Holly Park School | C40: 111100 : Education CFR Staff Admin & Cl | D40: 84381 | E40: 49209.86 | F40: -35171.14
A41: Schools Direct Management | B41: 10073 : Holy Trinity CE School | C41: 111100 : Education CFR Staff Admin & Cl | D41: 65718 | E41: 40976.09 | F41: -24741.91
A42: Schools Direct Management | B42: 10074 : Livingstone School | C42: 111100 : Education CFR Staff Admin & Cl | D42: 68004 | E42: 55607.89 | F42: -12396.11
A43: Schools Direct Management | B43: 10075 : Manorside School | C43: 111100 : Education CFR Staff Admin & Cl | D43: 75456 | E43: 62825.21 | F43: -12630.79
A44: Schools Direct Management | B44: 10078 : Monken Hadley CE School | C44: 111100 : Education CFR Staff Admin & Cl | D44: 46506 | E44: 21286.76 | F44: -25219.24
A45: Schools Direct Management | B45: 10079 : Monkfrith School | C45: 111100 : Education CFR Staff Admin & Cl | D45: 95285 | E45: 93574.6 | F45: -1710.4
A46: Schools Direct Management | B46: 10080 : Moss Hall Junior School | C46: 111100 : Education CFR Staff Admin & Cl | D46: 91419 | E46: 71698.12 | F46: -19720.88
A47: Schools Direct Management | B47: 10081 : Moss Hall Infant School | C47: 111100 : Education CFR Staff Admin & Cl | D47: 123579 | E47: 91357.37 | F47: -32221.63
A48: Schools Direct Management | B48: 10082 : Northside School | C48: 111100 : Education CFR Staff Admin & Cl | D48: 46235 | E48: 39666.09 | F48: -6568.91
A49: Schools Direct Management | B49: 10083 : Danegrove School | C49: 111100 : Education CFR Staff Admin & Cl | D49: 108384 | E49: 112516.37 | F49: 4132.37
A50: Schools Direct Management | B50: 10084 : Osidge School | C50: 111100 : Education CFR Staff Admin & Cl | D50: 152774 | E50: 150703.1 | F50: -2070.9
A51: Schools Direct Management | B51: 10085 : Our Lady Of Lourdes | C51: 111100 : Education CFR Staff Admin & Cl | D51: 55247 | E51: 44083.74 | F51: -11163.26
A52: Schools Direct Management | B52: 10086 : Queenswell Junior School | C52: 111100 : Education CFR Staff Admin & Cl | D52: 54748 | E52: 46335.56 | F52: -8412.44
A53: Schools Direct Management | B53: 10087 : St Agnes' RC School | C53: 111100 : Education CFR Staff Admin & Cl | D53: 55809 | E53: 41190.38 | F53: -14618.62
A54: Schools Direct Management | B54: 10088 : St Catherine's RC School | C54: 111100 : Education CFR Staff Admin & Cl | D54: 105387 | E54: 80682.28 | F54: -24704.72
A55: Schools Direct Management | B55: 10089 : St John's CE N11 | C55: 111100 : Education CFR Staff Admin & Cl | D55: 43455 | E55: 25079.69 | F55: -18375.31
A56: Schools Direct Management | B56: 10092 : St Mary's CE N3 | C56: 111100 : Education CFR Staff Admin & Cl | D56: 70260 | E56: 49466.53 | F56: -20793.47
A57: Schools Direct Management | B57: 10093 : St Mary's CE EN4 | C57: 111100 : Education CFR Staff Admin & Cl | D57: 47093 | E57: 35696.15 | F57: -11396.85
A58: Schools Direct Management | B58: 10094 : St Paul's CE N11 | C58: 111100 : Education CFR Staff Admin & Cl | D58: 25314 | E58: 18624.75 | F58: -6689.25
A59: Schools Direct Management | B59: 10095 : St Paul's CE NW7 | C59: 111100 : Education CFR Staff Admin & Cl | D59: 39159 | E59: 39294.83 | F59: 135.83
A60: Schools Direct Management | B60: 10096 : St Vincent's RC School | C60: 111100 : Education CFR Staff Admin & Cl | D60: 66662 | E60: 49336.61 | F60: -17325.39
A61: Schools Direct Management | B61: 10097 : Sunnyfields School | C61: 111100 : Education CFR Staff Admin & Cl | D61: 82362 | E61: 61757.21 | F61: -20604.79
A62: Schools Direct Management | B62: 10098 : Summerside School | C62: 111100 : Education CFR Staff Admin & Cl | D62: 99568 | E62: 72927.72 | F62: -26640.28
A63: Schools Direct Management | B63: 10099 : St Andrew's CE School | C63: 111100 : Education CFR Staff Admin & Cl | D63: 42696 | E63: 45016.02 | F63: 2320.02
A64: Schools Direct Management | B64: 10100 : Trent CE School | C64: 111100 : Education CFR Staff Admin & Cl | D64: 40025 | E64: 31551.37 | F64: -8473.63
A65: Schools Direct Management | B65: 10101 : Tudor School | C65: 111100 : Education CFR Staff Admin & Cl | D65: 56365 | E65: 26181.24 | F65: -30183.76
A66: Schools Direct Management | B66: 10103 : Underhill School | C66: 111100 : Education CFR Staff Admin & Cl | D66: 109064 | E66: 111902.14 | F66: 2838.14
A67: Schools Direct Management | B67: 10105 : Whitings Hill School | C67: 111100 : Education CFR Staff Admin & Cl | D67: 84341 | E67: 75254.63 | F67: -9086.37
A68: Schools Direct Management | B68: 10107 : St Joseph's RC Primary | C68: 111100 : Education CFR Staff Admin & Cl | D68: 126783 | E68: 94079.44 | F68: -32703.56
A69: Schools Direct Management | B69: 10108 : St Theresa's RC School | C69: 111100 : Education CFR Staff Admin & Cl | D69: 40977 | E69: 30959.64 | F69: -10017.36
A70: Schools Direct Management | B70: 10109 : Woodridge School | C70: 111100 : Education CFR Staff Admin & Cl | D70: 62740 | E70: 42752.16 | F70: -19987.84
A71: Schools Direct Management | B71: 10110 : Sacred Heart RC School | C71: 111100 : Education CFR Staff Admin & Cl | D71: 77383 | E71: 58682.17 | F71: -18700.83
A72: Schools Direct Management | B72: 10112 : Rosh Pinah School | C72: 111100 : Education CFR Staff Admin & Cl | D72: 156125 | E72: 125661.63 | F72: -30463.37
A73: Schools Direct Management | B73: 10114 : Menorah Primary School | C73: 111100 : Education CFR Staff Admin & Cl | D73: 113890 | E73: 89462.42 | F73: -24427.58
A74: Schools Direct Management | B74: 10115 : Blessed Dominic RC | C74: 111100 : Education CFR Staff Admin & Cl | D74: 106505 | E74: 80119.24 | F74: -26385.76
A75: Schools Direct Management | B75: 10116 : St John's CE N20 | C75: 111100 : Education CFR Staff Admin & Cl | D75: 46967 | E75: 35146.52 | F75: -11820.48
A76: Schools Direct Management | B76: 10117 : Annunciation RC Junior | C76: 111100 : Education CFR Staff Admin & Cl | D76: 29770 | E76: 22126.56 | F76: -7643.44
A77: Schools Direct Management | B77: 10118 : Chalgrove School | C77: 111100 : Education CFR Staff Admin & Cl | D77: 53926 | E77: 40398.3 | F77: -13527.7
A78: Schools Direct Management | B78: 10119 : Queenswell Infant School | C78: 111100 : Education CFR Staff Admin & Cl | D78: 90583 | E78: 70337.53 | F78: -20245.47
A79: Schools Direct Management | B79: 10121 : Hasmonean Primary School | C79: 111100 : Education CFR Staff Admin & Cl | D79: 90525 | E79: 66929.41 | F79: -23595.59
A80: Schools Direct Management | B80: 10123 : Woodcroft Primary | C80: 111100 : Education CFR Staff Admin & Cl | D80: 59050 | E80: 43767.1 | F80: -15282.9
A81: Schools Direct Management | B81: 10124 : Wessex Gardens School | C81: 111100 : Education CFR Staff Admin & Cl | D81: 163513 | E81: 167202.89 | F81: 3689.89
A82: Schools Direct Management | B82: 10125 : Mathilda Marks Kennedy | C82: 111100 : Education CFR Staff Admin & Cl | D82: 65919 | E82: 66649.29 | F82: 730.29
A83: Schools Direct Management | B83: 10126 : Menorah Foundation | C83: 111100 : Education CFR Staff Admin & Cl | D83: 129663 | E83: 126698.69 | F83: -2964.31
A84: Schools Direct Management | B84: 10127 : Orion School | C84: 111100 : Education CFR Staff Admin & Cl | D84: 226161 | E84: 170531.78 | F84: -55629.22
A85: Schools Direct Management | B85: 10128 : Beis Yaakov School | C85: 111100 : Education CFR Staff Admin & Cl | D85: 96361 | E85: 71809.1 | F85: -24551.9
A86: Schools Direct Management | B86: 10129 : Pardes House School | C86: 111100 : Education CFR Staff Admin & Cl | D86: 109185 | E86: 76711.23 | F86: -32473.77
A87: Schools Direct Management | B87: 10130 : Brookhill Nursery School | C87: 111100 : Education CFR Staff Admin & Cl | D87: 36911 | E87: 33830.51 | F87: -3080.49
A88: Schools Direct Management | B88: 10131 : Hampden Way Nursery | C88: 111100 : Education CFR Staff Admin & Cl | D88: 32971 | E88: 41643.06 | F88: 8672.06
A89: Schools Direct Management | B89: 10132 : Moss Hall Nursery School | C89: 111100 : Education CFR Staff Admin & Cl | D89: 33367 | E89: 25268.02 | F89: -8098.98
A90: Schools Direct Management | B90: 10133 : St Margret's Nursery | C90: 111100 : Education CFR Staff Admin & Cl | D90: 39416 | E90: 31233.38 | F90: -8182.62
A91: Schools Direct Management | B91: 10137 : Bishop Douglass RC | C91: 111100 : Education CFR Staff Admin & Cl | D91: 298825 | E91: 128771.52 | F91: -170053.48
A92: Schools Direct Management | B92: 10139 : Friern Barnet School | C92: 111100 : Education CFR Staff Admin & Cl | D92: 409532 | E92: 408986.12 | F92: -545.88
A93: Schools Direct Management | B93: 10142 : St James' Catholic | C93: 111100 : Education CFR Staff Admin & Cl | D93: 365770 | E93: 365651.02 | F93: -118.98
A94: Schools Direct Management | B94: 10143 : St Mary's CE High | C94: 111100 : Education CFR Staff Admin & Cl | D94: 39318 | E94: 40977.73 | F94: 1659.73
A95: Schools Direct Management | B95: 10145 : Finchley Catholic | C95: 111100 : Education CFR Staff Admin & Cl | D95: 498641 | E95: 499885.63 | F95: 1244.63
A96: Schools Direct Management | B96: 10148 : St Michael's Catholic | C96: 111100 : Education CFR Staff Admin & Cl | D96: 460000 | E96: 474768.97 | F96: 14768.97
A97: Schools Direct Management | B97: 10156 : Oak Lodge School | C97: 111100 : Education CFR Staff Admin & Cl | D97: 203273 | E97: 113049.95 | F97: -90223.05
A98: Schools Direct Management | B98: 10157 : Northway School | C98: 111100 : Education CFR Staff Admin & Cl | D98: 59657 | E98: 45786.85 | F98: -13870.15
A99: Schools Direct Management | B99: 10158 : Oakleigh School | C99: 111100 : Education CFR Staff Admin & Cl | D99: 66987 | E99: 48572.32 | F99: -18414.68
A100: Schools Direct Management | B100: 10159 : Mapledown School | C100: 111100 : Education CFR Staff Admin & Cl | D100: 46802 | E100: 52948.75 | F100: 6146.75
A101: Schools Direct Management | B101: 10185 : Northgate PRU | C101: 111100 : Education CFR Staff Admin & Cl | D101: 52883 | E101: 25166.91 | F101: -27716.09
A102: Schools Direct Management | B102: 10188 : Pavilion StudyCt PRU | C102: 111100 : Education CFR Staff Admin & Cl | D102: 47513 | E102: 42369.93 | F102: -5143.07
A103: Schools Direct Management | B103: 10698 : St Marys and St Johns Primary | C103: 111100 : Education CFR Staff Admin & Cl | D103: 255917 | E103: 259732.91 | F103: 3815.91
A104: Schools Direct Management | B104: 11093 : Martin Primary | C104: 111100 : Education CFR Staff Admin & Cl | D104: 192176 | E104: 189552.83 | F104: -2623.17
A105: Schools Direct Management | B105: 11094 : Akiva | C105: 111100 : Education CFR Staff Admin & Cl | D105: 129250 | E105: 99133.78 | F105: -30116.22
A106: Schools Direct Management | B106: 11174 : JCOSS | C106: 111100 : Education CFR Staff Admin & Cl | D106: 564281 | E106: 459907.34 | F106: -104373.66
A107: Schools Direct Management | B107: 11278 : Beit Schvidler | C107: 111100 : Education CFR Staff Admin & Cl | D107: 81046 | E107: 74243.91 | F107: -6802.09
A108: Schools Direct Management | B108: 11381 : Sacks Morasha | C108: 111100 : Education CFR Staff Admin & Cl | D108: 57948 | E108: 9746.09 | F108: -48201.91
A109: Schools Direct Management | B109: 11513 : Menorah High School | C109: 111100 : Education CFR Staff Admin & Cl | D109: 144138 | E109: 148038.99 | F109: 3900.99
A110: Schools Direct Management | B110: 10040 : All Saints' CE NW2 | C110: 111200 : E04 - Premises Staff GPay | D110: 30185 | E110: 22179.5 | F110: -8005.5
A111: Schools Direct Management | B111: 10042 : All Saints' CE N20 | C111: 111200 : E04 - Premises Staff GPay | D111: 26409 | E111: 20001 | F111: -6408
A112: Schools Direct Management | B112: 10043 : Annunciation RC Infant | C112: 111200 : E04 - Premises Staff GPay | D112: 12189 | E112: 10998.19 | F112: -1190.81
A113: Schools Direct Management | B113: 10044 : Barnfield School | C113: 111200 : E04 - Premises Staff GPay | D113: 32195 | E113: 31986.21 | F113: -208.79
A114: Schools Direct Management | B114: 10045 : Bell Lane School | C114: 111200 : E04 - Premises Staff GPay | D114: 56375 | E114: 43370.6 | F114: -13004.4
A115: Schools Direct Management | B115: 10046 : Brookland Junior School | C115: 111200 : E04 - Premises Staff GPay | D115: 43546 | E115: 18164.65 | F115: -25381.35
A116: Schools Direct Management | B116: 10047 : Brookland Infant School | C116: 111200 : E04 - Premises Staff GPay | D116: 37635 | E116: 38980.88 | F116: 1345.88
A117: Schools Direct Management | B117: 10048 : Brunswick Park School | C117: 111200 : E04 - Premises Staff GPay | D117: 35757 | E117: 24433.26 | F117: -11323.74
A118: Schools Direct Management | B118: 10049 : Childs Hill School | C118: 111200 : E04 - Premises Staff GPay | D118: 90830 | E118: 66935.44 | F118: -23894.56
A119: Schools Direct Management | B119: 10050 : Christ Church CE School | C119: 111200 : E04 - Premises Staff GPay | D119: 32415 | E119: 31930.4 | F119: -484.6
A120: Schools Direct Management | B120: 10051 : Church Hill School | C120: 111200 : E04 - Premises Staff GPay | D120: 34946 | E120: 26503.2 | F120: -8442.8
A121: Schools Direct Management | B121: 10054 : Colindale School | C121: 111200 : E04 - Premises Staff GPay | D121: 105064 | E121: 94480.98 | F121: -10583.02
A122: Schools Direct Management | B122: 10055 : Coppetts Wood School | C122: 111200 : E04 - Premises Staff GPay | D122: 30859 | E122: 22887 | F122: -7972
A123: Schools Direct Management | B123: 10056 : Courtland School | C123: 111200 : E04 - Premises Staff GPay | D123: 24461 | E123: 19132.43 | F123: -5328.57
A124: Schools Direct Management | B124: 10057 : Cromer Road School | C124: 111200 : E04 - Premises Staff GPay | D124: 38756 | E124: 27871.68 | F124: -10884.32
A125: Schools Direct Management | B125: 10059 : Deansbrook Infant School | C125: 111200 : E04 - Premises Staff GPay | D125: 35702 | E125: 26838.8 | F125: -8863.2
A126: Schools Direct Management | B126: 10060 : Dollis Junior School | C126: 111200 : E04 - Premises Staff GPay | D126: 68626 | E126: 69531.25 | F126: 905.25
A127: Schools Direct Management | B127: 10061 : Dollis Infant School | C127: 111200 : E04 - Premises Staff GPay | D127: 39227 | E127: 24836.23 | F127: -14390.77
A128: Schools Direct Management | B128: 10063 : Edgware Primary | C128: 111200 : E04 - Premises Staff GPay | D128: 59478 | E128: 43997.62 | F128: -15480.38
A129: Schools Direct Management | B129: 10064 : Fairway School | C129: 111200 : E04 - Premises Staff GPay | D129: 19176 | E129: 16546.78 | F129: -2629.22
A130: Schools Direct Management | B130: 10065 : Foulds School | C130: 111200 : E04 - Premises Staff GPay | D130: 53126 | E130: 43948.39 | F130: -9177.61
A131: Schools Direct Management | B131: 10066 : Frith Manor School | C131: 111200 : E04 - Premises Staff GPay | D131: 53475 | E131: 41824.79 | F131: -11650.21
A132: Schools Direct Management | B132: 10067 : Garden Suburb Junior | C132: 111200 : E04 - Premises Staff GPay | D132: 27412 | E132: 20142.44 | F132: -7269.56
A133: Schools Direct Management | B133: 10068 : Garden Suburb Infant | C133: 111200 : E04 - Premises Staff GPay | D133: 27070 | E133: 20143.42 | F133: -6926.58
A134: Schools Direct Management | B134: 10069 : Goldbeaters School | C134: 111200 : E04 - Premises Staff GPay | D134: 98521 | E134: 74968.51 | F134: -23552.49
A135: Schools Direct Management | B135: 10071 : Hollickwood School | C135: 111200 : E04 - Premises Staff GPay | D135: 21008 | E135: 18789.8 | F135: -2218.2
A136: Schools Direct Management | B136: 10072 : Holly Park School | C136: 111200 : E04 - Premises Staff GPay | D136: 29186 | E136: 21768 | F136: -7418
A137: Schools Direct Management | B137: 10073 : Holy Trinity CE School | C137: 111200 : E04 - Premises Staff GPay | D137: 35738 | E137: 25218.29 | F137: -10519.71
A138: Schools Direct Management | B138: 10074 : Livingstone School | C138: 111200 : E04 - Premises Staff GPay | D138: 75107 | E138: 53242.16 | F138: -21864.84
A139: Schools Direct Management | B139: 10075 : Manorside School | C139: 111200 : E04 - Premises Staff GPay | D139: 35059 | E139: 29678.44 | F139: -5380.56
A140: Schools Direct Management | B140: 10078 : Monken Hadley CE School | C140: 111200 : E04 - Premises Staff GPay | D140: 35191 | E140: 22401.53 | F140: -12789.47
A141: Schools Direct Management | B141: 10079 : Monkfrith School | C141: 111200 : E04 - Premises Staff GPay | D141: 50820 | E141: 49021.83 | F141: -1798.17
A142: Schools Direct Management | B142: 10080 : Moss Hall Junior School | C142: 111200 : E04 - Premises Staff GPay | D142: 59000 | E142: 38867.35 | F142: -20132.65
A143: Schools Direct Management | B143: 10081 : Moss Hall Infant School | C143: 111200 : E04 - Premises Staff GPay | D143: 46023 | E143: 34000.2 | F143: -12022.8
A144: Schools Direct Management | B144: 10082 : Northside School | C144: 111200 : E04 - Premises Staff GPay | D144: 21885 | E144: 18032.88 | F144: -3852.12
A145: Schools Direct Management | B145: 10083 : Danegrove School | C145: 111200 : E04 - Premises Staff GPay | D145: 102979 | E145: 95744.16 | F145: -7234.84
A146: Schools Direct Management | B146: 10084 : Osidge School | C146: 111200 : E04 - Premises Staff GPay | D146: 81416 | E146: 76829.54 | F146: -4586.46
A147: Schools Direct Management | B147: 10085 : Our Lady Of Lourdes | C147: 111200 : E04 - Premises Staff GPay | D147: 53214 | E147: 40501.43 | F147: -12712.57
A148: Schools Direct Management | B148: 10086 : Queenswell Junior School | C148: 111200 : E04 - Premises Staff GPay | D148: 26410 | E148: 22104.25 | F148: -4305.75
A149: Schools Direct Management | B149: 10087 : St Agnes' RC School | C149: 111200 : E04 - Premises Staff GPay | D149: 55265 | E149: 39097.96 | F149: -16167.04
A150: Schools Direct Management | B150: 10088 : St Catherine's RC School | C150: 111200 : E04 - Premises Staff GPay | D150: 33164 | E150: 25477.36 | F150: -7686.64
A151: Schools Direct Management | B151: 10089 : St John's CE N11 | C151: 111200 : E04 - Premises Staff GPay | D151: 55991 | E151: 40758.21 | F151: -15232.79
A152: Schools Direct Management | B152: 10092 : St Mary's CE N3 | C152: 111200 : E04 - Premises Staff GPay | D152: 56496 | E152: 48469.11 | F152: -8026.89
A153: Schools Direct Management | B153: 10093 : St Mary's CE EN4 | C153: 111200 : E04 - Premises Staff GPay | D153: 28498 | E153: 21349.67 | F153: -7148.33
A154: Schools Direct Management | B154: 10094 : St Paul's CE N11 | C154: 111200 : E04 - Premises Staff GPay | D154: 26364 | E154: 19777.72 | F154: -6586.28
A155: Schools Direct Management | B155: 10095 : St Paul's CE NW7 | C155: 111200 : E04 - Premises Staff GPay | D155: 31737 | E155: 33709.95 | F155: 1972.95
A156: Schools Direct Management | B156: 10096 : St Vincent's RC School | C156: 111200 : E04 - Premises Staff GPay | D156: 54867 | E156: 41377.98 | F156: -13489.02
A157: Schools Direct Management | B157: 10097 : Sunnyfields School | C157: 111200 : E04 - Premises Staff GPay | D157: 44138 | E157: 34086.93 | F157: -10051.07
A158: Schools Direct Management | B158: 10098 : Summerside School | C158: 111200 : E04 - Premises Staff GPay | D158: 42820 | E158: 32964.87 | F158: -9855.13
A159: Schools Direct Management | B159: 10099 : St Andrew's CE School | C159: 111200 : E04 - Premises Staff GPay | D159: 25136 | E159: 22044.22 | F159: -3091.78
A160: Schools Direct Management | B160: 10100 : Trent CE School | C160: 111200 : E04 - Premises Staff GPay | D160: 24902 | E160: 18416.06 | F160: -6485.94
A161: Schools Direct Management | B161: 10101 : Tudor School | C161: 111200 : E04 - Premises Staff GPay | D161: 30960 | E161: 37609.68 | F161: 6649.68
A162: Schools Direct Management | B162: 10103 : Underhill School | C162: 111200 : E04 - Premises Staff GPay | D162: 88944 | E162: 94362.1 | F162: 5418.1
A163: Schools Direct Management | B163: 10105 : Whitings Hill School | C163: 111200 : E04 - Premises Staff GPay | D163: 54832 | E163: 32675.53 | F163: -22156.47
A164: Schools Direct Management | B164: 10107 : St Joseph's RC Primary | C164: 111200 : E04 - Premises Staff GPay | D164: 90523 | E164: 81448.28 | F164: -9074.72
A165: Schools Direct Management | B165: 10108 : St Theresa's RC School | C165: 111200 : E04 - Premises Staff GPay | D165: 51363 | E165: 45743.55 | F165: -5619.45
A166: Schools Direct Management | B166: 10109 : Woodridge School | C166: 111200 : E04 - Premises Staff GPay | D166: 31546 | E166: 23461.53 | F166: -8084.47
A167: Schools Direct Management | B167: 10110 : Sacred Heart RC School | C167: 111200 : E04 - Premises Staff GPay | D167: 32688 | E167: 25875.59 | F167: -6812.41
A168: Schools Direct Management | B168: 10112 : Rosh Pinah School | C168: 111200 : E04 - Premises Staff GPay | D168: 51737 | E168: 43155.23 | F168: -8581.77
A169: Schools Direct Management | B169: 10114 : Menorah Primary School | C169: 111200 : E04 - Premises Staff GPay | D169: 35992 | E169: 26574.84 | F169: -9417.16
A170: Schools Direct Management | B170: 10115 : Blessed Dominic RC | C170: 111200 : E04 - Premises Staff GPay | D170: 34338 | E170: 25187.77 | F170: -9150.23
A171: Schools Direct Management | B171: 10116 : St John's CE N20 | C171: 111200 : E04 - Premises Staff GPay | D171: 29310 | E171: 21486.51 | F171: -7823.49
A172: Schools Direct Management | B172: 10117 : Annunciation RC Junior | C172: 111200 : E04 - Premises Staff GPay | D172: 41449 | E172: 33558.4 | F172: -7890.6
A173: Schools Direct Management | B173: 10118 : Chalgrove School | C173: 111200 : E04 - Premises Staff GPay | D173: 26848 | E173: 19709.58 | F173: -7138.42
A174: Schools Direct Management | B174: 10119 : Queenswell Infant School | C174: 111200 : E04 - Premises Staff GPay | D174: 25669 | E174: 18940.21 | F174: -6728.79
A175: Schools Direct Management | B175: 10121 : Hasmonean Primary School | C175: 111200 : E04 - Premises Staff GPay | D175: 28754 | E175: 22133.16 | F175: -6620.84
A176: Schools Direct Management | B176: 10123 : Woodcroft Primary | C176: 111200 : E04 - Premises Staff GPay | D176: 15604 | E176: 10461.79 | F176: -5142.21
A177: Schools Direct Management | B177: 10124 : Wessex Gardens School | C177: 111200 : E04 - Premises Staff GPay | D177: 47259 | E177: 46796.71 | F177: -462.29
A178: Schools Direct Management | B178: 10125 : Mathilda Marks Kennedy | C178: 111200 : E04 - Premises Staff GPay | D178: 41535 | E178: 42047.73 | F178: 512.73
A179: Schools Direct Management | B179: 10126 : Menorah Foundation | C179: 111200 : E04 - Premises Staff GPay | D179: 48600 | E179: 51073.29 | F179: 2473.29
A180: Schools Direct Management | B180: 10127 : Orion School | C180: 111200 : E04 - Premises Staff GPay | D180: 178827 | E180: 144637.7 | F180: -34189.3
A181: Schools Direct Management | B181: 10128 : Beis Yaakov School | C181: 111200 : E04 - Premises Staff GPay | D181: 28301 | E181: 17457.46 | F181: -10843.54
A182: Schools Direct Management | B182: 10129 : Pardes House School | C182: 111200 : E04 - Premises Staff GPay | D182: 27033 | E182: 16464.07 | F182: -10568.93
A183: Schools Direct Management | B183: 10130 : Brookhill Nursery School | C183: 111200 : E04 - Premises Staff GPay | D183: 25288 | E183: 20128.09 | F183: -5159.91
A184: Schools Direct Management | B184: 10131 : Hampden Way Nursery | C184: 111200 : E04 - Premises Staff GPay | D184: 20942 | E184: 15760.13 | F184: -5181.87
A185: Schools Direct Management | B185: 10132 : Moss Hall Nursery School | C185: 111200 : E04 - Premises Staff GPay | D185: 26029 | E185: 18557.12 | F185: -7471.88
A186: Schools Direct Management | B186: 10133 : St Margret's Nursery | C186: 111200 : E04 - Premises Staff GPay | D186: 24032 | E186: 19844.94 | F186: -4187.06
A187: Schools Direct Management | B187: 10137 : Bishop Douglass RC | C187: 111200 : E04 - Premises Staff GPay | D187: 123667 | E187: 43829.03 | F187: -79837.97
A188: Schools Direct Management | B188: 10139 : Friern Barnet School | C188: 111200 : E04 - Premises Staff GPay | D188: 97781 | E188: 95611.45 | F188: -2169.55
A189: Schools Direct Management | B189: 10142 : St James' Catholic | C189: 111200 : E04 - Premises Staff GPay | D189: 116931 | E189: 111223.34 | F189: -5707.66
A190: Schools Direct Management | B190: 10143 : St Mary's CE High | C190: 111200 : E04 - Premises Staff GPay | D190: 26557 | E190: 24773.06 | F190: -1783.94
A191: Schools Direct Management | B191: 10145 : Finchley Catholic | C191: 111200 : E04 - Premises Staff GPay | D191: 98794 | E191: 106245.72 | F191: 7451.72
A192: Schools Direct Management | B192: 10148 : St Michael's Catholic | C192: 111200 : E04 - Premises Staff GPay | D192: 111829 | E192: 132721.4 | F192: 20892.4
A193: Schools Direct Management | B193: 10156 : Oak Lodge School | C193: 111200 : E04 - Premises Staff GPay | D193: 77316 | E193: 46899.39 | F193: -30416.61
A194: Schools Direct Management | B194: 10157 : Northway School | C194: 111200 : E04 - Premises Staff GPay | D194: 27976 | E194: 27560.03 | F194: -415.97
A195: Schools Direct Management | B195: 10158 : Oakleigh School | C195: 111200 : E04 - Premises Staff GPay | D195: 40409 | E195: 27875.89 | F195: -12533.11
A196: Schools Direct Management | B196: 10159 : Mapledown School | C196: 111200 : E04 - Premises Staff GPay | D196: 53589 | E196: 57246.97 | F196: 3657.97
A197: Schools Direct Management | B197: 10188 : Pavilion StudyCt PRU | C197: 111200 : E04 - Premises Staff GPay | D197: 41851 | E197: 23637.31 | F197: -18213.69
A198: Schools Direct Management | B198: 10698 : St Marys and St Johns Primary | C198: 111200 : E04 - Premises Staff GPay | D198: 70771 | E198: 81039.1 | F198: 10268.1
A199: Schools Direct Management | B199: 11093 : Martin Primary | C199: 111200 : E04 - Premises Staff GPay | D199: 135350 | E199: 135593.68 | F199: 243.68
A200: Schools Direct Management | B200: 11094 : Akiva | C200: 111200 : E04 - Premises Staff GPay | D200: 38462 | E200: 27245.39 | F200: -11216.61
A201: Schools Direct Management | B201: 11174 : JCOSS | C201: 111200 : E04 - Premises Staff GPay | D201: 130905 | E201: 97719.29 | F201: -33185.71
A202: Schools Direct Management | B202: 11278 : Beit Schvidler | C202: 111200 : E04 - Premises Staff GPay | D202: 11736 | E202: 9594.44 | F202: -2141.56
A203: Schools Direct Management | B203: 11381 : Sacks Morasha | C203: 111200 : E04 - Premises Staff GPay | D203: 22516 | E203: 0 | F203: -22516
A204: Schools Direct Management | B204: 11513 : Menorah High School | C204: 111200 : E04 - Premises Staff GPay | D204: 32752 | E204: 33570.4 | F204: 818.4
A205: Schools Direct Management | B205: 10055 : Coppetts Wood School | C205: 111300 : E06 - Catering Staff GPay | D205: 0 | E205: -97035 | F205: -97035
A206: Schools Direct Management | B206: 10075 : Manorside School | C206: 111300 : E06 - Catering Staff GPay | D206: 0 | E206: 1207.92 | F206: 1207.92
A207: Schools Direct Management | B207: 10083 : Danegrove School | C207: 111300 : E06 - Catering Staff GPay | D207: 117383 | E207: 117075.05 | F207: -307.95
A208: Schools Direct Management | B208: 10084 : Osidge School | C208: 111300 : E06 - Catering Staff GPay | D208: 90964 | E208: 89113.35 | F208: -1850.65
... 4578 more rows

Sheet CFR VAL
B1: 1 | C1: 2 | D1: 3 | E1: 4 | F1: 5 | G1: 6 | H1: 7 | I1: 8 | J1: 9 | K1: 10 | L1: 11 | M1: 12 | N1: 13 | O1: 14 | P1: 15 | Q1: 16 | R1: 17 | S1: 18 | T1: 19 | U1: 20 | V1: 21 | W1: 22 | X1: 23 | Y1: 24 | Z1: 25 | AA1: 26 | AB1: 27 | AC1: 28 | AD1: 29 | AE1: 30 | AF1: 31 | AG1: 32 | AH1: 33 | AI1: 34 | AJ1: 35 | AK1: 36 | AL1: 37 | AM1: 38 | AN1: 39 | AO1: 40 | AP1: 41 | AQ1: 42 | AR1: 43 | AS1: 44 | AT1: 45 | AU1: 46 | AV1: 47 | AW1: 48 | AX1: 49 | AY1: 50 | AZ1: 51 | BA1: 52 | BB1: 53 | BC1: 54 | BD1: 55 | BE1: 56 | BF1: 57 | BG1: 58 | BH1: 59 | BI1: 60 | BJ1: 61 | BK1: 62 | BL1: 63 | BM1: 64
A2: DFE | B2: Cost Centre | C2: School | D2: I01 | E2: I02 | F2: I03 | G2: I04 | H2: I05 | I2: I06 | J2: I07 | K2: I08 | L2: I09 | M2: I10 | N2: I11 | O2: I12 | P2: I13 | Q2: I15 | R2: I16 | S2: I17 | T2: I18 | U2: E01 | V2: E02 | W2: E03 | X2: E04 | Y2: E05 | Z2: E06 | AA2: E07 | AB2: E08 | AC2: E09 | AD2: E10 | AE2: E11 | AF2: E31 | AG2: E12 | AH2: E13 | AI2: E14 | AJ2: E15 | AK2: E16 | AL2: E17 | AM2: E18 | AN2: E19 | AO2: E20 | AP2: E21 | AQ2: E22 | AR2: E23 | AS2: E24 | AT2: E25 | AU2: E29 | AV2: E32 | AW2: E26 | AX2: E27 | AY2: E28 | AZ2: Cont | BA2: E30 | BB2: CI01 | BC2: CI03 | BD2: CI04 | BE2: CE01 | BF2: CE02 | BG2: CE03 | BH2: CE04 | BJ2: E01 to E07 | BK2: Redundancy | BL2: Total E01 to E07 + redundancy | BM2: E31
A3: 3520 | B3: 11094 | C3: Akiva | D3: -1578706 | E3: 0 | F3: -75489 | G3: 0 | H3: -4950 | I3: -55963.58 | J3: -17078.63 | K3: -12362.14 | L3: -80233.14 | M3: -14013 | N3: -3986.84 | O3: -55382.84 | P3: -400302.09 | Q3: 0 | R3: 0 | S3: 0 | T3: -105233.92 | U3: 1039369.93 | V3: 11604.58 | W3: 380759.76 | X3: 35982.18 | Y3: 131230.96 | Z3: 0 | AA3: 11667.12 | AB3: 3925.27 | AC3: 5276.56 | AD3: 13707.29 | AE3: 0 | AF3: 0 | AG3: 24722.71 | AH3: 9542.46 | AI3: 39046.2 | AJ3: 4915.51 | AK3: 23207.28 | AL3: 0 | AM3: 134231.98 | AN3: 106628.25 | AO3: 18607.73 | AP3: 0 | AQ3: 11486.14 | AR3: 29083.63 | AS3: 1781.2 | AT3: 141203.34 | AU3: 0 | AV3: 0 | AW3: 89065.16 | AX3: 60139.53 | AY3: 52458.09 | AZ3: 0 | BA3: 68008.85 | BB3: 0 | BC3: 0 | BD3: -68008.85 | BE3: 0 | BF3: 0 | BG3: 0 | BH3: 24764.85 | BJ3: =SUM(U3:AA3) -> 1610614.53 | BL3: =SUM(BJ3:BK3) -> 1610614.53 | BM3: 0
A4: 3317 | B4: 10042 | C4: All Saints N20 | D4: -1109380 | E4: 0 | F4: -27686 | G4: 0 | H4: -76240 | I4: -4001.9 | J4: -6809.76 | K4: -31149.49 | L4: -35874.33 | M4: -14013 | N4: -1577.25 | O4: -28737.15 | P4: -13012.18 | Q4: 0 | R4: 0 | S4: 0 | T4: -48881.25 | U4: 542198.88 | V4: 14120.69 | W4: 262323.69 | X4: 26690.28 | Y4: 45861.51 | Z4: 0 | AA4: 26286.34 | AB4: 5977.12 | AC4: 6254.67 | AD4: 9848.5 | AE4: 2957.67 | AF4: 0 | AG4: 57542.91 | AH4: 4809.53 | AI4: 30104.17 | AJ4: 4233.01 | AK4: 17274.04 | AL4: 0 | AM4: 6854.96 | AN4: 52019.23 | AO4: 21473.59 | AP4: 0 | AQ4: 12545.08 | AR4: 4451.5 | AS4: 7594.33 | AT4: 70820.38 | AU4: 0 | AV4: 0 | AW4: 73575.52 | AX4: 53824.14 | AY4: 21228.22 | AZ4: 0 | BA4: 0 | BB4: 0 | BC4: 0 | BD4: 0 | BE4: 0 | BF4: 0 | BG4: 0 | BH4: 0 | BJ4: =SUM(U4:AA4) -> 917481.39 | BL4: =SUM(BJ4:BK4) -> 917481.39 | BM4: 0
A5: 3300 | B5: 10040 | C5: All Saints NW2 | D5: -1001991 | E5: 0 | F5: -44729 | G5: 0 | H5: -117713 | I5: -1000 | J5: -2500 | K5: -1383.15 | L5: -17787.6 | M5: 0 | N5: 0 | O5: -20326.68 | P5: -10740.27 | Q5: 0 | R5: 0 | S5: 0 | T5: -33234.32 | U5: 555751.7 | V5: 3.69 | W5: 250155.98 | X5: 30114.09 | Y5: 33776.66 | Z5: 0 | AA5: 11227.84 | AB5: 5663.93 | AC5: 7785.82 | AD5: 9699.06 | AE5: 0 | AF5: 0 | AG5: 10908.85 | AH5: 1343.83 | AI5: 15003.23 | AJ5: 5527.51 | AK5: 12357.78 | AL5: 0 | AM5: 4647.45 | AN5: 53521.25 | AO5: 12976.69 | AP5: 0 | AQ5: 12952.82 | AR5: 5285.19 | AS5: 2058.64 | AT5: 53680.76 | AU5: 0 | AV5: 0 | AW5: 17116.4 | AX5: 56133.35 | AY5: 31340.2 | AZ5: 0 | BA5: 0 | BB5: 0 | BC5: 0 | BD5: 0 | BE5: 0 | BF5: 0 | BG5: 0 | BH5: 0 | BJ5: 881029.96 | BL5: 881029.96 | BM5: 0
A6: 3500 | B6: 10043 | C6: Annunciation Inf | D6: -876710 | E6: 0 | F6: -12003 | G6: 0 | H6: -34320 | I6: 0 | J6: -275 | K6: -4850.15 | L6: 0 | M6: 0 | N6: 0 | O6: 0 | P6: 0 | Q6: 0 | R6: 0 | S6: 0 | T6: -65478.75 | U6: 607502.75 | V6: 0 | W6: 183671.1 | X6: 12895.38 | Y6: 36464.25 | Z6: 0 | AA6: -405 | AB6: 2351.89 | AC6: 3052 | AD6: 282.2 | AE6: 994.5 | AF6: 0 | AG6: 10205.79 | AH6: 0 | AI6: 2494.83 | AJ6: 1491.99 | AK6: 7826.87 | AL6: 0 | AM6: 3847.71 | AN6: 7961.23 | AO6: 10546.37 | AP6: 0 | AQ6: 4956.39 | AR6: 5904.76 | AS6: 2054.95 | AT6: 68312.18 | AU6: 0 | AV6: 0 | AW6: 0 | AX6: 11102.96 | AY6: 13459.4 | AZ6: 0 | BA6: 0 | BB6: 0 | BC6: 0 | BD6: 0 | BE6: 0 | BF6: 0 | BG6: 0 | BH6: 0 | BJ6: 840128.48 | BL6: 840128.48 | BM6: 0
A7: 3514 | B7: 10117 | C7: Annunciation Jun | D7: -982368.33 | E7: 0 | F7: -28118 | G7: 0 | H7: -64679.95 | I7: -1150 | J7: -5425 | K7: -7610.55 | L7: -36139.73 | M7: -12265.7 | N7: 0 | O7: -12013.35 | P7: -297.75 | Q7: 0 | R7: 0 | S7: 0 | T7: -9128.94 | U7: 578352.43 | V7: 0 | W7: 148895.48 | X7: 42591.71 | Y7: 29769.22 | Z7: 0 | AA7: 2880.48 | AB7: 7670.75 | AC7: 6827.75 | AD7: 6253.02 | AE7: 1003.5 | AF7: 0 | AG7: 8845.06 | AH7: 1985.17 | AI7: 1654.34 | AJ7: 959.77 | AK7: 9379.65 | AL7: 0 | AM7: 3594.17 | AN7: 36963.41 | AO7: 14156.76 | AP7: 0 | AQ7: 5592.31 | AR7: 6317.4 | AS7: 14500.04 | AT7: 44787.55 | AU7: 0 | AV7: 0 | AW7: 86430.72 | AX7: 35331.33 | AY7: 33723 | AZ7: 0 | BA7: 0 | BB7: 0 | BC7: 0 | BD7: 0 | BE7: 0 | BF7: 0 | BG7: 0 | BH7: 0 | BJ7: 802489.32 | BL7: 802489.32 | BM7: 0
A8: 2002 | B8: 10044 | C8: Barnfield | D8: -2434814 | E8: 0 | F8: -92660.86 | G8: 0 | H8: -406320 | I8: -17395.5 | J8: 0 | K8: -40562.99 | L8: -36516.56 | M8: -12629 | N8: 0 | O8: -20762.45 | P8: -4561.11 | Q8: 0 | R8: -263772 | S8: 420 | T8: -48022.95 | U8: 1283871.26 | V8: 0 | W8: 705703.55 | X8: 31986.21 | Y8: 51871.24 | Z8: 0 | AA8: 104518.53 | AB8: 16438.83 | AC8: 13711.45 | AD8: 16743.27 | AE8: 12904.66 | AF8: 262629.86 | AG8: 53831.47 | AH8: 0 | AI8: 71367.12 | AJ8: 2880.12 | AK8: 32899.21 | AL8: 26092.5 | AM8: 14900.12 | AN8: 127995.63 | AO8: 29204.49 | AP8: 0 | AQ8: 33625.84 | AR8: 12790.55 | AS8: 25549.37 | AT8: 109797.27 | AU8: 0 | AV8: 55169.55 | AW8: 63340.5 | AX8: 180437.85 | AY8: 23580.73 | AZ8: 0 | BA8: 25431 | BB8: -9802.75 | BC8: 0 | BD8: -25431 | BE8: 0 | BF8: 9270 | BG8: 0 | BH8: 25963.82 | BJ8: 2177950.79 | BL8: 2177950.79 | BM8: 262629.86
A9: 2079 | B9: 10128 | C9: Beis Yaakov | D9: -1868746.11 | E9: 0 | F9: -10129 | G9: 0 | H9: -67320 | I9: -1600 | J9: 0 | K9: 0 | L9: -24306.99 | M9: -20132.4 | N9: 0 | O9: -7965.77 | P9: -46000 | Q9: 0 | R9: 0 | S9: 0 | T9: -78259.94 | U9: 1288528.41 | V9: 1939.86 | W9: 105400.39 | X9: 23825.85 | Y9: 95591.81 | Z9: 0 | AA9: 78826.04 | AB9: 20312.51 | AC9: 1661.98 | AD9: 15880.93 | AE9: 0 | AF9: 0 | AG9: 18070.62 | AH9: 0 | AI9: 48022.92 | AJ9: 3999.93 | AK9: 23037.53 | AL9: 14372.6 | AM9: 13524.41 | AN9: 48429.65 | AO9: 22822.69 | AP9: 0 | AQ9: 16781.78 | AR9: 0 | AS9: 9098.08 | AT9: 106662.42 | AU9: 0 | AV9: 0 | AW9: 595 | AX9: 25169.98 | AY9: 42361.86 | AZ9: 0 | BA9: 0 | BB9: 0 | BC9: 0 | BD9: 0 | BE9: 0 | BF9: 0 | BG9: 0 | BH9: 0 | BJ9: 1594112.36 | BL9: 1594112.36 | BM9: 0
A10: 3524 | B10: 11278 | C10: Beit Shvidler School | D10: -932777.16 | E10: 0 | F10: -87178 | G10: 0 | H10: -25080 | I10: -44081 | J10: -1725 | K10: -66594.74 | L10: -14641.96 | M10: 0 | N10: 0 | O10: -22230.05 | P10: -199199.16 | Q10: 0 | R10: 0 | S10: 0 | T10: -45344.08 | U10: 616222.05 | V10: 286.75 | W10: 266835.94 | X10: 10469.97 | Y10: 81244.58 | Z10: 0 | AA10: 0 | AB10: 16264.19 | AC10: 8012.75 | AD10: 346.94 | AE10: 5105.06 | AF10: 0 | AG10: 36649 | AH10: 7126.98 | AI10: 45275.33 | AJ10: 4406.66 | AK10: 13869.99 | AL10: 0 | AM10: 52028.73 | AN10: 72149.64 | AO10: 13260.02 | AP10: 0 | AQ10: 6389.49 | AR10: 11234.01 | AS10: 3388.67 | AT10: 54524 | AU10: 0 | AV10: 0 | AW10: 86747.44 | AX10: 23575.2 | AY10: 45418.19 | AZ10: 0 | BA10: 0 | BB10: 0 | BC10: 0 | BD10: 0 | BE10: 0 | BF10: 0 | BG10: 0 | BH10: 0 | BJ10: 975059.29 | BL10: 975059.29 | BM10: 0
A11: 2003 | B11: 10045 | C11: Bell Lane | D11: -1936745 | E11: 0 | F11: -68457 | G11: 0 | H11: -273240 | I11: -500 | J11: -3700 | K11: -51057.52 | L11: -27123.05 | M11: 0 | N11: -1857.5 | O11: -15287.32 | P11: -3125.79 | Q11: 0 | R11: -233563.5 | S11: -3886.34 | T11: -40670.08 | U11: 1079686.64 | V11: 2333.2 | W11: 418522.59 | X11: 53395.51 | Y11: 79304.65 | Z11: 0 | AA11: 68035.89 | AB11: 17477.45 | AC11: 28825.86 | AD11: 14839.38 | AE11: 1953 | AF11: 215428.81 | AG11: 15296.19 | AH11: 3493.49 | AI11: 25483.55 | AJ11: 5664.76 | AK11: 24096.5 | AL11: 17892 | AM11: 7524.33 | AN11: 68384.97 | AO11: 18032.89 | AP11: 1530 | AQ11: 32583.21 | AR11: 9064.55 | AS11: 14455.85 | AT11: 98381.15 | AU11: 0 | AV11: 34447.29 | AW11: 49411.75 | AX11: 185235.49 | AY11: 61396.37 | AZ11: 0 | BA11: 0 | BB11: -8826.48 | BC11: 0 | BD11: 0 | BE11: 0 | BF11: 0 | BG11: 0 | BH11: 0 | BJ11: 1701278.48 | BK11: 2393.41 | BL11: 1703671.89 | BM11: 215428.81
A12: 5408 | B12: 10137 | C12: Bishop Douglass | D12: -1356126 | E12: -506060.17 | F12: -36633 | G12: 0 | H12: -81712.29 | I12: -14506.52 | J12: -6543.6 | K12: -350.2 | L12: -39288.37 | M12: 0 | N12: 0 | O12: -88.4 | P12: -111028.62 | Q12: 0 | R12: 166780.71 | S12: 0 | T12: 0 | U12: 1143856.55 | V12: 0 | W12: 235955.92 | X12: 43829.03 | Y12: 128771.52 | Z12: 0 | AA12: 6126.39 | AB12: 10358.79 | AC12: -31009.55 | AD12: 0 | AE12: 11110 | AF12: 0 | AG12: 35903.9 | AH12: 2984.41 | AI12: 38068.48 | AJ12: 2809.66 | AK12: 17166.44 | AL12: 0 | AM12: 15161.42 | AN12: 84812.87 | AO12: 69353.07 | AP12: 90282.58 | AQ12: 53343.57 | AR12: 11771.53 | AS12: 0 | AT12: 46136.1 | AU12: 0 | AV12: 0 | AW12: 13658.43 | AX12: 25587.72 | AY12: 13004.73 | AZ12: 0 | BA12: 0 | BB12: 0 | BC12: 0 | BD12: 0 | BE12: 0 | BF12: 0 | BG12: 0 | BH12: 0 | BJ12: 1558539.41 | BL12: 1558539.41 | BM12: 0
A13: 3511 | B13: 10115 | C13: Blessed Dominic | D13: -1763340 | E13: 0 | F13: -128974 | G13: 0 | H13: -156920 | I13: -5800 | J13: -955 | K13: -50550.74 | L13: -33681.42 | M13: -7555 | N13: 0 | O13: -29956.4 | P13: 0 | Q13: 0 | R13: 0 | S13: 0 | T13: -61055.42 | U13: 901791.42 | V13: 31443.66 | W13: 413813.66 | X13: 34064.48 | Y13: 107363.19 | Z13: 0 | AA13: 46842.8 | AB13: 11842.87 | AC13: 21030.44 | AD13: 9654.24 | AE13: 1917 | AF13: 0 | AG13: 21167.63 | AH13: 3295.8 | AI13: 30466.85 | AJ13: 4885.74 | AK13: 12441.95 | AL13: 0 | AM13: 16535 | AN13: 100467.78 | AO13: 41790.77 | AP13: 0 | AQ13: 21761.69 | AR13: 10034.65 | AS13: 50758 | AT13: 107049.33 | AU13: 0 | AV13: 0 | AW13: 52809 | AX13: 194439.45 | AY13: 23394.71 | AZ13: 0 | BA13: 0 | BB13: 0 | BC13: 0 | BD13: 0 | BE13: 0 | BF13: 0 | BG13: 0 | BH13: 0 | BJ13: 1535319.21 | BL13: 1535319.21 | BM13: 0
A14: 1000 | B14: 10130 | C14: Brookhill Nursery | D14: -324858 | E14: 0 | F14: -2853 | G14: 0 | H14: 0 | I14: -108888 | J14: -8019 | K14: -198761.77 | L14: -5655.31 | M14: 0 | N14: -6382.94 | O14: -82.5 | P14: -3338.51 | Q14: 0 | R14: 0 | S14: 0 | T14: 0 | U14: 143156.81 | V14: 0 | W14: 334052.5 | X14: 26782.99 | Y14: 37817.89 | Z14: 0 | AA14: 16906.72 | AB14: 2813.86 | AC14: 5266.13 | AD14: 7104.26 | AE14: 504 | AF14: 0 | AG14: 4271.57 | AH14: 1880 | AI14: 1227.71 | AJ14: 956.82 | AK14: 4710.85 | AL14: 1500.4 | AM14: 4362.75 | AN14: 10951.81 | AO14: 6775.28 | AP14: 0 | AQ14: 7163.86 | AR14: 598.79 | AS14: 337.7 | AT14: 10916.88 | AU14: 0 | AV14: 0 | AW14: 0 | AX14: 0 | AY14: 14649.78 | AZ14: 0 | BA14: 1027 | BB14: -4803.25 | BC14: 0 | BD14: -1027 | BE14: 0 | BF14: 5830 | BG14: 0 | BH14: 0 | BJ14: 558716.91 | BL14: 558716.91 | BM14: 0
A15: 2008 | B15: 10047 | C15: Brookland Inf | D15: -1251370 | E15: 0 | F15: -101834 | G15: 0 | H15: -50160 | I15: -5200 | J15: -499 | K15: -38258.89 | L15: -4097.94 | M15: -12767.4 | N15: -8314.16 | O15: -20547.3 | P15: -11635.64 | Q15: 0 | R15: 0 | S15: 0 | T15: -112762.92 | U15: 750030.77 | V15: 0 | W15: 301316.12 | X15: 38980.88 | Y15: 60369.33 | Z15: 0 | AA15: 33402.02 | AB15: 13951.92 | AC15: 2024.5 | AD15: 7707.96 | AE15: 6057.5 | AF15: 0 | AG15: 11358.65 | AH15: 5674.98 | AI15: 16063.16 | AJ15: 4297.17 | AK15: 10080.5 | AL15: 16027 | AM15: 6750.85 | AN15: 34790.5 | AO15: 9987.4 | AP15: 0 | AQ15: 6979.22 | AR15: 5884.59 | AS15: 10005.63 | AT15: 92269.84 | AU15: 0 | AV15: 0 | AW15: 40902.86 | AX15: 74362.84 | AY15: 30706.54 | AZ15: 0 | BA15: 4592.5 | BB15: -7388.5 | BC15: -15911.94 | BD15: -4592.5 | BE15: 0 | BF15: 30400 | BG15: 0 | BH15: 10503 | BJ15: 1184099.12 | BL15: 1184099.12 | BM15: 0
A16: 2007 | B16: 10046 | C16: Brookland Jun | D16: -1410819 | E16: 0 | F16: -89127 | G16: 0 | H16: -114520 | I16: -421 | J16: -3385 | K16: -37778.59 | L16: -61833.93 | M16: -12736.06 | N16: -773.08 | O16: -48201.6 | P16: -16944.64 | Q16: 0 | R16: 0 | S16: 0 | T16: -9797.33 | U16: 824290.9 | V16: 0 | W16: 309880.77 | X16: 38313.91 | Y16: 60538.16 | Z16: 0 | AA16: 32218.2 | AB16: 5620.12 | AC16: 8015.4 | AD16: 13493.15 | AE16: 1602 | AF16: 0 | AG16: 22893.77 | AH16: 4753.96 | AI16: 18641.68 | AJ16: 4297.63 | AK16: 9584.24 | AL16: 16027 | AM16: 8164.78 | AN16: 81726.77 | AO16: 14930.7 | AP16: 0 | AQ16: 13667.13 | AR16: 6984.88 | AS16: 10993.29 | AT16: 76210.92 | AU16: 0 | AV16: 0 | AW16: 64914.2 | AX16: 80600.39 | AY16: 30148.09 | AZ16: 0 | BA16: 0 | BB16: -8050 | BC16: 0 | BD16: 0 | BE16: 0 | BF16: 0 | BG16: 0 | BH16: 7138 | BJ16: 1265241.94 | BL16: 1265241.94 | BM16: 0
A17: 2009 | B17: 10048 | C17: Brunswick Park | D17: -1829237.41 | E17: 0 | F17: -31373 | G17: 0 | H17: -131260 | I17: -19059.6 | J17: -3836 | K17: -96459.18 | L17: -34978.75 | M17: -19617.04 | N17: -2010.25 | O17: -18740.21 | P17: -22114.51 | Q17: 0 | R17: 0 | S17: 0 | T17: -73294.95 | U17: 1025442.52 | V17: 0 | W17: 395274.06 | X17: 30935.62 | Y17: 72471.06 | Z17: 0 | AA17: 107559.5 | AB17: 30870.33 | AC17: 10895.26 | AD17: 18922.94 | AE17: 1930.1 | AF17: 0 | AG17: 21972.02 | AH17: 3949.72 | AI17: 33256.44 | AJ17: 5061.23 | AK17: 35594.43 | AL17: 61825 | AM17: 9569.52 | AN17: 109346.37 | AO17: 18068.52 | AP17: 0 | AQ17: 15465.39 | AR17: 9792.42 | AS17: 13940.42 | AT17: 98617.58 | AU17: 0 | AV17: 0 | AW17: 15703.25 | AX17: 119439.43 | AY17: 25904.81 | AZ17: 0 | BA17: 14956.63 | BB17: -17895.13 | BC17: -0.24 | BD17: -14956.63 | BE17: 0 | BF17: 9994 | BG17: 0 | BH17: 25313 | BJ17: 1631682.76 | BK17: 11849 | BL17: 1643531.76 | BM17: 0
A18: 2067 | B18: 10118 | C18: Chalgrove | D18: -1165292.58 | E18: 0 | F18: -55460 | G18: 0 | H18: -100380 | I18: -9758 | J18: -3373.01 | K18: -24724.91 | L18: -19831.07 | M18: -27988.3 | N18: -776.96 | O18: -22636.31 | P18: -12146.12 | Q18: 0 | R18: 0 | S18: 0 | T18: -59906.42 | U18: 668614.51 | V18: 0 | W18: 276369.4 | X18: 26395.11 | Y18: 54151.78 | Z18: 0 | AA18: 24628.26 | AB18: 8360.12 | AC18: 733.99 | AD18: 11522.88 | AE18: 1156.5 | AF18: 0 | AG18: 19290.57 | AH18: 6640 | AI18: 24746.63 | AJ18: 2092.43 | AK18: 16876.3 | AL18: 14707.41 | AM18: 8348.11 | AN18: 64412.66 | AO18: 22456.08 | AP18: 0 | AQ18: 6910.86 | AR18: 5177.01 | AS18: 15394.45 | AT18: 72866.43 | AU18: 0 | AV18: 0 | AW18: 38672.79 | AX18: 41224.09 | AY18: 26118.21 | AZ18: 0 | BA18: 2632 | BB18: -6452.5 | BC18: -9975 | BD18: -2632 | BE18: 0 | BF18: 22916 | BG18: 0 | BH18: 0 | BJ18: 1050159.06 | BL18: 1050159.06 | BM18: 0
A19: 2010 | B19: 10049 | C19: Childs Hill | D19: -1838321 | E19: 0 | F19: -305161 | G19: 0 | H19: -199954 | I19: -13300 | J19: -1607.59 | K19: -72540.91 | L19: -27127.52 | M19: -9515 | N19: -2059.2 | O19: -23454.79 | P19: -4731.87 | Q19: 0 | R19: 0.5 | S19: 0 | T19: -50911.67 | U19: 1169383.23 | V19: 0 | W19: 554901.25 | X19: 85664.95 | Y19: 81319.55 | Z19: 0 | AA19: 51031.65 | AB19: 18413.85 | AC19: 14305.6 | AD19: 16459.41 | AE19: 1669.5 | AF19: 3955.11 | AG19: 39720.68 | AH19: 992.49 | AI19: 7663.17 | AJ19: 3885.84 | AK19: 18400.16 | AL19: 20793.32 | AM19: 13653.07 | AN19: 81494.72 | AO19: 32517.98 | AP19: 0 | AQ19: 18988.19 | AR19: 10198.5 | AS19: 17859.75 | AT19: 85683.9 | AU19: 0 | AV19: 61371.39 | AW19: 18734.49 | AX19: 139013.47 | AY19: 56365.89 | AZ19: 0 | BA19: 1916.54 | BB19: -7892.5 | BC19: -36721 | BD19: -1916.54 | BE19: 0 | BF19: 6106.04 | BG19: 40125 | BH19: 0 | BJ19: 1942300.63 | BL19: 1942300.63 | BM19: 3955.11
A20: 3302 | B20: 10050 | C20: Christchurch JMI | D20: -941476.99 | E20: 0 | F20: -39560 | G20: 0 | H20: -18480 | I20: -3031 | J20: -3294.22 | K20: -43343.19 | L20: -29811.87 | M20: 0 | N20: 0 | O20: -42598.6 | P20: -12927.88 | Q20: 0 | R20: 0 | S20: 0 | T20: -40990.42 | U20: 512826.07 | V20: 165 | W20: 184896.74 | X20: 31930.4 | Y20: 38090.94 | Z20: 0 | AA20: 31538.92 | AB20: 2765.88 | AC20: 3680.83 | AD20: 333.66 | AE20: 1030.5 | AF20: 0 | AG20: 10866.71 | AH20: 929.56 | AI20: 20127.45 | AJ20: 1551.22 | AK20: 14887.16 | AL20: 0 | AM20: 2765.74 | AN20: 59232.13 | AO20: 11050.78 | AP20: 0 | AQ20: 6098.29 | AR20: 2218.09 | AS20: 16517.19 | AT20: 67565.36 | AU20: 0 | AV20: 0 | AW20: 140 | AX20: 29100.94 | AY20: 20779.51 | AZ20: 0 | BA20: 0 | BB20: 0 | BC20: 0 | BD20: 0 | BE20: 0 | BF20: 0 | BG20: 0 | BH20: 0 | BJ20: 799448.07 | BL20: 799448.07 | BM20: 0
A21: 2011 | B21: 10051 | C21: Church Hill | D21: -963370 | E21: 0 | F21: -52452 | G21: 0 | H21: -68820 | I21: -1500 | J21: -6318.5 | K21: -30499.55 | L21: -30817.29 | M21: -6353.77 | N21: -533.52 | O21: -33292.95 | P21: -7878.42 | Q21: 0 | R21: 0 | S21: 0 | T21: -37002.25 | U21: 530209.32 | V21: 0 | W21: 219187.75 | X21: 35400.49 | Y21: 67250.4 | Z21: 0 | AA21: 33110.44 | AB21: 2963.23 | AC21: 6510.7 | AD21: 9837.88 | AE21: 1017 | AF21: 0 | AG21: 10631.7 | AH21: 3524 | AI21: 15068.97 | AJ21: 438.26 | AK21: 14684.41 | AL21: 9971.5 | AM21: 5411.61 | AN21: 61332.73 | AO21: 8324.79 | AP21: 0 | AQ21: 4207.33 | AR21: 7029.54 | AS21: 5316.29 | AT21: 50893.7 | AU21: 0 | AV21: 0 | AW21: 31286.67 | AX21: 31446.36 | AY21: 19065.75 | AZ21: 0 | BA21: 0 | BB21: -6610 | BC21: 0 | BD21: 0 | BE21: 0 | BF21: 0 | BG21: 0 | BH21: 11052.5 | BJ21: 885158.4 | BL21: 885158.4 | BM21: 0
A22: 3522 | B22: 10953 | C22: Claremont Primary | D22: 0 | E22: 0 | F22: 0 | G22: 0 | H22: 0 | I22: 0 | J22: 0 | K22: 0 | L22: 0 | M22: 0 | N22: 0 | O22: 0 | P22: 0 | Q22: 0 | R22: 0 | S22: 0 | T22: 0 | U22: 0 | V22: 0 | W22: 0 | X22: 0 | Y22: 0 | Z22: 0 | AA22: 0 | AB22: 0 | AC22: 0 | AD22: 0 | AE22: 0 | AF22: 0 | AG22: 0 | AH22: 0 | AI22: 0 | AJ22: 0 | AK22: 0 | AL22: 0 | AM22: 0 | AN22: 0 | AO22: 0 | AP22: 0 | AQ22: 0 | AR22: 0 | AS22: 0 | AT22: 0 | AU22: 0 | AV22: 0 | AW22: 0 | AX22: 0 | AY22: 0 | AZ22: 0 | BA22: 0 | BB22: 0 | BC22: 0 | BD22: 0 | BE22: 0 | BF22: 0 | BG22: 0 | BH22: 0 | BJ22: 0 | BL22: 0 | BM22: 0
A23: 2014 | B23: 10054 | C23: Colindale | D23: -3226287 | E23: 0 | F23: -331336 | G23: 0 | H23: -283800 | I23: -9200 | J23: -1309.2 | K23: -56067.32 | L23: -62702.56 | M23: -14912.6 | N23: -114166.34 | O23: -35101.67 | P23: -26595.64 | Q23: 0 | R23: 0 | S23: 0 | T23: -91477.17 | U23: 1601475.12 | V23: 0 | W23: 694026.12 | X23: 115857.86 | Y23: 115393.06 | Z23: 0 | AA23: 65793.6 | AB23: 36823.02 | AC23: 10530.79 | AD23: 23051.77 | AE23: 9785.17 | AF23: 0 | AG23: 179076.4 | AH23: 2176.42 | AI23: 4855.35 | AJ23: 7848.86 | AK23: 73983.55 | AL23: 182175.45 | AM23: 18157.31 | AN23: 118022.1 | AO23: 21010.51 | AP23: 0 | AQ23: 38297.84 | AR23: 22087.55 | AS23: 34047.98 | AT23: 182873.33 | AU23: 0 | AV23: 0 | AW23: 149441.6 | AX23: 442700.15 | AY23: 46626.3 | AZ23: 0 | BA23: 32785.81 | BB23: -11686.45 | BC23: 0 | BD23: -32785.81 | BE23: 0 | BF23: 0 | BG23: 0 | BH23: 44472.26 | BJ23: 2592545.76 | BL23: 2592545.76 | BM23: 0
A24: 2015 | B24: 10055 | C24: Coppetts Wood | D24: -1434985 | E24: 0 | F24: -161220.06 | G24: 0 | H24: -133166.32 | I24: -500 | J24: -2588 | K24: -4014.9 | L24: -30069.74 | M24: -6055 | N24: -11333.64 | O24: -29904.78 | P24: -224.3 | Q24: 0 | R24: -250619 | S24: -62347.63 | T24: -33140.52 | U24: 818136.12 | V24: 0 | W24: 476317.97 | X24: 30867.95 | Y24: 46715.11 | Z24: -97035 | AA24: 104590.28 | AB24: 6284.17 | AC24: 5433.69 | AD24: 16501.58 | AE24: 1251 | AF24: 247516.39 | AG24: 28640.87 | AH24: 7026 | AI24: 27322.15 | AJ24: 2972.65 | AK24: 13048.62 | AL24: 27045.5 | AM24: 9181.24 | AN24: 60923.19 | AO24: 20797.83 | AP24: 0 | AQ24: 14723.55 | AR24: 4999.48 | AS24: 3467.64 | AT24: 68989.13 | AU24: 0 | AV24: 34479.83 | AW24: 23907.05 | AX24: 58004.24 | AY24: 31175.86 | AZ24: 0 | BA24: 0 | BB24: -7066.75 | BC24: 0 | BD24: 0 | BE24: 0 | BF24: 0 | BG24: 0 | BH24: 0 | BJ24: 1379592.43 | BL24: 1379592.43 | BM24: 247516.39
A25: 2016 | B25: 10056 | C25: Courtland | D25: -913968 | E25: 0 | F25: -41971 | G25: 0 | H25: -56020 | I25: -1000 | J25: -3580 | K25: -4880.23 | L25: -22149.61 | M25: 0 | N25: -744.92 | O25: -27808.25 | P25: -12200.52 | Q25: 0 | R25: 0 | S25: 0 | T25: -39825.13 | U25: 542879.08 | V25: 3217.53 | W25: 195407.91 | X25: 25698.55 | Y25: 28103.34 | Z25: 0 | AA25: 24358.84 | AB25: 2779.81 | AC25: 304.99 | AD25: 9478.41 | AE25: 954 | AF25: 0 | AG25: 14626.33 | AH25: 4265.25 | AI25: 11764.35 | AJ25: 2974.27 | AK25: 13561.68 | AL25: 11406.25 | AM25: 5765.33 | AN25: 47849.06 | AO25: 9534.07 | AP25: 0 | AQ25: 4330.97 | AR25: 5478.61 | AS25: 2262.8 | AT25: 62877.08 | AU25: 14.37 | AV25: 0 | AW25: 18125 | AX25: 52086.05 | AY25: 28765.4 | AZ25: 0 | BA25: 0 | BB25: -27821.19 | BC25: 0 | BD25: 0 | BE25: 0 | BF25: 24955 | BG25: 0 | BH25: 0 | BJ25: 819665.25 | BL25: 819665.25 | BM25: 0
A26: 2017 | B26: 10057 | C26: Cromer Road | D26: -1701703 | E26: 0 | F26: -37297 | G26: 0 | H26: -171620 | I26: -1700 | J26: -1692.23 | K26: -63908.82 | L26: -40164.97 | M26: -6042.92 | N26: -3191.34 | O26: -39242.36 | P26: -18771.47 | Q26: -3039.29 | R26: 0 | S26: 0 | T26: -76682.94 | U26: 983763.37 | V26: 10539.11 | W26: 397620.54 | X26: 37332.45 | Y26: 62454.64 | Z26: 0 | AA26: 95694.09 | AB26: 75269.49 | AC26: 6075.3 | AD26: 18181.42 | AE26: 1858.5 | AF26: 0 | AG26: 43306.63 | AH26: 6743.73 | AI26: 27052.16 | AJ26: 6291.07 | AK26: 32239.64 | AL26: 18389 | AM26: 9724.28 | AN26: 81770.52 | AO26: 20036.23 | AP26: 0 | AQ26: 18279.76 | AR26: 9440.62 | AS26: 14069.95 | AT26: 79058.64 | AU26: 0 | AV26: 0 | AW26: 42362.52 | AX26: 66895.19 | AY26: 56137.12 | AZ26: 0 | BA26: 0 | BB26: -8680 | BC26: 0 | BD26: 0 | BE26: 0 | BF26: 0 | BG26: 0 | BH26: 3167.8 | BJ26: 1587404.2 | BK26: 49759.12 | BL26: 1637163.32 | BM26: 0
A27: 2073 | B27: 10083 | C27: Danegrove | D27: -2708887 | E27: 0 | F27: -176955.28 | G27: 0 | H27: -255833 | I27: 0 | J27: -5998 | K27: -92488.64 | L27: -88341.09 | M27: -2532.04 | N27: -3616.1 | O27: -50470.48 | P27: 0 | Q27: 0 | R27: 0 | S27: 0 | T27: -93411 | U27: 1358410.19 | V27: 0 | W27: 750486.21 | X27: 95744.16 | Y27: 112516.37 | Z27: 117075.05 | AA27: 143506.03 | AB27: 11545.01 | AC27: 18589.19 | AD27: 20853.12 | AE27: 12952 | AF27: 1734 | AG27: 161414.3 | AH27: 11283.74 | AI27: 8742.35 | AJ27: 6653.33 | AK27: 31952.45 | AL27: 47205.32 | AM27: 27715.14 | AN27: 135209.75 | AO27: 44661.67 | AP27: 0 | AQ27: 49565.43 | AR27: 14040.64 | AS27: 11000.19 | AT27: 122346.61 | AU27: 0 | AV27: 0 | AW27: 95180 | AX27: 25503.79 | AY27: 19130.8 | AZ27: 0 | BA27: 0 | BB27: -11323.75 | BC27: 0 | BD27: 0 | BE27: 0 | BF27: 14758 | BG27: 3185 | BH27: 0 | BJ27: 2577738.01 | BL27: 2577738.01 | BM27: 1734
A28: 2019 | B28: 10059 | C28: Deansbrook Inf | D28: -1437801 | E28: 0 | F28: -27431.17 | G28: 0 | H28: -105600 | I28: -3200 | J28: 0 | K28: -29197.53 | L28: -489.72 | M28: -1453.2 | N28: -10810.65 | O28: -9246.2 | P28: -1394.8 | Q28: 0 | R28: 0 | S28: 0 | T28: -97267.58 | U28: 770133.41 | V28: 0 | W28: 476267.79 | X28: 37790.24 | Y28: 79015.11 | Z28: 0 | AA28: 54577.82 | AB28: 6312.25 | AC28: 3614.22 | AD28: 15474.28 | AE28: 1453.5 | AF28: 0 | AG28: 19368.72 | AH28: 5234.03 | AI28: 2762.55 | AJ28: 6104.87 | AK28: 27113.94 | AL28: 14910 | AM28: 5336.41 | AN28: 25450.95 | AO28: 15341.37 | AP28: 0 | AQ28: 14495.68 | AR28: 5706.23 | AS28: 1456.21 | AT28: 79649.46 | AU28: 0 | AV28: 0 | AW28: 28887.03 | AX28: 30159.69 | AY28: 37249.53 | AZ28: 0 | BA28: 0 | BB28: -7782.25 | BC28: 0 | BD28: 0 | BE28: 0 | BF28: 0 | BG28: 0 | BH28: 0 | BJ28: 1417784.37 | BL28: 1417784.37 | BM28: 0
A29: 2021 | B29: 10061 | C29: Dollis Inf | D29: -1383739.74 | E29: 0 | F29: -84711 | G29: 0 | H29: -125980 | I29: -1700 | J29: -95044.48 | K29: -30210.83 | L29: -2372.14 | M29: -4325 | N29: 1000 | O29: -16255.8 | P29: -5775.91 | Q29: 0 | R29: 0 | S29: 0 | T29: -95221.5 | U29: 669355.1 | V29: 12377.42 | W29: 563512.43 | X29: 34020.07 | Y29: 78171.62 | Z29: 0 | AA29: 0 | AB29: 9765.77 | AC29: 2655.98 | AD29: 9946.19 | AE29: 5614 | AF29: 0 | AG29: 16820.77 | AH29: 4941.63 | AI29: 23040.33 | AJ29: 2951.79 | AK29: 14419.65 | AL29: 19010.25 | AM29: 10968.42 | AN29: 51223.12 | AO29: 7895.59 | AP29: 0 | AQ29: 11795.93 | AR29: 3452.95 | AS29: 1271.95 | AT29: 97257.71 | AU29: 0 | AV29: 0 | AW29: 27800 | AX29: 101944.28 | AY29: 20664.9 | AZ29: 0 | BA29: 0 | BB29: -30491.9 | BC29: -14030 | BD29: 0 | BE29: 0 | BF29: 27998.93 | BG29: 0 | BH29: 0 | BJ29: 1357436.64 | BL29: 1357436.64 | BM29: 0
A30: 5200 | B30: 10060 | C30: Dollis Junior | D30: -1631781.38 | E30: 0 | F30: -135754.85 | G30: 0 | H30: -246840 | I30: -1500 | J30: -9027.66 | K30: -40107.98 | L30: -48781.43 | M30: 0 | N30: 0 | O30: -28426.75 | P30: -9030.29 | Q30: 0 | R30: 0 | S30: 0 | T30: -9726 | U30: 858386.01 | V30: 0 | W30: 477171.23 | X30: 69531.25 | Y30: 112041.74 | Z30: 0 | AA30: 11413.9 | AB30: 26502.6 | AC30: 5677.4 | AD30: 569.38 | AE30: 1485 | AF30: 0 | AG30: 17860.82 | AH30: 3579.25 | AI30: 1954.29 | AJ30: 4497.48 | AK30: 25563.38 | AL30: 0 | AM30: 10349.43 | AN30: 77951.82 | AO30: 8633.78 | AP30: 0 | AQ30: 10273.85 | AR30: 6638.9 | AS30: 893.89 | AT30: 69030.32 | AU30: 0 | AV30: 0 | AW30: 120230.2 | AX30: 224700.86 | AY30: 26288.21 | AZ30: 0 | BA30: 0 | BB30: -7870 | BC30: 0 | BD30: 0 | BE30: 0 | BF30: 0 | BG30: 0 | BH30: 2605 | BJ30: 1528544.13 | BL30: 1528544.13 | BM30: 0
A31: 2023 | B31: 10063 | C31: Edgware Inf | D31: -2836511 | E31: 0 | F31: -159700.77 | G31: 0 | H31: -291211.02 | I31: 0 | J31: -12070.64 | K31: -20247.82 | L31: -44995.82 | M31: -10717.6 | N31: -7056.6 | O31: -15890.05 | P31: -5290.94 | Q31: 0 | R31: 0 | S31: 0 | T31: -87870.83 | U31: 1392796.11 | V31: 0 | W31: 772086.02 | X31: 59856.94 | Y31: 200204.84 | Z31: 0 | AA31: 135532.04 | AB31: 24696.04 | AC31: 16935.42 | AD31: 28899.45 | AE31: 2880 | AF31: 0 | AG31: 28680.21 | AH31: 7766.08 | AI31: 49169.85 | AJ31: 19834.15 | AK31: 32969.65 | AL31: 17525.83 | AM31: 12596.61 | AN31: 88437.16 | AO31: 16611.15 | AP31: 0 | AQ31: 14340.59 | AR31: 11896.34 | AS31: 11882.72 | AT31: 155683.69 | AU31: 0 | AV31: 0 | AW31: 244230.63 | AX31: 126338.44 | AY31: 67322.85 | AZ31: 0 | BA31: 0 | BB31: -11146 | BC31: 0 | BD31: 0 | BE31: 0 | BF31: 12677.4 | BG31: 0 | BH31: 0 | BJ31: 2560475.95 | BL31: 2560475.95 | BM31: 0
A32: 2024 | B32: 10064 | C32: Fairway | D32: -1251686.36 | E32: 0 | F32: -63175 | G32: 0 | H32: -117996 | I32: -1671.72 | J32: -5094 | K32: -18290.65 | L32: -23435.49 | M32: -6574 | N32: -11859.46 | O32: -18541.05 | P32: -3749.2 | Q32: 0 | R32: -381062.5 | S32: -178277.1 | T32: -22493.08 | U32: 658332.2 | V32: 0 | W32: 294994.15 | X32: 22010.09 | Y32: 61267.99 | Z32: 0 | AA32: 28953.05 | AB32: 5344.35 | AC32: 10287.87 | AD32: 11024.62 | AE32: 1841.6 | AF32: 459761.63 | AG32: 27779.3 | AH32: 1674.29 | AI32: 24590.29 | AJ32: 5826.91 | AK32: 17849.82 | AL32: 40356 | AM32: 4240.52 | AN32: 55557.69 | AO32: 20867.34 | AP32: 0 | AQ32: 28436.34 | AR32: 2601.29 | AS32: 11006.51 | AT32: 66610.2 | AU32: 0 | AV32: 80791.42 | AW32: 35575 | AX32: 50059.11 | AY32: 33452.31 | AZ32: 0 | BA32: 0 | BB32: -6952.44 | BC32: 0 | BD32: 0 | BE32: 0 | BF32: 0 | BG32: 0 | BH32: 4663.37 | BJ32: 1065557.48 | BL32: 1065557.48 | BM32: 459761.63
A33: 5405 | B33: 10145 | C33: Finchley Catholic High | D33: -4489562 | E33: -1395212 | F33: -225586.26 | G33: 0 | H33: -127580 | I33: -77855.3 | J33: -8280 | K33: -111983.13 | L33: -337559.83 | M33: 0 | N33: 0 | O33: -89774.68 | P33: 0 | Q33: 0 | R33: 0 | S33: 0 | T33: 0 | U33: 4213915.66 | V33: 35797.25 | W33: 495397.03 | X33: 106245.72 | Y33: 499885.63 | Z33: 0 | AA33: 0 | AB33: 42931.15 | AC33: 34365.68 | AD33: 876 | AE33: 5220 | AF33: 3537.41 | AG33: 119335.69 | AH33: 44320.45 | AI33: 94830.63 | AJ33: 6601.93 | AK33: 98068.21 | AL33: 0 | AM33: 33029.53 | AN33: 243853.57 | AO33: 72446.77 | AP33: 132446.52 | AQ33: 53090.25 | AR33: 52437.35 | AS33: 25225.92 | AT33: 309069.03 | AU33: 0 | AV33: 397.55 | AW33: 12082 | AX33: 48407.93 | AY33: 62524.19 | AZ33: 0 | BA33: 19518 | BB33: 0 | BC33: 0 | BD33: -19518 | BE33: 0 | BF33: 0 | BG33: 0 | BH33: 19517.18 | BJ33: 5351241.29 | BL33: 5351241.29 | BM33: 3537.41
A34: 2025 | B34: 10065 | C34: Foulds | D34: -1222281 | E34: 0 | F34: -85541 | G34: 0 | H34: -50100 | I34: -2600 | J34: -4515 | K34: -55512.19 | L34: -36244.73 | M34: -18165 | N34: -2204.28 | O34: -56577.04 | P34: -14312.89 | Q34: 0 | R34: 0 | S34: 0 | T34: -59717.33 | U34: 755286.7 | V34: 16451.43 | W34: 284724.48 | X34: 54825.94 | Y34: 44711.02 | Z34: 0 | AA34: 34814.9 | AB34: 7948.61 | AC34: 6189.26 | AD34: 12882.36 | AE34: 1408.5 | AF34: 0 | AG34: 10669.07 | AH34: 0 | AI34: 1199.9 | AJ34: 7575.89 | AK34: 23691.46 | AL34: 20749.75 | AM34: 4350.27 | AN34: 58398.75 | AO34: 12608.11 | AP34: 0 | AQ34: 9468.41 | AR34: 6953.49 | AS34: 7684.42 | AT34: 80379.32 | AU34: 0 | AV34: 0 | AW34: 30080 | AX34: 45772.84 | AY34: 34175 | AZ34: 0 | BA34: 0 | BB34: -15351.75 | BC34: 0 | BD34: 0 | BE34: 0 | BF34: 13565.9 | BG34: 0 | BH34: 2093 | BJ34: 1190814.47 | BL34: 1190814.47 | BM34: 0
A35: 4003 | B35: 10139 | C35: Friern Barnet | D35: -4655999 | E35: 0 | F35: -245422.03 | G35: 0 | H35: -404085 | I35: -24717.42 | J35: 0 | K35: -10253.5 | L35: -81072.7 | M35: 0 | N35: 0 | O35: -10747.8 | P35: -10161.99 | Q35: 0 | R35: 0 | S35: 0 | T35: -11068.04 | U35: 3083284.3 | V35: 0 | W35: 830355.39 | X35: 95611.45 | Y35: 408986.12 | Z35: 0 | AA35: 44149.8 | AB35: 48800.27 | AC35: 19677.94 | AD35: 805 | AE35: 3519 | AF35: 0 | AG35: 58546.85 | AH35: 2732.75 | AI35: 53457.64 | AJ35: 2894.48 | AK35: 65354.76 | AL35: 55319 | AM35: 34686.36 | AN35: 135881.44 | AO35: 78682.56 | AP35: 16313.45 | AQ35: 30221.9 | AR35: 22806.73 | AS35: 0 | AT35: 129092.78 | AU35: 0 | AV35: 0 | AW35: 151264.68 | AX35: 52728.57 | AY35: 22995.54 | AZ35: 0 | BA35: 85000 | BB35: -41857.86 | BC35: 0 | BD35: -85000 | BE35: 0 | BF35: 58348.98 | BG35: 6610.64 | BH35: 42258.45 | BJ35: 4462387.06 | BL35: 4462387.06 | BM35: 0
A36: 2026 | B36: 10066 | C36: Frith Manor | D36: -2614306 | E36: 0 | F36: -98760 | G36: 0 | H36: -162425 | I36: -4177 | J36: 0 | K36: -83345.15 | L36: -65120.78 | M36: 0 | N36: 0 | O36: -126526.33 | P36: -21244.62 | Q36: 0 | R36: 0 | S36: 0 | T36: -91551.51 | U36: 1533089.07 | V36: 5420.31 | W36: 699969.46 | X36: 55264.29 | Y36: 118778.27 | Z36: 0 | AA36: 106506.88 | AB36: 7398.86 | AC36: 3084.17 | AD36: 1025.88 | AE36: 5804.7 | AF36: 0 | AG36: 29430.26 | AH36: 3429.75 | AI36: 54520.75 | AJ36: 4268.81 | AK36: 35625.18 | AL36: 37224 | AM36: 15413.07 | AN36: 111935.35 | AO36: 24034.24 | AP36: 0 | AQ36: 28063.02 | AR36: 26100.57 | AS36: 15729.24 | AT36: 157845.63 | AU36: 0 | AV36: 0 | AW36: 88271.67 | AX36: 109595.83 | AY36: 41619.18 | AZ36: 0 | BA36: 0 | BB36: -11300.94 | BC36: 0 | BD36: 0 | BE36: 0 | BF36: 15259.76 | BG36: 0 | BH36: 0 | BJ36: 2519028.28 | BL36: 2519028.28 | BM36: 0
A37: 2028 | B37: 10068 | C37: Garden Suburb Inf | D37: -1133055 | E37: 0 | F37: -44760 | G37: 0 | H37: -46040 | I37: -2213 | J37: 0 | K37: -9867.23 | L37: -3489.48 | M37: -11550.03 | N37: -2686.8 | O37: -4316.74 | P37: -3518.69 | Q37: 0 | R37: 0 | S37: 0 | T37: -97441.08 | U37: 700810.89 | V37: 0 | W37: 255410.6 | X37: 27130.46 | Y37: 40073.75 | Z37: 0 | AA37: 33532.63 | AB37: 16795.3 | AC37: 4200 | AD37: 10612.24 | AE37: 1215 | AF37: 0 | AG37: 5992.58 | AH37: 1096.56 | AI37: 14400.74 | AJ37: 624.25 | AK37: 12014.87 | AL37: 16931.75 | AM37: 6574.29 | AN37: 19293.83 | AO37: 7867.35 | AP37: 0 | AQ37: 9306.81 | AR37: 5404.87 | AS37: 2770.2 | AT37: 90772.84 | AU37: 0 | AV37: 0 | AW37: 11681 | AX37: 56986.86 | AY37: 24479.95 | AZ37: 0 | BA37: 0 | BB37: -6925 | BC37: 0 | BD37: 0 | BE37: 0 | BF37: 0 | BG37: 0 | BH37: 0 | BJ37: 1056958.33 | BL37: 1056958.33 | BM37: 0
A38: 2027 | B38: 10067 | C38: Garden Suburb Jnr | D38: -1451607 | E38: 0 | F38: -115916 | G38: 0 | H38: -123340 | I38: -1300 | J38: -358 | K38: -17131.63 | L38: -75071.83 | M38: -6746.85 | N38: -10724.29 | O38: -30524.5 | P38: -3657.72 | Q38: 0 | R38: 0 | S38: 0 | T38: -9784.83 | U38: 912032.38 | V38: 2189.56 | W38: 246529.05 | X38: 27129.24 | Y38: 43611.93 | Z38: 0 | AA38: 27281.16 | AB38: 5152.98 | AC38: 1608.5 | AD38: 13718.8 | AE38: 1593 | AF38: 0 | AG38: 10613.37 | AH38: 1995.89 | AI38: 20236.36 | AJ38: 996.71 | AK38: 19963.26 | AL38: 16931.75 | AM38: 7334.63 | AN38: 63932.81 | AO38: 14038.16 | AP38: 0 | AQ38: 10298.53 | AR38: 7632.65 | AS38: 11107.05 | AT38: 87124.41 | AU38: 0 | AV38: 0 | AW38: 71635 | AX38: 165341.06 | AY38: 31382.2 | AZ38: 0 | BA38: 0 | BB38: -7982.5 | BC38: 0 | BD38: 0 | BE38: 0 | BF38: 0 | BG38: 0 | BH38: 6778.27 | BJ38: 1258773.32 | BL38: 1258773.32 | BM38: 0
A39: 2029 | B39: 10069 | C39: Goldbeaters | D39: -2215999 | E39: 0 | F39: -41416 | G39: 0 | H39: -299610 | I39: -9197 | J39: -5765 | K39: -33115.27 | L39: -26621.28 | M39: 0 | N39: 0 | O39: -19621.31 | P39: -5320.34 | Q39: 0 | R39: 0 | S39: 0 | T39: -47879.58 | U39: 1050824.46 | V39: 0 | W39: 604815.81 | X39: 101526.02 | Y39: 87714.59 | Z39: 0 | AA39: 109548.73 | AB39: 6448.45 | AC39: 4564.99 | AD39: 17380.45 | AE39: 2088 | AF39: 0 | AG39: 34458.55 | AH39: 681.19 | AI39: 2354.07 | AJ39: 3976 | AK39: 38308.63 | AL39: 21992.25 | AM39: 15895.58 | AN39: 118428.74 | AO39: 22768.59 | AP39: 0 | AQ39: 15811.02 | AR39: 8912.99 | AS39: 24289.43 | AT39: 99048.61 | AU39: 0 | AV39: 0 | AW39: 169578.12 | AX39: 164280.07 | AY39: 33514.6 | AZ39: 0 | BA39: 0 | BB39: -8970.25 | BC39: 0 | BD39: 0 | BE39: 0 | BF39: 0 | BG39: 0 | BH39: 0 | BJ39: 1954429.61 | BL39: 1954429.61 | BM39: 0
A40: 1001 | B40: 10131 | C40: Hampden Way Nursery | D40: -275050 | E40: 0 | F40: -7289 | G40: 0 | H40: 0 | I40: -54222 | J40: -65110 | K40: -176895.41 | L40: 0 | M40: 0 | N40: -2342.49 | O40: 0 | P40: -4320.69 | Q40: 0 | R40: -178941 | S40: -24100.63 | T40: 0 | U40: 148809.01 | V40: 0 | W40: 307364.74 | X40: 21897.03 | Y40: 49996.15 | Z40: 0 | AA40: 45190.93 | AB40: 2028.6 | AC40: 3628.68 | AD40: 4975.04 | AE40: 454.5 | AF40: 141738.51 | AG40: 3283.31 | AH40: 0 | AI40: 447.79 | AJ40: 1100.61 | AK40: 1616.32 | AL40: 12673.5 | AM40: 4754.57 | AN40: 7459.97 | AO40: 3892.8 | AP40: 0 | AQ40: 9347.43 | AR40: 610.41 | AS40: 8549.73 | AT40: 1202.96 | AU40: 0 | AV40: 51816.44 | AW40: 0 | AX40: 9695 | AY40: 12461.04 | AZ40: 0 | BA40: 0 | BB40: -4580.5 | BC40: 0 | BD40: 0 | BE40: 0 | BF40: 7816.8 | BG40: 0 | BH40: 0 | BJ40: 573257.86 | BL40: 573257.86 | BM40: 141738.51
A41: 3516 | B41: 10121 | C41: Hasmonean Primary | D41: -987391.69 | E41: 0 | F41: -62013 | G41: 0 | H41: -18000.33 | I41: -42600 | J41: 0 | K41: -6197.32 | L41: -12330.01 | M41: 0 | N41: 0 | O41: -10072.46 | P41: -106607.98 | Q41: 0 | R41: 0 | S41: 0 | T41: -54451.5 | U41: 593263.71 | V41: 2288.11 | W41: 237083.53 | X41: 28836.02 | Y41: 91085.61 | Z41: 0 | AA41: 17781.71 | AB41: 5809.9 | AC41: 678 | AD41: 344 | AE41: 1111.5 | AF41: 0 | AG41: 8028.59 | AH41: 0 | AI41: 26494.15 | AJ41: 2896.68 | AK41: 12811.21 | AL41: 0 | AM41: 16334.4 | AN41: 75791.4 | AO41: 14805.8 | AP41: 0 | AQ41: 7787.35 | AR41: 6013.99 | AS41: 263.66 | AT41: 46935.8 | AU41: 0 | AV41: 0 | AW41: 13585 | AX41: 14844.9 | AY41: 13766.3 | AZ41: 0 | BA41: 0 | BB41: 0 | BC41: 0 | BD41: 0 | BE41: 0 | BF41: 0 | BG41: 0 | BH41: 0 | BJ41: 970338.69 | BL41: 970338.69 | BM41: 0
A42: 2031 | B42: 10071 | C42: Hollickwood | D42: -1116034.82 | E42: 0 | F42: -32842.18 | G42: 0 | H42: -130680 | I42: -720 | J42: -21511 | K42: -45337.81 | L42: -13872.17 | M42: -14497.4 | N42: -7210.71 | O42: -21821.45 | P42: -4204.18 | Q42: 0 | R42: 0 | S42: 0 | T42: -29637.42 | U42: 579131.71 | V42: 0 | W42: 310593.5 | X42: 24388.77 | Y42: 46962.45 | Z42: 0 | AA42: 33485.77 | AB42: 9331.68 | AC42: 6056.5 | AD42: 12196.26 | AE42: 953.8 | AF42: 0 | AG42: 51719.28 | AH42: 4518.69 | AI42: 21290.17 | AJ42: 2798.06 | AK42: 13020.87 | AL42: 0 | AM42: 9130.97 | AN42: 49059.84 | AO42: 10582.56 | AP42: 0 | AQ42: 6822.12 | AR42: 5143.75 | AS42: 7099.43 | AT42: 47918.21 | AU42: 0 | AV42: 0 | AW42: 22291 | AX42: 50954.48 | AY42: 29515.6 | AZ42: 0 | BA42: 0 | BB42: -6614.05 | BC42: 0 | BD42: 0 | BE42: 0 | BF42: 0 | BG42: 0 | BH42: 0 | BJ42: 994562.2 | BL42: 994562.2 | BM42: 0
A43: 2032 | B43: 10072 | C43: Holly Park | D43: -2112706 | E43: 0 | F43: -96979 | G43: 0 | H43: -170420 | I43: -2000 | J43: 0 | K43: -100287.03 | L43: -43614.84 | M43: -3000 | N43: 0 | O43: 0 | P43: -49849.26 | Q43: 0 | R43: 0 | S43: 0 | T43: -57165.33 | U43: 1290956.14 | V43: 0 | W43: 587749.48 | X43: 29268.62 | Y43: 65534.53 | Z43: 0 | AA43: 44204.7 | AB43: 1060.89 | AC43: 7557.06 | AD43: 17335.11 | AE43: 2358 | AF43: 0 | AG43: 25973.89 | AH43: 2252.5 | AI43: 41419.33 | AJ43: 4999.67 | AK43: 24496.7 | AL43: 9935.78 | AM43: 6599.32 | AN43: 110502.87 | AO43: 13171.48 | AP43: 0 | AQ43: 9834.92 | AR43: 9976.47 | AS43: 5100 | AT43: 122823.28 | AU43: 0 | AV43: 0 | AW43: 33040.6 | AX43: 83000.61 | AY43: 33196.14 | AZ43: 0 | BA43: 0 | BB43: -9818.5 | BC43: 0 | BD43: 0 | BE43: 0 | BF43: 9828 | BG43: 0 | BH43: 0 | BJ43: 2017713.47 | BL43: 2017713.47 | BM43: 0
A44: 3304 | B44: 10073 | C44: Holy Trinity | D44: -1122712.08 | E44: 0 | F44: -45633 | G44: 0 | H44: -105120.24 | I44: -2350 | J44: -4520 | K44: -69555.5 | L44: -22615.51 | M44: 0 | N44: 0 | O44: -22890.15 | P44: -14777.41 | Q44: 0 | R44: 0 | S44: 0 | T44: -44412.68 | U44: 551714.67 | V44: 0 | W44: 266449.77 | X44: 34263.93 | Y44: 55211.48 | Z44: 0 | AA44: 30397.85 | AB44: 7513.44 | AC44: 7896.78 | AD44: 10306.26 | AE44: 1254.18 | AF44: 0 | AG44: 10599.23 | AH44: 1376.38 | AI44: 25532.25 | AJ44: 2547.93 | AK44: 12509.73 | AL44: 0 | AM44: 8402.38 | AN44: 38197.68 | AO44: 11265.09 | AP44: 0 | AQ44: 17441.68 | AR44: 2053.95 | AS44: 33136.64 | AT44: 54898.06 | AU44: 0 | AV44: 0 | AW44: 46570.8 | AX44: 91043.65 | AY44: 41801.6 | AZ44: 0 | BA44: 0 | BB44: 0 | BC44: 0 | BD44: 0 | BE44: 0 | BF44: 0 | BG44: 0 | BH44: 0 | BJ44: 938037.7 | BL44: 938037.7 | BM44: 0
A45: 5427 | B45: 11174 | C45: JCoSS | D45: -5876024.33 | E45: -1052933 | F45: -1248490.01 | G45: 0 | H45: -99984 | I45: -146436.16 | J45: 0 | K45: -25538.72 | L45: -1103.46 | M45: -51519.4 | N45: -10711.58 | O45: -736104.1 | P45: -980063.14 | Q45: 0 | R45: 0 | S45: 0 | T45: -8000 | U45: 4969705.01 | V45: 67837.09 | W45: 1658569.95 | X45: 136667.63 | Y45: 592071.06 | Z45: 0 | AA45: 84749.56 | AB45: 97689.79 | AC45: 75555.52 | AD45: 55519.3 | AE45: -2913.46 | AF45: 0 | AG45: 187421.91 | AH45: 22436.34 | AI45: 124257.98 | AJ45: 22829.17 | AK45: 133393.84 | AL45: 0 | AM45: 134656.98 | AN45: 477022.07 | AO45: 137594.64 | AP45: 136268.17 | AQ45: 35653.44 | AR45: 56413.25 | AS45: 0 | AT45: 26399.5 | AU45: 0 | AV45: 0 | AW45: 145613.62 | AX45: 354721.98 | AY45: 632172.73 | AZ45: 0 | BA45: 0 | BB45: 0 | BC45: 0 | BD45: 0 | BE45: 0 | BF45: 0 | BG45: 0 | BH45: 0 | BJ45: 7509600.3 | BL45: 7509600.3 | BM45: 0
A46: 2036 | B46: 10074 | C46: Livingstone | D46: -1629413.62 | E46: 0 | F46: -423423 | G46: 0 | H46: -183980 | I46: -2100 | J46: -3780 | K46: -54712.82 | L46: -20216.12 | M46: 0 | N46: 0 | O46: -18099.62 | P46: -5738.02 | Q46: 0 | R46: 0 | S46: 0 | T46: -36483 | U46: 856983.67 | V46: 12404.98 | W46: 626013.57 | X46: 70055.76 | Y46: 65484.27 | Z46: 0 | AA46: 49329.48 | AB46: 12048.12 | AC46: 6157.78 | AD46: 413 | AE46: 1359 | AF46: 0 | AG46: 46179.01 | AH46: 21904.93 | AI46: 7472.37 | AJ46: 3221.88 | AK46: 18799.26 | AL46: 13791.82 | AM46: 20969.09 | AN46: 70554.24 | AO46: 13215.45 | AP46: 0 | AQ46: 19975.29 | AR46: 9218.84 | AS46: 11013.01 | AT46: 83652.68 | AU46: 0 | AV46: 0 | AW46: 70126.91 | AX46: 149188.06 | AY46: 45059.16 | AZ46: 0 | BA46: 14066.66 | BB46: -7152 | BC46: 0 | BD46: -14066.66 | BE46: 0 | BF46: 21250.66 | BG46: 0 | BH46: 0 | BJ46: 1680271.73 | BL46: 1680271.73 | BM46: 0
A47: 2037 | B47: 10075 | C47: Manorside | D47: -1181014 | E47: 0 | F47: -76272 | G47: 0 | H47: -91080 | I47: -12998.59 | J47: -48642.9 | K47: -77235.12 | L47: -22777.03 | M47: -5994.65 | N47: -14959.73 | O47: -23528.95 | P47: -7114.13 | Q47: 0 | R47: 0 | S47: 0 | T47: -81284.32 | U47: 829824.53 | V47: 1059.32 | W47: 403368.72 | X47: 40313.45 | Y47: 83461.95 | Z47: 1523.39 | AA47: 69195.35 | AB47: 12972.12 | AC47: 3478 | AD47: 25925.77 | AE47: 2924 | AF47: 0 | AG47: 12210.26 | AH47: 166.96 | AI47: 28251.87 | AJ47: 3356.03 | AK47: 28643.17 | AL47: 15282.75 | AM47: 8802.57 | AN47: 50755.29 | AO47: 19007.55 | AP47: 0 | AQ47: 10998.7 | AR47: 0 | AS47: 10410.41 | AT47: 80115.4 | AU47: 0 | AV47: -308706 | AW47: 76482.45 | AX47: 52760.84 | AY47: 50441.58 | AZ47: 0 | BA47: 0 | BB47: -7384 | BC47: 0 | BD47: 0 | BE47: 0 | BF47: 0 | BG47: 0 | BH47: 0 | BJ47: 1428746.71 | BL47: 1428746.71 | BM47: 0
A48: 7010 | B48: 10159 | C48: Mapledown | D48: -508575 | E48: -284514 | F48: -1634953.65 | G48: 0 | H48: -24440 | I48: -7820 | J48: -21703.6 | K48: -12086.2 | L48: -11750.18 | M48: -11902.4 | N48: -15476.33 | O48: 0 | P48: -350 | Q48: 0 | R48: 0 | S48: 0 | T48: 0 | U48: 1058672.26 | V48: 0 | W48: 1003536.35 | X48: 57246.97 | Y48: 52948.75 | Z48: 0 | AA48: 89325.66 | AB48: 20039.29 | AC48: 13279.86 | AD48: 26234.29 | AE48: 342 | AF48: 0 | AG48: 37532.07 | AH48: 2918.71 | AI48: 2597.03 | AJ48: 6604.01 | AK48: 24628.99 | AL48: 0 | AM48: 11833.02 | AN48: 52141.51 | AO48: 14196.81 | AP48: 1065.91 | AQ48: 7258.82 | AR48: 8844.74 | AS48: 0 | AT48: 19184.44 | AU48: 0 | AV48: 0 | AW48: 16427.8 | AX48: 14008.24 | AY48: 33431.38 | AZ48: 0 | BA48: 0 | BB48: -6463.75 | BC48: 0 | BD48: 0 | BE48: 0 | BF48: 0 | BG48: 0 | BH48: 0 | BJ48: 2261729.99 | BL48: 2261729.99 | BM48: 0
A49: 3523 | B49: 11093 | C49: Martin Primary School | D49: -2671768 | E49: 0 | F49: -163672 | G49: 0 | H49: -190567.98 | I49: -2282 | J49: -23688.28 | K49: -100365.18 | L49: -62594.36 | M49: -21625 | N49: -7411.2 | O49: -67599.11 | P49: -26684.14 | Q49: 0 | R49: 0 | S49: 0 | T49: -102796.78 | U49: 1393209.41 | V49: 0 | W49: 816006.44 | X49: 135593.68 | Y49: 189552.83 | Z49: 0 | AA49: 106128.88 | AB49: 38515.16 | AC49: 13634.85 | AD49: 26235.61 | AE49: 5576 | AF49: 0 | AG49: 29183.52 | AH49: 899.52 | AI49: 7020.57 | AJ49: 4592.41 | AK49: 34043.8 | AL49: 49224.53 | AM49: 11610.44 | AN49: 138831.06 | AO49: 18862.72 | AP49: 0 | AQ49: 13686.6 | AR49: 9991.67 | AS49: 1550.4 | AT49: 167020.96 | AU49: 0 | AV49: 0 | AW49: 18825 | AX49: 126590.38 | AY49: 40900.54 | AZ49: 0 | BA49: 0 | BB49: -10576.56 | BC49: 0 | BD49: 0 | BE49: 0 | BF49: 6362.18 | BG49: 0 | BH49: 0 | BJ49: 2640491.24 | BL49: 2640491.24 | BM49: 0
A50: 5948 | B50: 10125 | C50: Mathilda Marks Kennedy | D50: -878231 | E50: 0 | F50: -68876 | G50: 0 | H50: -17740 | I50: -47802.36 | J50: -6729.88 | K50: -50948.88 | L50: -17190.46 | M50: -16005.46 | N50: -2525.01 | O50: -28098.93 | P50: -217482.4 | Q50: 0 | R50: 0 | S50: 0 | T50: -47910.92 | U50: 629010.36 | V50: 4649.15 | W50: 338458.43 | X50: 42047.73 | Y50: 66649.29 | Z50: 0 | AA50: 7005.89 | AB50: 1180.36 | AC50: 3838 | AD50: 4015.2 | AE50: 6188.62 | AF50: 0 | AG50: 15509.52 | AH50: 1502.75 | AI50: 17580.48 | AJ50: 5226.52 | AK50: 14818.93 | AL50: 0 | AM50: 56222.33 | AN50: 34435.41 | AO50: 13927.76 | AP50: 0 | AQ50: 7006.23 | AR50: 11217.85 | AS50: 11508.51 | AT50: 51722.64 | AU50: 0 | AV50: 0 | AW50: 13640 | AX50: 12503.7 | AY50: 21853.57 | AZ50: 0 | BA50: 0 | BB50: 0 | BC50: 0 | BD50: 0 | BE50: 0 | BF50: 0 | BG50: 0 | BH50: 0 | BJ50: 1087820.85 | BL50: 1087820.85 | BM50: 0
A51: 5949 | B51: 10126 | C51: Menorah Foundation | D51: -1396338 | E51: 0 | F51: -57907.99 | G51: 0 | H51: -31520 | I51: -52842.4 | J51: 0.13 | K51: -3864.59 | L51: -10363.64 | M51: -14705 | N51: -993.6 | O51: -21717.15 | P51: -148992.95 | Q51: 0 | R51: 0 | S51: -43844.42 | T51: -36617.81 | U51: 729260.45 | V51: 16958.7 | W51: 324639.07 | X51: 51073.29 | Y51: 126698.69 | Z51: 0.17 | AA51: 27334.9 | AB51: 34327.46 | AC51: 11646.47 | AD51: 12345.33 | AE51: 96.19 | AF51: 0 | AG51: 20097.93 | AH51: 1127.07 | AI51: 33675.55 | AJ51: 2548.33 | AK51: 26496.85 | AL51: 0 | AM51: 10028.16 | AN51: 58410.37 | AO51: 12526.61 | AP51: 0 | AQ51: 11370.39 | AR51: 14270.74 | AS51: 3965.35 | AT51: 72707.18 | AU51: 0 | AV51: 0 | AW51: 101480.58 | AX51: 7912.84 | AY51: 67541.9 | AZ51: 0 | BA51: 0 | BB51: 0 | BC51: 0 | BD51: 0 | BE51: 0 | BF51: 0 | BG51: 0 | BH51: 0 | BJ51: 1275965.27 | BL51: 1275965.27 | BM51: 0
A52: 4004 | B52: 11513 | C52: Menorah High | D52: -1128437 | E52: -157605 | F52: -12723 | G52: 0 | H52: 0 | I52: -64632.28 | J52: -30122.2 | K52: 0 | L52: 0 | M52: -17460.78 | N52: 0 | O52: -30 | P52: -343026.79 | Q52: 0 | R52: 0 | S52: 0 | T52: 0 | U52: 1111159.22 | V52: 1977.28 | W52: 90992.36 | X52: 33570.4 | Y52: 148038.99 | Z52: 0 | AA52: 0 | AB52: 4603.28 | AC52: 4206.67 | AD52: 8055.54 | AE52: 7000.3 | AF52: 0 | AG52: 23834.02 | AH52: 0 | AI52: 27359 | AJ52: 0 | AK52: 12170.62 | AL52: 8789 | AM52: 68931.19 | AN52: 39556.35 | AO52: 42598.57 | AP52: 0.3 | AQ52: 38567.46 | AR52: 0 | AS52: 0 | AT52: 440 | AU52: 0 | AV52: 0 | AW52: 0 | AX52: 1630 | AY52: 50501.06 | AZ52: 0 | BA52: 0 | BB52: 0 | BC52: 0 | BD52: 0 | BE52: 0 | BF52: 0 | BG52: 0 | BH52: 0 | BJ52: 1385738.25 | BL52: 1385738.25 | BM52: 0
A53: 3513 | B53: 10114 | C53: Menorah Primary | D53: -1576804.01 | E53: 0 | F53: -141321 | G53: 0 | H53: -34320 | I53: -38537.68 | J53: 0 | K53: -10663.43 | L53: -33735.19 | M53: -10166.03 | N53: -551.07 | O53: -13021.03 | P53: -72039.43 | Q53: 0 | R53: 0 | S53: 0 | T53: -68761.75 | U53: 1185492.98 | V53: 2937.38 | W53: 177163.19 | X53: 35979 | Y53: 114514.92 | Z53: 11524.21 | AA53: 16917.87 | AB53: 4648.08 | AC53: 2116.32 | AD53: 12707.96 | AE53: 0 | AF53: 0 | AG53: 18119.19 | AH53: 96 | AI53: 78756.21 | AJ53: 5857.77 | AK53: 30655.69 | AL53: 0 | AM53: 18137.58 | AN53: 62257.49 | AO53: 12041.46 | AP53: 0 | AQ53: 7866.43 | AR53: 0 | AS53: 2768.91 | AT53: 84280.82 | AU53: 0 | AV53: 0 | AW53: 0 | AX53: 60625.49 | AY53: 30827.24 | AZ53: 0 | BA53: 0 | BB53: 0 | BC53: -2925.98 | BD53: 0 | BE53: 0 | BF53: 0 | BG53: 0 | BH53: 2925.58 | BJ53: 1544529.55 | BL53: 1544529.55 | BM53: 0
A54: 3305 | B54: 10078 | C54: Monken Hadley CE | D54: -630820 | E54: 0 | F54: -25987 | G54: 0 | H54: -11140 | I54: 0 | J54: -1600 | K54: -28840.96 | L54: -24059.44 | M54: 0 | N54: 0 | O54: -25007.15 | P54: -6767.51 | Q54: 0 | R54: 0 | S54: 0 | T54: -31251.25 | U54: 325172.36 | V54: 22841.16 | W54: 75742.56 | X54: 30577.4 | Y54: 26499.24 | Z54: 0 | AA54: 22705.7 | AB54: 1307.36 | AC54: 1208.68 | AD54: 5479.38 | AE54: 657 | AF54: 0 | AG54: 8737.53 | AH54: 25.46 | AI54: 570.89 | AJ54: 917.61 | AK54: 13375.33 | AL54: 0 | AM54: 4134.12 | AN54: 32041.59 | AO54: 3764.52 | AP54: 0 | AQ54: 9266.45 | AR54: 1805.87 | AS54: 7601.53 | AT54: 36698.45 | AU54: 0 | AV54: 0 | AW54: 7689 | AX54: 25175.95 | AY54: 21215.7 | AZ54: 0 | BA54: 0 | BB54: 0 | BC54: 0 | BD54: 0 | BE54: 0 | BF54: 0 | BG54: 0 | BH54: 0 | BJ54: 503538.42 | BL54: 503538.42 | BM54: 0
A55: 2042 | B55: 10079 | C55: Monkfrith | D55: -1259498 | E55: 0 | F55: -124492.5 | G55: 0 | H55: -68480 | I55: -1785 | J55: -1353.6 | K55: -53808.7 | L55: -17469.61 | M55: -825 | N55: -5535.5 | O55: -26211.23 | P55: -5442.63 | Q55: 0 | R55: 0 | S55: 0 | T55: -65269.19 | U55: 675407.95 | V55: 0 | W55: 392134.91 | X55: 49021.83 | Y55: 93574.6 | Z55: 0 | AA55: 83921.97 | AB55: 1870.69 | AC55: 6.4 | AD55: 4251.88 | AE55: 1494 | AF55: 0 | AG55: 5230.31 | AH55: 3300.75 | AI55: 484.36 | AJ55: 3419.15 | AK55: 14108.37 | AL55: 15158.5 | AM55: 6864.34 | AN55: 50041.31 | AO55: 9032.81 | AP55: 0 | AQ55: 5544.08 | AR55: 6856.89 | AS55: 5023.77 | AT55: 68930.47 | AU55: 0 | AV55: 0 | AW55: 9017 | AX55: 56483.9 | AY55: 16988.45 | AZ55: 0 | BA55: 41440 | BB55: -7071.44 | BC55: 0 | BD55: -41440 | BE55: 0 | BF55: 43100 | BG55: 0 | BH55: 12190 | BJ55: 1294061.26 | BL55: 1294061.26 | BM55: 0
A56: 2044 | B56: 10081 | C56: Moss Hall Inf | D56: -1531420 | E56: 0 | F56: -99405 | G56: 0 | H56: -109740.37 | I56: -6800 | J56: -2562 | K56: -45339.01 | L56: 4268.77 | M56: -9169 | N56: -1812.45 | O56: -23574.67 | P56: -14525.05 | Q56: 0 | R56: 0 | S56: 0 | T56: -136665.46 | U56: 819953.8 | V56: 3748.15 | W56: 431327.64 | X56: 45735.64 | Y56: 123009.91 | Z56: 0 | AA56: 59494.73 | AB56: 22532.78 | AC56: 9496.33 | AD56: 7428.16 | AE56: 9930.7 | AF56: 0 | AG56: 71055.32 | AH56: 5300 | AI56: 40379.91 | AJ56: 4976.42 | AK56: 24233.36 | AL56: 13572.46 | AM56: 10559.14 | AN56: 68779.62 | AO56: 13380.93 | AP56: 0 | AQ56: 9820.82 | AR56: 8349.02 | AS56: 1279.78 | AT56: 119206.22 | AU56: 0 | AV56: 0 | AW56: 8807.55 | AX56: 53176.95 | AY56: 21637.44 | AZ56: 0 | BA56: 2856.88 | BB56: -8061.25 | BC56: 0 | BD56: -2856.88 | BE56: 0 | BF56: 0 | BG56: 0 | BH56: 10917.88 | BJ56: 1483269.87 | BL56: 1483269.87 | BM56: 0
A57: 2043 | B57: 10080 | C57: Moss Hall Jun | D57: -1680819 | E57: 0 | F57: -177990 | G57: 0 | H57: -117820 | I57: -1700 | J57: 0 | K57: -73305.01 | L57: -89252.54 | M57: -9860.77 | N57: -4651.16 | O57: -69654.01 | P57: -24728.57 | Q57: 0 | R57: 0 | S57: 0 | T57: -10006.42 | U57: 909402.21 | V57: 0 | W57: 376269.36 | X57: 53998.88 | Y57: 91061.03 | Z57: 0 | AA57: 41439.96 | AB57: 19481.15 | AC57: 10224.98 | AD57: 10075.35 | AE57: 6622.05 | AF57: 0 | AG57: 83254.03 | AH57: 9473.5 | AI57: 44750.58 | AJ57: 8882.35 | AK57: 34834.28 | AL57: 13572.45 | AM57: 9629.63 | AN57: 118765.16 | AO57: 20100.19 | AP57: 0 | AQ57: 18138.67 | AR57: 11629.33 | AS57: 0 | AT57: 81793.53 | AU57: 0 | AV57: 0 | AW57: 140517.02 | AX57: 101620.09 | AY57: 27191.9 | AZ57: 0 | BA57: 0 | BB57: -8331.25 | BC57: 0 | BD57: 0 | BE57: 0 | BF57: 0 | BG57: 0 | BH57: 0 | BJ57: 1472171.44 | BL57: 1472171.44 | BM57: 0
A58: 1002 | B58: 10132 | C58: Moss Hall Nursery | D58: -404761 | E58: 0 | F58: -11760 | G58: 0 | H58: 0 | I58: -3560 | J58: -2070 | K58: -284899.78 | L58: -15828.8 | M58: 0 | N58: 0 | O58: 0 | P58: -5276.98 | Q58: 0 | R58: 0 | S58: 0 | T58: 0 | U58: 233741.45 | V58: 317.74 | W58: 281553.18 | X58: 25053.57 | Y58: 33370.57 | Z58: 0 | AA58: 38689.84 | AB58: 4155.62 | AC58: 1082.32 | AD58: 1618 | AE58: 2348.43 | AF58: 0 | AG58: 5969.87 | AH58: 635.5 | AI58: 1138.68 | AJ58: 1193.05 | AK58: 4040.4 | AL58: 5687 | AM58: 2429.26 | AN58: 9765.39 | AO58: 4777.83 | AP58: 0 | AQ58: 3999.56 | AR58: 992.2 | AS58: 2472 | AT58: 16499.24 | AU58: 0 | AV58: 0 | AW58: 927 | AX58: 2690.22 | AY58: 15819 | AZ58: 0 | BA58: 0 | BB58: -5053 | BC58: 0 | BD58: 0 | BE58: 0 | BF58: 0 | BG58: 0 | BH58: 4921 | BJ58: 612726.35 | BL58: 612726.35 | BM58: 0
A59: 1102 | B59: 10185 | C59: Northgate | D59: -406306 | E59: 0 | F59: -53310 | G59: 0 | H59: -3740.25 | I59: -79228.59 | J59: -24781.5 | K59: -5440 | L59: 0 | M59: -8996 | N59: 0 | O59: -64.4 | P59: -1250.83 | Q59: 0 | R59: 0 | S59: 0 | T59: -11900 | U59: 310821.69 | V59: 0 | W59: 33809.38 | X59: 0 | Y59: 34106.81 | Z59: 0 | AA59: 0 | AB59: 12657.5 | AC59: 11941.32 | AD59: 3401.8 | AE59: 0 | AF59: 0 | AG59: 1190.14 | AH59: 320.55 | AI59: 36.52 | AJ59: 0 | AK59: 0 | AL59: 0 | AM59: 0 | AN59: 14943.13 | AO59: 7542.69 | AP59: 3650.15 | AQ59: 6815.67 | AR59: -963.09 | AS59: 8064 | AT59: 0 | AU59: 0 | AV59: 0 | AW59: 12765 | AX59: 35002.75 | AY59: 36230.14 | AZ59: 0 | BA59: 4611 | BB59: -4472.38 | BC59: 0 | BD59: -4611 | BE59: 0 | BF59: 0 | BG59: 0 | BH59: 4600 | BJ59: 378737.88 | BK59: 12100 | BL59: 390837.88 | BM59: 0
A60: 2045 | B60: 10082 | C60: Northside | D60: -1296171 | E60: 0 | F60: -19902 | G60: 0 | H60: -90641 | I60: -12241 | J60: -2445 | K60: -49219.53 | L60: -26129.4 | M60: -8061.8 | N60: -2491.58 | O60: -11668.4 | P60: -341.25 | Q60: 0 | R60: 0 | S60: 0 | T60: -43216.51 | U60: 714457.04 | V60: 0.12 | W60: 327946.27 | X60: 19571.71 | Y60: 45484.67 | Z60: 0 | AA60: 46421.99 | AB60: 2543.12 | AC60: 15304.44 | AD60: 14052.6 | AE60: 0 | AF60: 0 | AG60: 20098.27 | AH60: 2853.81 | AI60: 18463.48 | AJ60: 2293.21 | AK60: 21332.57 | AL60: 16649.5 | AM60: 6792.32 | AN60: 71454.01 | AO60: 29478.11 | AP60: 0 | AQ60: 5912.41 | AR60: 9188.14 | AS60: 18896.26 | AT60: 48581.02 | AU60: 0 | AV60: 0 | AW60: 19076 | AX60: 48505.13 | AY60: 36788.56 | AZ60: 0 | BA60: 42559 | BB60: -7021.31 | BC60: -53530 | BD60: -42559 | BE60: 0 | BF60: 108743.35 | BG60: 0 | BH60: 0 | BJ60: 1153881.8 | BL60: 1153881.8 | BM60: 0
A61: 7005 | B61: 10157 | C61: Northway | D61: -1000000 | E61: 0 | F61: -1227258.89 | G61: 0 | H61: -63360 | I61: -7999.2 | J61: -4470 | K61: -30659.5 | L61: -8911.57 | M61: -5017 | N61: -19525.8 | O61: -124.1 | P61: -518.27 | Q61: 0 | R61: 0 | S61: 0 | T61: -17126.42 | U61: 845015.31 | V61: 0 | W61: 757215.57 | X61: 37342.06 | Y61: 56929.68 | Z61: 0 | AA61: 5823.39 | AB61: 15597.87 | AC61: 19209.2 | AD61: 19080.61 | AE61: -645.79 | AF61: 0 | AG61: 61196.59 | AH61: 2984.67 | AI61: 19849.39 | AJ61: 1714.71 | AK61: 46022.53 | AL61: 0 | AM61: 6941.82 | AN61: 30749.43 | AO61: 9135.41 | AP61: 0 | AQ61: 8230.2 | AR61: 14043.18 | AS61: 36 | AT61: 31843.43 | AU61: 0 | AV61: 0 | AW61: 12232.09 | AX61: 260990.44 | AY61: 41246.75 | AZ61: 0 | BA61: 7393 | BB61: -7172.5 | BC61: 0 | BD61: -7393 | BE61: 0 | BF61: 0 | BG61: 13775.58 | BH61: 0 | BJ61: 1702326.01 | BL61: 1702326.01 | BM61: 0
A62: 7000 | B62: 10156 | C62: Oak Lodge | D62: -830000 | E62: -446197 | F62: -1381986.84 | G62: 0 | H62: -41172.5 | I62: -44210 | J62: -240277.53 | K62: -37695.44 | L62: -15146.65 | M62: 0 | N62: 0 | O62: -6418.69 | P62: -5945.66 | Q62: 0 | R62: 0 | S62: 0 | T62: 0 | U62: 1446898.45 | V62: 0 | W62: 590274.31 | X62: 61613.81 | Y62: 153523.23 | Z62: 6228.55 | AA62: 67591.46 | AB62: 19217.32 | AC62: 25286.44 | AD62: 0 | AE62: 491.91 | AF62: 0 | AG62: 18454.2 | AH62: 4529.41 | AI62: 19249.56 | AJ62: 2089.12 | AK62: 13655.73 | AL62: 0 | AM62: 6590.89 | AN62: 100015.1 | AO62: 12914.31 | AP62: 4352.63 | AQ62: 13018.23 | AR62: 5595.66 | AS62: 14267.82 | AT62: 29443.14 | AU62: 0 | AV62: 0 | AW62: -382 | AX62: 364276.4 | AY62: 51348.37 | AZ62: 0 | BA62: 0 | BB62: -6974.06 | BC62: -9516.67 | BD62: 0 | BE62: 0 | BF62: 17077.42 | BG62: 0 | BH62: 0 | BJ62: 2326129.81 | BL62: 2326129.81 | BM62: 0
A63: 7009 | B63: 10158 | C63: Oakleigh | D63: -1405457 | E63: 0 | F63: -1642374.13 | G63: 0 | H63: -50740 | I63: -193537 | J63: -200 | K63: -97487.58 | L63: -4993.13 | M63: -2973.33 | N63: -13245.65 | O63: -3990.04 | P63: -22290.81 | Q63: -24905.5 | R63: 0 | S63: 0 | T63: -14890.58 | U63: 1142978.71 | V63: 3499.68 | W63: 1143009.8 | X63: 37579.12 | Y63: 69318.14 | Z63: 0 | AA63: 67287.01 | AB63: 30289.51 | AC63: 19636.74 | AD63: 8610.08 | AE63: 16448.35 | AF63: 0 | AG63: 55450.74 | AH63: 13872.2 | AI63: 30723.4 | AJ63: 7188.39 | AK63: 25277.85 | AL63: 0 | AM63: 22415.83 | AN63: 96211.61 | AO63: 22857.42 | AP63: 0 | AQ63: 24625.56 | AR63: 3653.83 | AS63: 42742.04 | AT63: 22479.43 | AU63: 0 | AV63: 0 | AW63: 10170 | AX63: 462811.47 | AY63: 49009.8 | AZ63: 0 | BA63: 0 | BB63: -7304.13 | BC63: 0 | BD63: 0 | BE63: 0 | BF63: 0 | BG63: 0 | BH63: 7226 | BJ63: 2463672.46 | BL63: 2463672.46 | BM63: 0
A64: 2077 | B64: 10127 | C64: Orion | D64: -4275474 | E64: 0 | F64: -465921 | G64: 0 | H64: -570339 | I64: -2500 | J64: -2192.42 | K64: -82864.74 | L64: -47100.85 | M64: -8808 | N64: -6527 | O64: -20884.49 | P64: -29202.75 | Q64: 0 | R64: 0 | S64: 0 | T64: -112062.69 | U64: 2087014.97 | V64: 0 | W64: 1243932.48 | X64: 176516.22 | Y64: 227416.55 | Z64: 0 | AA64: 178544.18 | AB64: 17492.63 | AC64: 16145.92 | AD64: 31434.68 | AE64: 4059 | AF64: 0 | AG64: 66617.54 | AH64: 16822.84 | AI64: 9247.72 | AJ64: 6645.85 | AK64: 51876.59 | AL64: 7502 | AM64: 37117.47 | AN64: 269294.6 | AO64: 43879.03 | AP64: 0 | AQ64: 88136.4 | AR64: 22155.76 | AS64: 55459.66 | AT64: 176016.21 | AU64: 0 | AV64: 1020.9 | AW64: 285083.72 | AX64: 464467.31 | AY64: 62634.99 | AZ64: 0 | BA64: 0 | BB64: -12091.25 | BC64: 0 | BD64: 0 | BE64: 0 | BF64: 0 | BG64: 0 | BH64: 5819.5 | BJ64: 3913424.4 | BL64: 3913424.4 | BM64: 0
A65: 5201 | B65: 10084 | C65: Osidge JMI | D65: -1726499.19 | E65: 0 | F65: -69417.93 | G65: 0 | H65: -98360 | I65: -2500 | J65: 0 | K65: -101032.13 | L65: -49470.01 | M65: -12456 | N65: -6117.9 | O65: -54710.25 | P65: -14788.26 | Q65: 0 | R65: 0 | S65: 0 | T65: -74148.83 | U65: 842034.58 | V65: 7804.48 | W65: 299983.28 | X65: 76829.54 | Y65: 150703.1 | Z65: 89113.35 | AA65: 104676.65 | AB65: 13302.56 | AC65: 3984.58 | AD65: 7956.85 | AE65: 13389.85 | AF65: 0 | AG65: 79135.14 | AH65: 13986.5 | AI65: 4006.82 | AJ65: 6993.42 | AK65: 22910.63 | AL65: 0 | AM65: 10850.19 | AN65: 118161.19 | AO65: 10771.05 | AP65: 0 | AQ65: 12212.4 | AR65: 9739.49 | AS65: 13239.9 | AT65: 49281.83 | AU65: 0 | AV65: 0 | AW65: 102339.1 | AX65: 104672.72 | AY65: 34073.12 | AZ65: 0 | BA65: 0 | BB65: -8943.25 | BC65: -1857 | BD65: 0 | BE65: 0 | BF65: 0 | BG65: 0 | BH65: 10800 | BJ65: 1571144.98 | BL65: 1571144.98 | BM65: 0
A66: 3501 | B66: 10085 | C66: Our Lady of Lourdes | D66: -1022657 | E66: 0 | F66: -27686 | G66: 0 | H66: -69960 | I66: 0 | J66: -2291.84 | K66: -35772.55 | L66: -29984.18 | M66: -13372.76 | N66: -2401.1 | O66: -19633.13 | P66: -28576.77 | Q66: 0 | R66: 0 | S66: 0 | T66: -36744.92 | U66: 520517.7 | V66: 0 | W66: 217729.03 | X66: 52752.13 | Y66: 58455.94 | Z66: 0 | AA66: 22881.25 | AB66: 9099.35 | AC66: 5156.66 | AD66: 9087.15 | AE66: 1071 | AF66: 0 | AG66: 19728.44 | AH66: 0 | AI66: 3475.11 | AJ66: 5991.98 | AK66: 21723.19 | AL66: 2682.98 | AM66: 11873.79 | AN66: 43092.82 | AO66: 12714.06 | AP66: 0 | AQ66: 14230.59 | AR66: 6835.3 | AS66: 8400.7 | AT66: 66259.56 | AU66: 0 | AV66: 0 | AW66: 82482.25 | AX66: 77934.8 | AY66: 26074.82 | AZ66: 0 | BA66: 0 | BB66: 0 | BC66: 0 | BD66: 0 | BE66: 0 | BF66: 0 | BG66: 0 | BH66: 0 | BJ66: 872336.05 | BL66: 872336.05 | BM66: 0
A67: 2078 | B67: 10129 | C67: Pardes House | D67: -1098382.09 | E67: 0 | F67: -35913.45 | G67: 0 | H67: -43560 | I67: -56621.89 | J67: -431.76 | K67: -19074.85 | L67: -18490.03 | M67: 0 | N67: -5874.19 | O67: -13981.5 | P67: -203951.04 | Q67: 0 | R67: 0 | S67: 0 | T67: -57705.25 | U67: 635135.82 | V67: 0 | W67: 247544.02 | X67: 22038.47 | Y67: 104260.67 | Z67: 0 | AA67: 23799.07 | AB67: 6946.78 | AC67: 1491.14 | AD67: 9085.86 | AE67: 0 | AF67: 0 | AG67: 15570.51 | AH67: 0 | AI67: 28705.86 | AJ67: 4965.55 | AK67: 17066.43 | AL67: 0 | AM67: 72519.31 | AN67: 61062.37 | AO67: 7605.5 | AP67: 0 | AQ67: 9200.64 | AR67: 0 | AS67: 13125 | AT67: 49242.34 | AU67: 0 | AV67: 0 | AW67: 59694.92 | AX67: 41758.8 | AY67: 20027.53 | AZ67: 0 | BA67: 0 | BB67: 0 | BC67: 0 | BD67: 0 | BE67: 0 | BF67: 0 | BG67: 0 | BH67: 0 | BJ67: 1032778.05 | BL67: 1032778.05 | BM67: 0
A68: 1100 | B68: 10188 | C68: Pavilion | D68: -1443453.08 | E68: 0 | F68: -754802 | G68: 0 | H68: -69514.31 | I68: -2645.36 | J68: -6800 | K68: -76086.93 | L68: -718.28 | M68: -13981.48 | N68: -4050 | O68: -957.5 | P68: -19570.63 | Q68: 0 | R68: 0 | S68: 0 | T68: -2202.06 | U68: 1488469.16 | V68: 95621.49 | W68: 315770.92 | X68: 31878.2 | Y68: 50530.2 | Z68: 0 | AA68: 0 | AB68: 18456.04 | AC68: 12305.52 | AD68: 16836.07 | AE68: -1229 | AF68: 0 | AG68: 15142.58 | AH68: 3465.39 | AI68: 17335.47 | AJ68: 2617.61 | AK68: 20409.26 | AL68: 0 | AM68: 8168.09 | AN68: 71128.72 | AO68: 28605.95 | AP68: 13311.09 | AQ68: 39540.09 | AR68: -255.48 | AS68: 10075.58 | AT68: 26304.3 | AU68: 0 | AV68: 0 | AW68: 133199.58 | AX68: 130268.44 | AY68: 30194.95 | AZ68: 0 | BA68: 18400 | BB68: -6461.8 | BC68: 0 | BD68: -18400 | BE68: 0 | BF68: 0 | BG68: 0 | BH68: 23282.55 | BJ68: =SUM(U68:AA68) -> 1982269.97 | BL68: =SUM(BJ68:BK68) -> 1982269.97 | BM68: 0
A69: 2071 | B69: 10119 | C69: Queenswell Inf | D69: -1360634.03 | E69: 0 | F69: -41723 | G69: 0 | H69: -110160 | I69: -3100 | J69: 0 | K69: -43234.27 | L69: -5865.52 | M69: -6920 | N69: -2496.96 | O69: -9416.8 | P69: -5423.31 | Q69: 0 | R69: 0 | S69: 0 | T69: -81360.83 | U69: 615337.41 | V69: 0 | W69: 513430.57 | X69: 25168.94 | Y69: 89383.66 | Z69: 0 | AA69: 12539.3 | AB69: 2939.87 | AC69: 11948.44 | AD69: 5001.32 | AE69: 10980.5 | AF69: 0 | AG69: 15118.33 | AH69: 4167.28 | AI69: 37317.65 | AJ69: 4236.8 | AK69: 22765.13 | AL69: 13185.38 | AM69: 3467.42 | AN69: 22748.17 | AO69: 13551.33 | AP69: 0 | AQ69: 13458.15 | AR69: 5247.38 | AS69: 4015.07 | AT69: 84248.31 | AU69: 0 | AV69: 0 | AW69: 91812 | AX69: 110105.28 | AY69: 11960.1 | AZ69: 0 | BA69: 0 | BB69: -13691.63 | BC69: -27004 | BD69: 0 | BE69: 0 | BF69: 33004.63 | BG69: 0 | BH69: 0 | BJ69: 1255859.88 | BL69: 1255859.88 | BM69: 0
A70: 2072 | B70: 10086 | C70: Queenswell Jun | D70: -1519197.08 | E70: 0 | F70: -116718 | G70: 0 | H70: -219801 | I70: -5000 | J70: -700 | K70: -1219.49 | L70: -47181.21 | M70: -5530.8 | N70: -1867.32 | O70: -37852.27 | P70: -7161.66 | Q70: 0 | R70: 0 | S70: 0 | T70: -9683 | U70: 931893.86 | V70: 2390.08 | W70: 546908.64 | X70: 25926.6 | Y70: 54317.52 | Z70: 0 | AA70: 21904.27 | AB70: 3437.7 | AC70: 2799.17 | AD70: 5506.36 | AE70: 7519.83 | AF70: 0 | AG70: 31626.86 | AH70: 5722.22 | AI70: 20872.66 | AJ70: 5394.28 | AK70: 17527.94 | AL70: 10285 | AM70: 6531.14 | AN70: 74623.21 | AO70: 16538.58 | AP70: 0 | AQ70: 10647.94 | AR70: 6137.34 | AS70: 21.98 | AT70: 66635.62 | AU70: 0 | AV70: 0 | AW70: 7670 | AX70: 61398.68 | AY70: 34281.35 | AZ70: 0 | BA70: 0 | BB70: -7735.03 | BC70: 0 | BD70: 0 | BE70: 0 | BF70: 0 | BG70: 0 | BH70: 5861.75 | BJ70: 1583340.97 | BL70: 1583340.97 | BM70: 0
A71: 3512 | B71: 10112 | C71: Rosh Pinah | D71: -1606997 | E71: 0 | F71: -95504.5 | G71: 0 | H71: -23020.11 | I71: 0 | J71: 0 | K71: -200424.43 | L71: -156557.33 | M71: -5000 | N71: -10099.2 | O71: -39816.29 | P71: -379951.43 | Q71: 0 | R71: 0 | S71: 0 | T71: -82000.96 | U71: 1061189.82 | V71: 17950.48 | W71: 471330.8 | X71: 58005.66 | Y71: 162480.6 | Z71: 0 | AA71: 21742.03 | AB71: 44418.77 | AC71: 6034.37 | AD71: 16739.98 | AE71: 3064.5 | AF71: 0 | AG71: 20452.07 | AH71: 703.99 | AI71: 41739.58 | AJ71: 5021.07 | AK71: 28900.58 | AL71: 0 | AM71: 11389.36 | AN71: 91135.5 | AO71: 24692.03 | AP71: 0 | AQ71: 13621.82 | AR71: 17969.19 | AS71: 11409.43 | AT71: 189863.68 | AU71: 0 | AV71: 0 | AW71: 15337.48 | AX71: 183365.98 | AY71: 39845.7 | AZ71: 0 | BA71: 0 | BB71: 0 | BC71: 0 | BD71: 0 | BE71: 0 | BF71: 0 | BG71: 0 | BH71: 0 | BJ71: 1792699.39 | BK71: 29819.77 | BL71: 1822519.16 | BM71: 0
A72: 2041 | B72: 11381 | C72: Sacks Morasha | D72: -809980 | E72: 0 | F72: 0 | G72: 0 | H72: -6600 | I72: 0 | J72: 0 | K72: -1005.15 | L72: -36374.41 | M72: 0 | N72: -12548 | O72: -25064.9 | P72: -176979.59 | Q72: 0 | R72: 0 | S72: 0 | T72: -47231.92 | U72: 514874.25 | V72: 0 | W72: 183731.16 | X72: 0 | Y72: 10158.13 | Z72: 0 | AA72: 9328.27 | AB72: 14048.44 | AC72: 5938.27 | AD72: 10230.78 | AE72: 0 | AF72: 0 | AG72: 9770.33 | AH72: 0 | AI72: 13368.79 | AJ72: 3182.4 | AK72: 10654.91 | AL72: 0 | AM72: 2466.57 | AN72: 127255.55 | AO72: 22375.46 | AP72: 0 | AQ72: 12196.42 | AR72: 8936.9 | AS72: 27330.08 | AT72: 60216.02 | AU72: 0 | AV72: 0 | AW72: 14301.6 | AX72: 41295.98 | AY72: 23572.07 | AZ72: 0 | BA72: 5917.75 | BB72: 0 | BC72: -6446.25 | BD72: -5917.75 | BE72: 0 | BF72: 0 | BG72: 0 | BH72: 12364 | BJ72: 718091.81 | BL72: 718091.81 | BM72: 0
A73: 3510 | B73: 10110 | C73: Sacred Heart | D73: -1594348 | E73: 0 | F73: -40781 | G73: 0 | H73: -54120 | I73: -14186.6 | J73: -3869 | K73: -52195.41 | L73: -67184.24 | M73: -15843 | N73: -2176 | O73: -63481.63 | P73: -7862.27 | Q73: 0 | R73: 0 | S73: 0 | T73: -77219.17 | U73: 928176.14 | V73: 38073 | W73: 313391 | X73: 33049.59 | Y73: 77196.41 | Z73: 0 | AA73: 5166.97 | AB73: 14689.2 | AC73: 8510.13 | AD73: 24655.95 | AE73: 0 | AF73: 0 | AG73: 17558.57 | AH73: 2859.92 | AI73: 30254.72 | AJ73: 4959.66 | AK73: 21088.78 | AL73: 0 | AM73: 8119.6 | AN73: 88218.94 | AO73: 9211.62 | AP73: 0 | AQ73: 12650.7 | AR73: 13823.59 | AS73: 6738.59 | AT73: 143616.63 | AU73: 0 | AV73: 0 | AW73: 60322 | AX73: 86339.6 | AY73: 34747.25 | AZ73: 0 | BA73: 8963 | BB73: 0 | BC73: 0 | BD73: -8963 | BE73: 0 | BF73: 0 | BG73: 0 | BH73: 8963 | BJ73: 1395053.11 | BL73: 1395053.11 | BM73: 0
A74: 3502 | B74: 10087 | C74: St Agnes RC | D74: -1480592 | E74: 0 | F74: -42542.33 | G74: 0 | H74: -96780 | I74: 0 | J74: -3687.35 | K74: -54274.1 | L74: -43181.43 | M74: -8972.33 | N74: -140.4 | O74: -33345.7 | P74: -6506.43 | Q74: 0 | R74: 0 | S74: 0 | T74: -42759.17 | U74: 773245.43 | V74: 6329.49 | W74: 348428.11 | X74: 50997.66 | Y74: 54796.36 | Z74: 0 | AA74: 26664.69 | AB74: 11895.45 | AC74: 6798.02 | AD74: 13298.56 | AE74: 1615.5 | AF74: 0 | AG74: 24866.31 | AH74: 7333.67 | AI74: 2111.58 | AJ74: 5962.15 | AK74: 17851.67 | AL74: 0 | AM74: 8422.75 | AN74: 72964.46 | AO74: 19991.66 | AP74: 0 | AQ74: 23878.07 | AR74: 9696.94 | AS74: 69621 | AT74: 90838.5 | AU74: 0 | AV74: 0 | AW74: 22470 | AX74: 70280.76 | AY74: 37762.15 | AZ74: 0 | BA74: 0 | BB74: 0 | BC74: 0 | BD74: 0 | BE74: 0 | BF74: 0 | BG74: 0 | BH74: 0 | BJ74: 1260461.74 | BL74: 1260461.74 | BM74: 0
A75: 3315 | B75: 10099 | C75: St Andrews CE | D75: -843270 | E75: 0 | F75: -25379 | G75: 0 | H75: -30360 | I75: -1300 | J75: 0 | K75: -47628.56 | L75: -37911.07 | M75: 0 | N75: 0 | O75: -39065.61 | P75: -10184.95 | Q75: 0 | R75: 0 | S75: 0 | T75: -40369.83 | U75: 466987.38 | V75: 0 | W75: 188156.58 | X75: 25999.1 | Y75: 56506.74 | Z75: 0 | AA75: 28487.48 | AB75: 1585.26 | AC75: 3817.36 | AD75: 3795.64 | AE75: 2964.87 | AF75: 0 | AG75: 30468.33 | AH75: 0 | AI75: 9863.6 | AJ75: 3561.81 | AK75: 17464.35 | AL75: 0 | AM75: 8390.32 | AN75: 57040.61 | AO75: 12050.1 | AP75: 0 | AQ75: 5777.93 | AR75: 0 | AS75: 5479.7 | AT75: 69413.05 | AU75: 0 | AV75: 0 | AW75: 32339.73 | AX75: 17268.77 | AY75: 27831.54 | AZ75: 0 | BA75: 0 | BB75: 0 | BC75: 0 | BD75: 0 | BE75: 0 | BF75: 0 | BG75: 0 | BH75: 0 | BJ75: 766137.28 | BL75: 766137.28 | BM75: 0
A76: 3504 | B76: 10088 | C76: St Catherines RC | D76: -1849303 | E76: 0 | F76: -129399 | G76: 0 | H76: -95920 | I76: -22864.25 | J76: -1642 | K76: -150464.56 | L76: -60785.12 | M76: -15000 | N76: -9398 | O76: -60445.32 | P76: -10 | Q76: 0 | R76: 0 | S76: 0 | T76: -73289.83 | U76: 1072038.08 | V76: 0 | W76: 476185.46 | X76: 33860.99 | Y76: 105463.18 | Z76: 0 | AA76: 64557.41 | AB76: 11576.94 | AC76: 12277.21 | AD76: 14606.45 | AE76: 2187 | AF76: 0 | AG76: 34022.07 | AH76: 15628.48 | AI76: 36349.53 | AJ76: 1861.24 | AK76: 14419.99 | AL76: 0 | AM76: 13063.35 | AN76: 115713.98 | AO76: 20287.57 | AP76: 0 | AQ76: 13229.16 | AR76: 13285.47 | AS76: 37735.48 | AT76: 129712.8 | AU76: 0 | AV76: 0 | AW76: 49229.06 | AX76: 50093.05 | AY76: 58296.42 | AZ76: 0 | BA76: 0 | BB76: 0 | BC76: 0 | BD76: 0 | BE76: 0 | BF76: 0 | BG76: 0 | BH76: 0 | BJ76: 1752105.12 | BL76: 1752105.12 | BM76: 0
A77: 5407 | B77: 10142 | C77: St James' Catholic High | D77: -4863203 | E77: -1065298 | F77: -305993.46 | G77: 0 | H77: -241170 | I77: -6962 | J77: 0 | K77: -1314.6 | L77: 0 | M77: 0 | N77: 0 | O77: -70225.95 | P77: -41657.81 | Q77: 0 | R77: 0 | S77: 0 | T77: 0 | U77: 4005335.26 | V77: 0 | W77: 756882.29 | X77: 111223.34 | Y77: 365651.02 | Z77: 0 | AA77: 14608.54 | AB77: 60398.44 | AC77: 14333.6 | AD77: 916 | AE77: 5918.75 | AF77: 0 | AG77: 57312.48 | AH77: 12846.29 | AI77: 113700.95 | AJ77: 9388 | AK77: 128549.17 | AL77: 0 | AM77: 34498.7 | AN77: 187054.44 | AO77: 60540.51 | AP77: 107710.9 | AQ77: 96416.01 | AR77: 34524.27 | AS77: 40.8 | AT77: 40007.57 | AU77: 0 | AV77: 0 | AW77: 34206.74 | AX77: 269771.59 | AY77: 57928.64 | AZ77: 0 | BA77: 0 | BB77: 0 | BC77: 0 | BD77: 0 | BE77: 0 | BF77: 0 | BG77: 0 | BH77: 0 | BJ77: 5253700.45 | BL77: 5253700.45 | BM77: 0
A78: 3307 | B78: 10089 | C78: St Johns CE N11 | D78: -940461 | E78: 0 | F78: -24833 | G78: 0 | H78: -47360 | I78: -780 | J78: -700 | K78: -73077.8 | L78: -29667.54 | M78: -11776.05 | N78: 0 | O78: -65436.44 | P78: -55171 | Q78: 0 | R78: 0 | S78: 0 | T78: -42297 | U78: 548775.09 | V78: 5968.77 | W78: 214295.09 | X78: 51102.54 | Y78: 33182.56 | Z78: 0 | AA78: 15174.67 | AB78: 2272.94 | AC78: 1846.36 | AD78: 8598.18 | AE78: 1039.5 | AF78: 0 | AG78: 105089.56 | AH78: 1549.87 | AI78: 3214.54 | AJ78: 6692.69 | AK78: 25258.85 | AL78: 0 | AM78: 11581.57 | AN78: 56064.31 | AO78: 9396.04 | AP78: 0 | AQ78: 6149.69 | AR78: 8001.06 | AS78: 1477.24 | AT78: 60516.15 | AU78: 0 | AV78: 0 | AW78: 102092.87 | AX78: 42983.01 | AY78: 27897.97 | AZ78: 0 | BA78: 0 | BB78: 0 | BC78: 0 | BD78: 0 | BE78: 0 | BF78: 0 | BG78: 0 | BH78: 0 | BJ78: 868498.72 | BL78: 868498.72 | BM78: 0
A79: 3309 | B79: 10116 | C79: St Johns CE N20 | D79: -974994.56 | E79: 0 | F79: -25511 | G79: 0 | H79: -39320 | I79: -4650 | J79: -2500 | K79: -69512.76 | L79: -30429.91 | M79: -5397.6 | N79: -2484.48 | O79: -28232.75 | P79: -13817.96 | Q79: 0 | R79: 0 | S79: 0 | T79: -38721.92 | U79: 565406.86 | V79: 0 | W79: 258665.98 | X79: 28721.28 | Y79: 46965.82 | Z79: 18823.66 | AA79: 6159.67 | AB79: 6532.65 | AC79: 3491.09 | AD79: 6588.55 | AE79: 4828 | AF79: 0 | AG79: 11278.94 | AH79: 4051 | AI79: 17619.42 | AJ79: 2826.66 | AK79: 12991.9 | AL79: 0 | AM79: 4555.71 | AN79: 71006.37 | AO79: 14965.49 | AP79: 0 | AQ79: 9350.55 | AR79: 5943.56 | AS79: 5380.2 | AT79: 49432.27 | AU79: 0 | AV79: 0 | AW79: 27913 | AX79: 21437.63 | AY79: 33242.03 | AZ79: 0 | BA79: 0 | BB79: 0 | BC79: 0 | BD79: 0 | BE79: 0 | BF79: 0 | BG79: 0 | BH79: 0 | BJ79: 924743.27 | BK79: -1488.68 | BL79: 923254.59 | BM79: 0
A80: 3509 | B80: 10107 | C80: St Josephs RC Jun | D80: -2004717 | E80: 0 | F80: -100403.83 | G80: 0 | H80: -91660 | I80: -1000 | J80: -27451 | K80: -66369.8 | L80: -57167.28 | M80: -11846.16 | N80: -1118.1 | O80: -65912.6 | P80: -17690.09 | Q80: 0 | R80: 0 | S80: 0 | T80: -98371.67 | U80: 1149358.89 | V80: 0 | W80: 551700.48 | X80: 105293.84 | Y80: 126857.02 | Z80: 0 | AA80: 74678.1 | AB80: 16301.84 | AC80: 15682.86 | AD80: 21210.78 | AE80: 2417 | AF80: 0 | AG80: 22358.08 | AH80: 1953.88 | AI80: 4405.96 | AJ80: 5414 | AK80: 52146.27 | AL80: 0 | AM80: 15227.03 | AN80: 125843.09 | AO80: 18639.94 | AP80: 0 | AQ80: 13010.55 | AR80: 14304.11 | AS80: 29426.23 | AT80: 126260.31 | AU80: 0 | AV80: 0 | AW80: 109449.37 | AX80: 30265.22 | AY80: 29531.1 | AZ80: 0 | BA80: 0 | BB80: 0 | BC80: 0 | BD80: 0 | BE80: 0 | BF80: 0 | BG80: 0 | BH80: 0 | BJ80: 2007888.33 | BL80: 2007888.33 | BM80: 0
A81: 1003 | B81: 10133 | C81: St Margaret's Nursery | D81: -371272 | E81: 0 | F81: -11101 | G81: 0 | H81: 0 | I81: -115380.73 | J81: -16288 | K81: -236920.98 | L81: -11210.66 | M81: 0 | N81: -3970.95 | O81: 0 | P81: -4120.75 | Q81: 0 | R81: 0 | S81: 0 | T81: 0 | U81: 174381.51 | V81: 0 | W81: 444502.25 | X81: 25099.45 | Y81: 39539.75 | Z81: 0 | AA81: 41437.01 | AB81: 2494.86 | AC81: 5135.25 | AD81: 7441.97 | AE81: 535.5 | AF81: 0 | AG81: 7731.85 | AH81: 550 | AI81: 1323.56 | AJ81: 3116.6 | AK81: 8055.9 | AL81: 8228 | AM81: 7861.64 | AN81: 13273.87 | AO81: 9493.39 | AP81: 0 | AQ81: 9899.32 | AR81: 1813.4 | AS81: 1182.51 | AT81: 17751.94 | AU81: 0 | AV81: 23112 | AW81: 0 | AX81: 2342 | AY81: 16497.85 | AZ81: 0 | BA81: 0 | BB81: -5100.25 | BC81: -19750 | BD81: 0 | BE81: 0 | BF81: 29920.4 | BG81: 0 | BH81: 0 | BJ81: 724959.97 | BL81: 724959.97 | BM81: 0
A82: 3521 | B82: 10698 | C82: St Mary's & St Johns Primary | D82: -4193914 | E82: 0 | F82: -138174.08 | G82: 0 | H82: -262645 | I82: -6285 | J82: -10595.35 | K82: -40616.29 | L82: -62667.26 | M82: -1530 | N82: 0 | O82: -71963.55 | P82: -31054.48 | Q82: 0 | R82: 0 | S82: 0 | T82: -90892.83 | U82: 2265880.25 | V82: 0 | W82: 704102.12 | X82: 81039.1 | Y82: 259732.91 | Z82: 0 | AA82: 94274.41 | AB82: 42437.55 | AC82: 36338.32 | AD82: 1213 | AE82: 5057.6 | AF82: 0 | AG82: 28324.95 | AH82: 9293.82 | AI82: 75628.75 | AJ82: 735.24 | AK82: 56993.87 | AL82: 0 | AM82: 31049.71 | AN82: 187976.83 | AO82: 34476.62 | AP82: 0 | AQ82: 61089.42 | AR82: 20443.53 | AS82: 31498.18 | AT82: 174676.8 | AU82: 0 | AV82: 0 | AW82: 193275.8 | AX82: 280836.05 | AY82: 40819.79 | AZ82: 0 | BA82: 0 | BB82: 0 | BC82: 0 | BD82: 0 | BE82: 0 | BF82: 0 | BG82: 0 | BH82: 17866.23 | BJ82: 3405028.79 | BL82: 3405028.79 | BM82: 0
A83: 5403 | B83: 10143 | C83: St Mary's C E High | D83: -251237 | E83: 0 | F83: -9158 | G83: 0 | H83: -11091.67 | I83: 0 | J83: -251700 | K83: -22204.69 | L83: 0 | M83: 0 | N83: 0 | O83: -2397.42 | P83: -11998.83 | Q83: 0 | R83: 0 | S83: 0 | T83: 0 | U83: 291486.43 | V83: 0 | W83: 36294.89 | X83: 24773.06 | Y83: 40977.73 | Z83: 0 | AA83: 1405.78 | AB83: 271159.38 | AC83: 189.36 | AD83: 33 | AE83: 204.66 | AF83: 0 | AG83: 1394.57 | AH83: 2287.1 | AI83: 19122.98 | AJ83: 721.83 | AK83: 3569.23 | AL83: 0 | AM83: 9644.24 | AN83: 19307.12 | AO83: 11158.66 | AP83: 20989.85 | AQ83: 3072.88 | AR83: 7648.86 | AS83: 0 | AT83: 1121.38 | AU83: 0 | AV83: 0 | AW83: 0 | AX83: 6597.89 | AY83: 6271.05 | AZ83: 0 | BA83: 0 | BB83: 0 | BC83: 0 | BD83: 0 | BE83: 0 | BF83: 0 | BG83: 0 | BH83: 0 | BJ83: 394937.89 | BL83: 394937.89 | BM83: 0
A84: 3312 | B84: 10093 | C84: St Marys CE EB | D84: -880330 | E84: 0 | F84: -64061 | G84: 0 | H84: -43981 | I84: -9727.38 | J84: 0 | K84: -29807.32 | L84: -29038.77 | M84: -3114 | N84: 0 | O84: -44156.83 | P84: -17369.24 | Q84: 0 | R84: 0 | S84: 0 | T84: -37862.49 | U84: 573291.51 | V84: 5904.4 | W84: 191153.62 | X84: 28684.68 | Y84: 47617.38 | Z84: 0 | AA84: 2860.2 | AB84: 1681.21 | AC84: 1536.97 | AD84: 19283.16 | AE84: 0 | AF84: 0 | AG84: -1604.56 | AH84: 1285 | AI84: 17320.81 | AJ84: 1095.38 | AK84: 9958.26 | AL84: 0 | AM84: 7586.67 | AN84: 67787.59 | AO84: 11211 | AP84: 0 | AQ84: 4421.62 | AR84: 8029.29 | AS84: 3399.07 | AT84: 63154 | AU84: 0 | AV84: 0 | AW84: 0 | AX84: 31452.45 | AY84: 33573.52 | AZ84: 0 | BA84: 0 | BB84: 0 | BC84: 0 | BD84: 0 | BE84: 0 | BF84: 0 | BG84: 0 | BH84: 0 | BJ84: 849511.79 | BL84: 849511.79 | BM84: 0
A85: 3311 | B85: 10092 | C85: St Marys CE N3 | D85: -1745348 | E85: 0 | F85: -37838 | G85: 0 | H85: -50600 | I85: -1400 | J85: -1040 | K85: -58624.94 | L85: -70367.37 | M85: 0 | N85: -6281 | O85: -65895.99 | P85: -37702.93 | Q85: 0 | R85: 0 | S85: 0 | T85: -77178.92 | U85: 867400.88 | V85: 0 | W85: 481770.94 | X85: 64070.01 | Y85: 65944.37 | Z85: 0 | AA85: 71835.29 | AB85: 29695.28 | AC85: 7154 | AD85: 695.54 | AE85: -488 | AF85: 0 | AG85: 23019.03 | AH85: 3205 | AI85: 23390.62 | AJ85: 6389.45 | AK85: 18773.65 | AL85: 0 | AM85: 11716.4 | AN85: 118080.25 | AO85: 18990.47 | AP85: 0 | AQ85: 11599.41 | AR85: 5755 | AS85: 3665.4 | AT85: 135630.54 | AU85: 0 | AV85: 0 | AW85: 83746.66 | AX85: 84803.73 | AY85: 38122.91 | AZ85: 0 | BA85: 0 | BB85: 0 | BC85: 0 | BD85: 0 | BE85: 0 | BF85: 0 | BG85: 0 | BH85: 0 | BJ85: 1551021.49 | BK85: 8018.89 | BL85: 1559040.38 | BM85: 0
A86: 5404 | B86: 10148 | C86: St Michaels Cath Gram | D86: -2689823 | E86: -1340015 | F86: -14049.22 | G86: 0 | H86: -33689.63 | I86: -12219 | J86: -1890.33 | K86: -56622.12 | L86: -105310.28 | M86: 0 | N86: 0 | O86: -26128.5 | P86: -414670.11 | Q86: 0 | R86: 0 | S86: 0 | T86: -2700 | U86: 2778337.15 | V86: 33979.77 | W86: 137885.46 | X86: 132721.4 | Y86: 474768.97 | Z86: 73614.34 | AA86: 6884.41 | AB86: 44078.74 | AC86: 13088.53 | AD86: -565.84 | AE86: 5735.44 | AF86: 0 | AG86: 51426.75 | AH86: 9250 | AI86: 7291.1 | AJ86: 7695.41 | AK86: 62791.21 | AL86: 0 | AM86: 45338.93 | AN86: 286707.44 | AO86: 37730.16 | AP86: 104918.89 | AQ86: 17663.71 | AR86: 30633.94 | AS86: 2096.73 | AT86: 39931.29 | AU86: 200000 | AV86: 0 | AW86: 29334.08 | AX86: 58126.96 | AY86: 115957.97 | AZ86: 0 | BA86: 0 | BB86: 0 | BC86: 0 | BD86: 0 | BE86: 0 | BF86: 0 | BG86: 0 | BH86: 0 | BJ86: 3638191.5 | BL86: 3638191.5 | BM86: 0
A87: 3313 | B87: 10094 | C87: St Pauls CE N11 | D87: -1016520.39 | E87: 0 | F87: -30699 | G87: 0 | H87: -61300 | I87: 0 | J87: 0 | K87: -11959.94 | L87: -23417.72 | M87: -810 | N87: -675.76 | O87: -19716.65 | P87: -818.6 | Q87: 0 | R87: 0 | S87: 0 | T87: -35924.33 | U87: 546615.25 | V87: 30675.52 | W87: 207246.87 | X87: 26490.24 | Y87: 24791.89 | Z87: 0 | AA87: 25430.55 | AB87: 11395.21 | AC87: 2122.18 | AD87: 9668.2 | AE87: 3549.38 | AF87: 0 | AG87: 9565.65 | AH87: 3040.11 | AI87: 15405.08 | AJ87: 2007.73 | AK87: 9814.21 | AL87: 0 | AM87: 5480.76 | AN87: 59282.15 | AO87: 9541.01 | AP87: 0 | AQ87: 7152.64 | AR87: 6251.83 | AS87: 11807.35 | AT87: 52649.14 | AU87: 0 | AV87: 0 | AW87: 67054.28 | AX87: 25890.02 | AY87: 25476 | AZ87: 0 | BA87: 2850 | BB87: 0 | BC87: 0 | BD87: -2850 | BE87: 0 | BF87: 0 | BG87: 0 | BH87: 2850 | BJ87: 861250.32 | BL87: 861250.32 | BM87: 0
A88: 3314 | B88: 10095 | C88: St Pauls CE NW7 | D88: -858887 | E88: 0 | F88: -61468 | G88: 0 | H88: -26820 | I88: -2200 | J88: -39561.5 | K88: -48459.36 | L88: -22193.31 | M88: 0 | N88: -14.84 | O88: -44862.86 | P88: -6156.8 | Q88: 0 | R88: 0 | S88: 0 | T88: -39814 | U88: 549283.47 | V88: 2999.92 | W88: 164387.61 | X88: 33709.95 | Y88: 39294.83 | Z88: 0 | AA88: 30468.06 | AB88: 7645.24 | AC88: 9505.11 | AD88: 6109.93 | AE88: 1199.75 | AF88: 0 | AG88: 17961.77 | AH88: 159.84 | AI88: 12908.58 | AJ88: 2499.94 | AK88: 15477.46 | AL88: 0 | AM88: 5859.75 | AN88: 77860.84 | AO88: 18847.16 | AP88: 0 | AQ88: 12708.96 | AR88: 4694.33 | AS88: 17958.87 | AT88: 53729.57 | AU88: 0 | AV88: 0 | AW88: 33800.75 | AX88: 24909 | AY88: 29226.04 | AZ88: 0 | BA88: 0 | BB88: 0 | BC88: 0 | BD88: 0 | BE88: 0 | BF88: 0 | BG88: 0 | BH88: 0 | BJ88: 820143.84 | BL88: 820143.84 | BM88: 0
A89: 3507 | B89: 10108 | C89: St Theresas RC | D89: -990209 | E89: 0 | F89: 0 | G89: 0 | H89: -41520 | I89: -4315 | J89: -250 | K89: -17195.43 | L89: -26707.3 | M89: -14013 | N89: 0 | O89: -28659.1 | P89: -17085.95 | Q89: 0 | R89: 0 | S89: 0 | T89: -38920.58 | U89: 579541.58 | V89: 0 | W89: 123043.45 | X89: 51650.11 | Y89: 40980.62 | Z89: 0 | AA89: 37445.66 | AB89: 16998.3 | AC89: 6447.79 | AD89: 7739.93 | AE89: 1075.5 | AF89: 0 | AG89: 5550.72 | AH89: 695 | AI89: 201.82 | AJ89: 2848.71 | AK89: 10769.16 | AL89: 0 | AM89: 5570.01 | AN89: 54858.15 | AO89: 11866.6 | AP89: 0 | AQ89: 8919.71 | AR89: 6772.01 | AS89: 10567.56 | AT89: 54918 | AU89: 0 | AV89: 0 | AW89: 53635 | AX89: 50432.52 | AY89: 32118.35 | AZ89: 0 | BA89: 0 | BB89: 0 | BC89: 0 | BD89: 0 | BE89: 0 | BF89: 0 | BG89: 0 | BH89: 0 | BJ89: 832661.42 | BL89: 832661.42 | BM89: 0
A90: 3506 | B90: 10096 | C90: St Vincents RC | D90: -1327528 | E90: 0 | F90: -40184 | G90: 0 | H90: -80353 | I90: -2400 | J90: -3603.5 | K90: -18014.74 | L90: -26224.02 | M90: 0 | N90: 0 | O90: -35093.45 | P90: -2070.28 | Q90: 0 | R90: 0 | S90: 0 | T90: -48757.58 | U90: 741570.38 | V90: 37522.91 | W90: 333217.18 | X90: 53615.48 | Y90: 65774.45 | Z90: 0 | AA90: 0 | AB90: 594.9 | AC90: 13578.15 | AD90: 9019.45 | AE90: 1480.5 | AF90: 0 | AG90: 33333.52 | AH90: 6667.52 | AI90: 3448.75 | AJ90: 2914.33 | AK90: 6242.81 | AL90: 0 | AM90: 6769.06 | AN90: 58695.2 | AO90: 12507.13 | AP90: 0 | AQ90: 9478.23 | AR90: 9216.82 | AS90: 0 | AT90: 63823.67 | AU90: 0 | AV90: 0 | AW90: 11037 | AX90: 64437.5 | AY90: 37769.9 | AZ90: 0 | BA90: 18621.6 | BB90: 0 | BC90: -6000 | BD90: -18621.6 | BE90: 0 | BF90: 0 | BG90: 0 | BH90: 24621.6 | BJ90: 1231700.4 | BL90: 1231700.4 | BM90: 0
A91: 2052 | B91: 10098 | C91: Summerside | D91: -2310573 | E91: 0 | F91: -273529 | G91: 0 | H91: -269493 | I91: -4839.96 | J91: -11146.62 | K91: -15188.82 | L91: -59658.42 | M91: -44498.84 | N91: -4731.24 | O91: -11765.6 | P91: -17171.83 | Q91: 0 | R91: 0 | S91: 0 | T91: -74880.83 | U91: 1390132.99 | V91: 0 | W91: 600560.26 | X91: 43118.89 | Y91: 99568.13 | Z91: 62349.77 | AA91: 57999.8 | AB91: 9588.75 | AC91: 23363 | AD91: 26201.25 | AE91: 2299.3 | AF91: 0 | AG91: 18203.29 | AH91: 6115 | AI91: 42675.35 | AJ91: 5192.53 | AK91: 25495.94 | AL91: 22986.25 | AM91: 9694.39 | AN91: 84520.22 | AO91: 15789.28 | AP91: 0 | AQ91: 9301.87 | AR91: 10279.2 | AS91: 39660.25 | AT91: 70672.33 | AU91: 0 | AV91: 0 | AW91: 120874.45 | AX91: 213556.03 | AY91: 32781.32 | AZ91: 0 | BA91: 0 | BB91: -9424.75 | BC91: -5491.78 | BD91: 0 | BE91: 0 | BF91: 1595.52 | BG91: 0 | BH91: 10946.77 | BJ91: 2253729.84 | BL91: 2253729.84 | BM91: 0
A92: 2070 | B92: 10097 | C92: Sunnyfields | D92: -1091614.01 | E92: 0 | F92: -105447 | G92: 0 | H92: -142560 | I92: -3699.54 | J92: -26371 | K92: -8317.02 | L92: -23595.71 | M92: -3252.6 | N92: -16967.77 | O92: -14402.1 | P92: -5804.06 | Q92: 0 | R92: 0 | S92: 0 | T92: -34519.83 | U92: 641604.48 | V92: 9886.39 | W92: 276752.55 | X92: 43508.16 | Y92: 79972.17 | Z92: 0 | AA92: 33393.08 | AB92: 10353.12 | AC92: 2778.13 | AD92: 4358.49 | AE92: 7473.72 | AF92: 0 | AG92: 12341.23 | AH92: 2759.1 | AI92: 6199.88 | AJ92: 3117.11 | AK92: 14470.8 | AL92: 12100 | AM92: 9721.71 | AN92: 45432.96 | AO92: 23416.91 | AP92: 0 | AQ92: 11587.86 | AR92: 4755.47 | AS92: 10431.45 | AT92: 68776.63 | AU92: 0 | AV92: 0 | AW92: 6293 | AX92: 73967.51 | AY92: 13034.6 | AZ92: 0 | BA92: 0 | BB92: -6673 | BC92: 0 | BD92: 0 | BE92: 0 | BF92: 0 | BG92: 0 | BH92: 0 | BJ92: 1085116.83 | BL92: 1085116.83 | BM92: 0
A93: 3316 | B93: 10100 | C93: Trent | D93: -845184.97 | E93: 0 | F93: 0 | G93: 0 | H93: -30200 | I93: -920.88 | J93: -577 | K93: -52650.59 | L93: -28198.79 | M93: -7860.57 | N93: -2607.58 | O93: -27172.02 | P93: -11436.78 | Q93: 0 | R93: 0 | S93: 0 | T93: -47856.75 | U93: 500665.64 | V93: 5722.52 | W93: 137207.44 | X93: 24599.99 | Y93: 43108.24 | Z93: 0 | AA93: 48736.89 | AB93: 5073.1 | AC93: 5119.95 | AD93: 7261.5 | AE93: 931.5 | AF93: 0 | AG93: 2642.31 | AH93: 100.13 | AI93: 13160.07 | AJ93: 1300.78 | AK93: 9767.5 | AL93: 0 | AM93: 6417.15 | AN93: 64545.34 | AO93: 9206.79 | AP93: 0 | AQ93: 4350.74 | AR93: 4123.71 | AS93: 8751.18 | AT93: 60448.25 | AU93: 0 | AV93: 0 | AW93: 5487.9 | AX93: 76044.52 | AY93: 12942.52 | AZ93: 0 | BA93: 0 | BB93: 0 | BC93: 0 | BD93: 0 | BE93: 0 | BF93: 0 | BG93: 0 | BH93: 0 | BJ93: 760040.72 | BL93: 760040.72 | BM93: 0
A94: 2055 | B94: 10101 | C94: Tudor | D94: -1202235 | E94: 0 | F94: -46681 | G94: 0 | H94: -93060 | I94: -40092.39 | J94: 0 | K94: -15103.86 | L94: -19622.04 | M94: 0 | N94: -1122.17 | O94: -11001.13 | P94: -2212.69 | Q94: 0 | R94: 0 | S94: 0 | T94: -41332.33 | U94: 609250.04 | V94: 0 | W94: 346387.12 | X94: 50402.56 | Y94: 35627.52 | Z94: 0 | AA94: 38800.51 | AB94: 1069.27 | AC94: 5464.78 | AD94: 11098.94 | AE94: 1134 | AF94: 0 | AG94: 11892.81 | AH94: 5091.52 | AI94: 16658.4 | AJ94: 2098.98 | AK94: 22860.47 | AL94: 15301.73 | AM94: 11611.62 | AN94: 75889.65 | AO94: 19356.46 | AP94: 0 | AQ94: 6205.15 | AR94: 6130 | AS94: 4382.44 | AT94: 66342.65 | AU94: 0 | AV94: 0 | AW94: 71733.99 | AX94: 78758.23 | AY94: 28185.85 | AZ94: 0 | BA94: 0 | BB94: -6592 | BC94: 0 | BD94: 0 | BE94: 0 | BF94: 11652.71 | BG94: 0 | BH94: 0 | BJ94: 1080467.75 | BL94: 1080467.75 | BM94: 0
A95: 2057 | B95: 10103 | C95: Underhill Inf | D95: -2638296 | E95: 0 | F95: -137345 | G95: 0 | H95: -315220 | I95: -2016 | J95: -1316.09 | K95: -146877.4 | L95: -32091.26 | M95: -26884.2 | N95: -22982.31 | O95: -36506.2 | P95: -4007.98 | Q95: 0 | R95: -272946 | S95: -9340.2 | T95: -51287.83 | U95: 1367048.53 | V95: 0 | W95: 933140.7 | X95: 94362.1 | Y95: 111902.14 | Z95: 0 | AA95: 130922.13 | AB95: 16430.92 | AC95: 2266.36 | AD95: 12168.59 | AE95: 22994.9 | AF95: 215848.72 | AG95: 31761.09 | AH95: 7020 | AI95: 11159.44 | AJ95: 14689.71 | AK95: 34777.91 | AL95: 50896.47 | AM95: 13378.84 | AN95: 64584.47 | AO95: 18340.36 | AP95: 0 | AQ95: 32754.86 | AR95: 11331.79 | AS95: 10573.68 | AT95: 136652.85 | AU95: 0 | AV95: 43002.64 | AW95: 133469.67 | AX95: 121892.02 | AY95: 22718.43 | AZ95: 0 | BA95: 3949 | BB95: -9519.25 | BC95: 0 | BD95: -3949 | BE95: 0 | BF95: 0 | BG95: 0.07 | BH95: 13467.84 | BJ95: 2637375.6 | BL95: 2637375.6 | BM95: 215848.72
A96: 2076 | B96: 10124 | C96: Wessex Gardens | D96: -2143402 | E96: 0 | F96: -54628 | G96: 0 | H96: -229040 | I96: -375 | J96: -2915 | K96: -93057.84 | L96: -46255.59 | M96: -9728 | N96: -3682.2 | O96: -26410.06 | P96: -2765.13 | Q96: 0 | R96: 0 | S96: 0 | T96: -63524.42 | U96: 1103880.35 | V96: 18644.74 | W96: 438575.97 | X96: 46796.71 | Y96: 167202.89 | Z96: 0 | AA96: 61186.38 | AB96: 9617.61 | AC96: 5194.03 | AD96: 17787.99 | AE96: 4653.87 | AF96: 0 | AG96: 29958.74 | AH96: 6740 | AI96: 36710.29 | AJ96: 10039.78 | AK96: 38340.77 | AL96: 35137.79 | AM96: 15252.98 | AN96: 103856.74 | AO96: 22420.06 | AP96: 0 | AQ96: 21238.47 | AR96: 8810.66 | AS96: 17449.92 | AT96: 116775.56 | AU96: 0 | AV96: 0 | AW96: 45603 | AX96: 256594.97 | AY96: 22107.66 | AZ96: 0 | BA96: 188815 | BB96: -9386.5 | BC96: 0 | BD96: -188815 | BE96: 0 | BF96: 196621.5 | BG96: 6322 | BH96: 25113 | BJ96: 1836287.04 | BL96: 1836287.04 | BM96: 0
A97: 2060 | B97: 10105 | C97: Whitings Hill | D97: -2252592 | E97: 0 | F97: -27445 | G97: 0 | H97: -224400 | I97: -2400 | J97: -1350 | K97: -127308.16 | L97: -41302.87 | M97: -18419.27 | N97: -3151.34 | O97: -25697.5 | P97: -7120.63 | Q97: 0 | R97: 0 | S97: 0 | T97: -59527.57 | U97: 1200056.99 | V97: 0 | W97: 637740.89 | X97: 43372.97 | Y97: 91156.63 | Z97: 0 | AA97: 56708.09 | AB97: 8032.92 | AC97: 15198.78 | AD97: 22356.2 | AE97: 2052 | AF97: 0 | AG97: 124000.94 | AH97: 6649 | AI97: 38366.85 | AJ97: 6181.46 | AK97: 60093.3 | AL97: 16649.5 | AM97: 18698.63 | AN97: 104899.37 | AO97: 30189.43 | AP97: 0 | AQ97: 10393.88 | AR97: 16594.39 | AS97: 21416.51 | AT97: 116237.63 | AU97: 0 | AV97: 0 | AW97: 76513 | AX97: 60638.58 | AY97: 73490.35 | AZ97: 0 | BA97: 24473 | BB97: -9103.25 | BC97: 0 | BD97: -24473 | BE97: 0 | BF97: 16812 | BG97: 0 | BH97: 3340 | BJ97: 2029035.57 | BL97: 2029035.57 | BM97: 0
A98: 3518 | B98: 10123 | C98: Woodcroft Primary | D98: -2290202 | E98: 0 | F98: -84996 | G98: 0 | H98: -321020 | I98: -3333.98 | J98: -600 | K98: -24172.43 | L98: -27277.38 | M98: -2983.17 | N98: -4028.1 | O98: -17183.46 | P98: -6182.78 | Q98: 0 | R98: 0 | S98: 0 | T98: -48261.1 | U98: 1123196.79 | V98: 11719.4 | W98: 741959.03 | X98: 13033.03 | Y98: 59072.98 | Z98: 0 | AA98: 80593.41 | AB98: 8668.72 | AC98: 12941.64 | AD98: 24132.82 | AE98: 2151 | AF98: 0 | AG98: 28184.34 | AH98: 2007.46 | AI98: 79648.01 | AJ98: 6185.46 | AK98: 41452.23 | AL98: 24601.5 | AM98: 8552.87 | AN98: 60580.93 | AO98: 27033.03 | AP98: 0 | AQ98: 14961.52 | AR98: 10877.78 | AS98: 34735.28 | AT98: 130382.62 | AU98: 0 | AV98: 0 | AW98: 92348.6 | AX98: 168935.15 | AY98: 54854.94 | AZ98: 0 | BA98: 0 | BB98: -24807.5 | BC98: 0 | BD98: 0 | BE98: 0 | BF98: 15574.5 | BG98: 0 | BH98: 15423.79 | BJ98: 2029574.64 | BL98: 2029574.64 | BM98: 0
A99: 2054 | B99: 10109 | C99: Woodridge | D99: -987272 | E99: 0 | F99: -38676 | G99: 0 | H99: -27720 | I99: -2150 | J99: -7277.95 | K99: -46517.2 | L99: -28649.89 | M99: 0 | N99: -1576 | O99: -43066.25 | P99: -11851.9 | Q99: 0 | R99: 0 | S99: 0 | T99: -40418.93 | U99: 561883.02 | V99: 14306.62 | W99: 257458.8 | X99: 31528.77 | Y99: 62329.86 | Z99: 0 | AA99: 31319.6 | AB99: 4934.31 | AC99: 5674.06 | AD99: 4441.86 | AE99: 1080 | AF99: 0 | AG99: 10874.09 | AH99: 4004.11 | AI99: 11369.3 | AJ99: 2599.91 | AK99: 10835.07 | AL99: 12797.75 | AM99: 5741.82 | AN99: 51900.28 | AO99: 12987.23 | AP99: 0 | AQ99: 11439.67 | AR99: 4935.52 | AS99: 17325.78 | AT99: 59935.62 | AU99: 0 | AV99: 0 | AW99: 10241 | AX99: 61234.01 | AY99: 21856 | AZ99: 0 | BA99: 0 | BB99: -6700 | BC99: 0 | BD99: 0 | BE99: 0 | BF99: 6425 | BG99: 0 | BH99: 8907.5 | BJ99: 958826.67 | BL99: 958826.67 | BM99: 0
B105: I01 - Funds Delegated by LA
B106: I02 - Funding for Sixth Form
B107: I03 - SEN Funding
B108: I04 - Ethnic Minority pupils
B109: I05 - Pupil Premium Grant
B110: I06 - Other Government Grants
B111: I07 - Other Grants & Payments
B112: I08 - Income -Facilities & Svs
B113: I09 - Income from Catering
B114: I10 - Supply Teacher Insurance
B115: I11 - Other Insurance Claims
B116: I12 - Income - Contributions
B117: I13 - Donations/Private Funds
B118: I15 - Ext Sch Pupil Focussed
B119: I16 - Ext Sch Comm Focussed | K119: I01
B120: I17 - Ext Sch Comm Other | K120: I02
B121: I18 - Addit Grants for Schools | K121: I03
B122: E01 - Teaching Staff | K122: I04
B123: E02 - Supply Teaching Staff | K123: I05
B124: E03 - Education Support Staff | K124: I06
B125: E04 - Premises Staff | K125: I07
B126: E05 - Admin & Clerical | K126: I08
B127: E06 - Catering Staff | K127: I09
B128: E07 - Other Staff | K128: I10
B129: E08 - Indirect Employee Exp | K129: I11
B130: E09 - Staff Training/Develpmnt | K130: I12
B131: E10 - Supply Teacher Insurance | K131: I13
B132: E11 - Staff Related Insurance | K132: I15
B133: E31 - Extended School Staff | K133: I16
B134: E12 - Bldg Maint/Improvement | K134: I17
B135: E13 - Grounds Maint/Improvemnt | K135: I18
B136: E14 - Cleaning & Caretaking | K136: E01
B137: E15 - Water & Sewerage | K137: E02
B138: E16 - Energy | K138: E03
B139: E17 - Rates | K139: E04
B140: E18 - Other Occupation Costs | K140: E05
B141: E19 - Learning Resources | K141: E06
B142: E20 - ICT Learning Resources | K142: E07
B143: E21 - Exam Fees | K143: E08
B144: E22 - Administrative Supplies | K144: E09
B145: E23 - Other Insurance Premiums | K145: E10
B146: E24 - Special Facilities | K146: E11
B147: E25 - Catering Supplies | K147: E31
B148: E29 - Loan Interest | K148: E12
B149: E32 - Extended Sch other costs | K149: E13
B150: E26 - Agency Supply Teachers | K150: E14
B151: E27 - Prof Services-Curriculum | K151: E15
B152: E28 - Prof Services-Other | K152: E16
B153: Contingency | K153: E17
B154: E30 - Direct Revenue Financing | K154: E18
B155: CI01 - Capital Income | K155: E19
B156: CI03 - Private Capital Income | K156: E20
B157: CI04 - Direct Rev Financing | K157: E21
B158: CE01 - Acq of Land & Bldgs | K158: E22
B159: CE02 - New Constr/Conversion | K159: E23
B160: CE03 - Vehicles Plant Equipmnt | K160: E24
B161: CE04 - ICT Capital | K161: E25
K162: E29
K163: E32
K164: E26
K165: E27
K166: E28
K167: Cont
K168: E30
K169: CI01
K170: CI03
K171: CI04
K172: CE01
K173: CE02
K174: CE03
K175: CE04

Sheet Sheet1
